Department Family,Entity,Date of Payment,Expense Type,Expense Area,Supplier,Voluntary & Community Sector,SME Class,Sole Trader,D-U-N-S Number,Transaction number,PSPES Level 2,Narrative,Postal Code,Amount in Sterling,Grant?
Communities & Local Government,DCLG,01/07/2014,Agency Staff,Finance & Corporate Services,CAPITA RESOURCING LTD,,Large,,215581006,5106204866,Contingent Labour,Mincom IT expertise,SL6 1DP,"8,502.00",
Communities & Local Government,DCLG,01/07/2014,Agency Staff,Finance & Corporate Services,CAPITA RESOURCING LTD,,Large,,215581006,5106204871,Contingent Labour,Mincom IT expertise,SL6 1DP,"3,924.00",
Communities & Local Government,DCLG,01/07/2014,Catering,Finance & Corporate Services,INTERSERVE (FACILITIES MANAGEMENT),,Large,,364834825,2100244353,Catering,APR 14 Catering Charges,BS32 4NH,240.60,
Communities & Local Government,DCLG,01/07/2014,Catering,Finance & Corporate Services,INTERSERVE (FACILITIES MANAGEMENT),,Large,,364834825,2100244353,Catering,APR 14 Catering Charges,BS32 4NH,181.20,
Communities & Local Government,DCLG,01/07/2014,Catering,Finance & Corporate Services,INTERSERVE (FACILITIES MANAGEMENT),,Large,,364834825,2100244354,Catering,APR 14 Catering Charges,BS32 4NH,"2,538.74",
Communities & Local Government,DCLG,01/07/2014,Catering,Localism,INTERSERVE (FACILITIES MANAGEMENT),,Large,,364834825,2100244353,Catering,APR 14 Catering Charges,BS32 4NH,534.40,
Communities & Local Government,DCLG,01/07/2014,Catering,Neighbourhoods,INTERSERVE (FACILITIES MANAGEMENT),,Large,,364834825,2100244353,Catering,APR 14 Catering Charges,BS32 4NH,85.50,
Communities & Local Government,DCLG,01/07/2014,Catering,Neighbourhoods,INTERSERVE (FACILITIES MANAGEMENT),,Large,,364834825,2100244353,Catering,APR 14 Catering Charges,BS32 4NH,8.40,
Communities & Local Government,DCLG,01/07/2014,Catering,Troubled Families,INTERSERVE (FACILITIES MANAGEMENT),,Large,,364834825,2100244353,Catering,APR 14 Catering Charges,BS32 4NH,70.60,
Communities & Local Government,DCLG,01/07/2014,Current (non AEF) Grants to Local Authorities,Localism,BUCKS & MILTON KEYNES FIRE AUTH,,Public Bodies,,423679463,2600061881,,Bellwin final claim,HP20 1BD,"36,964.00",Yes
Communities & Local Government,DCLG,01/07/2014,Current (non AEF) Grants to Local Authorities,Localism,DOVER DC,,,,,2600061879,,Bellwin final claim,CT16 3PD,"6,602.00",Yes
Communities & Local Government,DCLG,01/07/2014,Current (non AEF) Grants to Local Authorities,Localism,GUILDFORD BC,,,,236663720,2600061882,,Bellwin final claim,GU2 5BB,"50,424.00",Yes
Communities & Local Government,DCLG,01/07/2014,Current (non AEF) Grants to Local Authorities,Localism,NORTH NORFOLK DC,,,,239975964,2600061883,,Bellwin final claim,NR27 9EN,"47,262.00",Yes
Communities & Local Government,DCLG,01/07/2014,Current (non AEF) Grants to Local Authorities,Localism,SOUTH HAMS DC,,,,236445342,2600061884,,Bellwin final claim,TQ9 5NE,"100,510.00",Yes
Communities & Local Government,DCLG,01/07/2014,Current (non AEF) Grants to Local Authorities,Localism,TUNBRIDGE WELLS BC,,,,775221013,2600061886,,Bellwin final claim,TN1 1RS,"18,407.00",Yes
Communities & Local Government,DCLG,01/07/2014,Current (non AEF) Grants to Local Authorities,Localism,WEST OXFORDSHIRE DC,,,,210401379,2600061885,,Bellwin final claim,OX28 1NB,"7,959.00",Yes
Communities & Local Government,DCLG,01/07/2014,Facilities Management (ISD use only),Finance & Corporate Services,INTERSERVE (FACILITIES MANAGEMENT),,Large,,364834825,5106204870,Building Management,DfECC/0048 Novation of Condecco,BS32 4NH,"9,805.04",
Communities & Local Government,DCLG,01/07/2014,Fixed Maintenance,Finance & Corporate Services,INTERSERVE (FACILITIES MANAGEMENT),,Large,,364834825,5106204869,Construction Service Providers,Eland House Variable Maint 14-15,BS32 4NH,"9,082.47",
Communities & Local Government,DCLG,01/07/2014,Fixed Maintenance,Finance & Corporate Services,INTERSERVE (FACILITIES MANAGEMENT),,Large,,364834825,5106204869,Construction Service Providers,Temple Quay Variable Maint 14-15,BS32 4NH,250.94,
Communities & Local Government,DCLG,01/07/2014,Fixed Maintenance,Finance & Corporate Services,INTERSERVE (FACILITIES MANAGEMENT),,Large,,364834825,5106204869,Construction Service Providers,City Gate Variable Maint 14-15,BS32 4NH,"3,148.40",
Communities & Local Government,DCLG,01/07/2014,Fixed Maintenance,Finance & Corporate Services,INTERSERVE (FACILITIES MANAGEMENT),,Large,,364834825,5106204869,Construction Service Providers,5 SPP Variable Maint 14-15,BS32 4NH,629.89,
Communities & Local Government,DCLG,01/07/2014,"Furniture, Fittings and carpets",Finance & Corporate Services,AMARYLLIS LTD,,Medium,,672277696,5106204854,"Furniture, Fixtures and Fittings",Recovering of chairs in Rivergate Hse breakout area,CM2 8TE,"2,552.83",
Communities & Local Government,DCLG,01/07/2014,IT - Software Maintenance,Localism,BYTES SOFTWARE SERVICES LTD,,Medium,,225273754,5106204848,Managed / Outsourced Services,50 VDI-in-a-Box licences renewal 2014-15,KT22 7TW,"1,296.04",
Communities & Local Government,DCLG,01/07/2014,Management Consultancy,Neighbourhoods,DTZ DEBENHAM TIE LEUNG,,Large,,215585409,5106204865,Consultancy,EZ   Humber SLA DTZ (3)14,B4 6AJ,"3,240.00",
Communities & Local Government,DCLG,01/07/2014,Management Consultancy,Neighbourhoods,DTZ DEBENHAM TIE LEUNG,,Large,,215585409,5106204865,Consultancy,EZ   Leeds SLA  (DTZ 1/14),B4 6AJ,"8,865.60",
Communities & Local Government,DCLG,01/07/2014,Management Consultancy,Neighbourhoods,DTZ DEBENHAM TIE LEUNG,,Large,,215585409,5106204865,Consultancy,EZ   Sheffield SLA DTZ (2)14,B4 6AJ,652.80,
Communities & Local Government,DCLG,01/07/2014,Management Consultancy,Neighbourhoods,DTZ DEBENHAM TIE LEUNG,,Large,,215585409,5106204865,Consultancy,North East Expenses,B4 6AJ,63.36,
Communities & Local Government,DCLG,01/07/2014,Mobile phone costs,Finance & Corporate Services,ORANGE (AIRTIME/LINE RENTAL),,Large,,210707540,2100244352,Telecoms,Monthly Consolidated Telephone Costs Jun 14,S98 1DX,391.80,
Communities & Local Government,DCLG,01/07/2014,Printing,"Strategy, Communications and Private Office",STATIONERY OFFICE LTD,,Large,,779375633,5106204808,Printing Services,Non-Vatable,NR3 1PD,165.00,
Communities & Local Government,DCLG,01/07/2014,Printing,"Strategy, Communications and Private Office",STATIONERY OFFICE LTD,,Large,,779375633,5106204808,Printing Services,Vatable,NR3 1PD,130.00,
Communities & Local Government,DCLG,01/07/2014,Professional services,Finance & Corporate Services,E C HARRIS LLP,,Large,,,5106204794,Construction Service Providers,PAMU Com - 101 - TFM Support - TG,N1 9AB,"3,648.00",
Communities & Local Government,DCLG,01/07/2014,Steady State Service Provision,Neighbourhoods,SINCLAIR KNIGHT MERZ (EUROPE) LTD,,,,,5106204868,Business Process Outsourcing Services,Quality Assurance Audits,M5 3NN,"20,719.20",
Communities & Local Government,DCLG,01/07/2014,Steady State Service Provision,Neighbourhoods,SINCLAIR KNIGHT MERZ (EUROPE) LTD,,,,,5106204868,Business Process Outsourcing Services,Travel (First 18 Months),M5 3NN,"1,286.77",
Communities & Local Government,DCLG,01/07/2014,Telecoms equipment (non-capitalised),"Strategy, Communications and Private Office",COLT TELECOMMUNICATIONS,,Large,,543775258,5106204845,Telecoms,Dark fibre - HoC to Eland house monthly,EC3A 7QN,500.00,
Communities & Local Government,DCLG,01/07/2014,Training,Finance & Corporate Services,CAPITA BUS. SERV. LTD (CSL),,Large,,215580993,5106204851,Development and Training,Operational Delivery Professional qualif,DL1 9HB,"1,353.65",
Communities & Local Government,DCLG,01/07/2014,Training,Finance & Corporate Services,NATIONAL COUNCIL FOR VOL ORGS,,Medium,,290082338,5106204852,Development and Training,A Day in the Life  Work Shadow Scheme 2,N1 9RL,"5,000.00",
Communities & Local Government,DCLG,01/07/2014,Work In Progress Pre-Cert 40373 Spend,Neighbourhoods,ENTERPRISE LOANS EAST MIDLANDS,,Small,,,7600008999,,Revenue Grant To Be Paid,NG7 5FU,"4,521.97",Yes
Communities & Local Government,DCLG,01/07/2014,Work In Progress Pre-Cert 40373 Spend,Neighbourhoods,ENTERPRISE LOANS EAST MIDLANDS,,Small,,,7600009000,,Revenue Grant To Be Paid,NG7 5FU,"6,544.71",Yes
Communities & Local Government,DCLG,01/07/2014,Work In Progress Pre-Cert 40373 Spend,Neighbourhoods,ENTERPRISE LOANS EAST MIDLANDS,,Small,,,7600009003,,Revenue Grant To Be Paid,NG7 5FU,"5,705.49",Yes
Communities & Local Government,DCLG,01/07/2014,Work In Progress Pre-Cert 40373 Spend,Neighbourhoods,FINANCE CORNWALL LTD,,Small,,237808535,2100244369,,Recovery of ERDF grant,TR1 2AJ,"524,184.00",Yes
Communities & Local Government,DCLG,01/07/2014,Work In Progress Pre-Cert 40373 Spend,Neighbourhoods,FINANCE CORNWALL LTD,,Small,,237808535,2300002158,,Recovery of ERDF grant,TR1 2AJ,"-524,184.00",Yes
Communities & Local Government,DCLG,01/07/2014,Work In Progress Pre-Cert 40373 Spend,Neighbourhoods,NOTTINGHAM UNIVERSITY,,Large,,,7600009001,,Revenue Grant To Be Paid,NG7 2RD,"40,322.28",Yes
Communities & Local Government,DCLG,01/07/2014,Work In Progress Pre-Cert 40373 Spend,Neighbourhoods,SES,,,,,7600009002,,Revenue Grant To Be Paid,SR1 8EL,"9,003.26",Yes
Communities & Local Government,DCLG,02/07/2014,Agency Staff,Finance & Corporate Services,ALLEN LANE FINANCIAL RECRUITMENT,,Medium,Yes,234388853,5106204877,Contingent Labour,Interim Accountant (Extension 01),,"3,796.08",
Communities & Local Government,DCLG,02/07/2014,Agency Staff,Finance & Corporate Services,ALLEN LANE FINANCIAL RECRUITMENT,,Medium,Yes,234388853,5106204878,Contingent Labour,Interim Accountant (Extension 01),,"3,796.08",
Communities & Local Government,DCLG,02/07/2014,Courier Services,Finance & Corporate Services,INTERSERVE (FACILITIES MANAGEMENT),,Large,,364834825,5106204893,Post & Courier,Eland House Mail 14-15,BS32 4NH,"8,000.42",
Communities & Local Government,DCLG,02/07/2014,Courier Services,Finance & Corporate Services,INTERSERVE (FACILITIES MANAGEMENT),,Large,,364834825,5106204893,Post & Courier,Rivergate Mail 14-15,BS32 4NH,"1,519.43",
Communities & Local Government,DCLG,02/07/2014,Current (non AEF) Grants to Local Authorities,Localism,BIRMINGHAM CITY COUNCIL,,Public Bodies,,213780559,2100244363,,Arts and Communities - Birmingham,B3 3AB,"40,000.00",Yes
Communities & Local Government,DCLG,02/07/2014,Current (non AEF) Grants to Local Authorities,Localism,BRADFORD MBC,,,,,2100244365,,Arts and Communities - Bradford,BD1 1HX,"40,000.00",Yes
Communities & Local Government,DCLG,02/07/2014,Current (non AEF) Grants to Local Authorities,Localism,BURNLEY BC,,Large,,229413281,2100244364,,Arts and Communities - Burnley,BB11 1JA,"40,000.00",Yes
Communities & Local Government,DCLG,02/07/2014,Current Grants to Non Profit Bodies,Neighbourhoods,BRITISH BIDS,,Micro,,,2100244366,,Towns Regeneration 14/15 Funding - BIDS Loan Fund,MK9 2FR,"30,000.00",Yes
Communities & Local Government,DCLG,02/07/2014,Current Grants to Non Profit Bodies,Neighbourhoods,COMMUNITY DEVELOPMENT FOUNDATION,,Small,,,2100244236,,Supporting Communities in Neighbourhood Planning,EC1V 2PT,"735,064.00",Yes
Communities & Local Government,DCLG,02/07/2014,Domestic Services,Finance & Corporate Services,INTERSERVE (FACILITIES MANAGEMENT),,Large,,364834825,5106204893,Cleaning,Eland House Cleaning 14-15,BS32 4NH,"27,868.08",
Communities & Local Government,DCLG,02/07/2014,Domestic Services,Finance & Corporate Services,INTERSERVE (FACILITIES MANAGEMENT),,Large,,364834825,5106204893,Cleaning,TQH Cleaning 14-15,BS32 4NH,"9,032.52",
Communities & Local Government,DCLG,02/07/2014,Domestic Services,Finance & Corporate Services,INTERSERVE (FACILITIES MANAGEMENT),,Large,,364834825,5106204893,Cleaning,Hemel Hemp Cleaning 14-15,BS32 4NH,"2,216.98",
Communities & Local Government,DCLG,02/07/2014,Domestic Services,Finance & Corporate Services,INTERSERVE (FACILITIES MANAGEMENT),,Large,,364834825,5106204893,Cleaning,Rivergate Cleaning 14-15,BS32 4NH,"5,167.99",
Communities & Local Government,DCLG,02/07/2014,Domestic Services,Finance & Corporate Services,INTERSERVE (FACILITIES MANAGEMENT),,Large,,364834825,5106204893,Cleaning,Bridge House Cleaning 14-15,BS32 4NH,"3,073.37",
Communities & Local Government,DCLG,02/07/2014,Domestic Services,Finance & Corporate Services,INTERSERVE (FACILITIES MANAGEMENT),,Large,,364834825,5106204893,Cleaning,Citygate Cleaning 14-15,BS32 4NH,"3,090.56",
Communities & Local Government,DCLG,02/07/2014,Domestic Services,Finance & Corporate Services,INTERSERVE (FACILITIES MANAGEMENT),,Large,,364834825,5106204893,Cleaning,Queen Street Cleaning 14-15,BS32 4NH,"2,603.25",
Communities & Local Government,DCLG,02/07/2014,Domestic Services,Finance & Corporate Services,INTERSERVE (FACILITIES MANAGEMENT),,Large,,364834825,5106204893,Cleaning,5SPP Cleaning 14-15,BS32 4NH,"6,906.82",
Communities & Local Government,DCLG,02/07/2014,Domestic Services,Finance & Corporate Services,INTERSERVE (FACILITIES MANAGEMENT),,Large,,364834825,5106204893,Cleaning,Paradise Cleaning 14-15,BS32 4NH,"3,159.22",
Communities & Local Government,DCLG,02/07/2014,Facilities Management (ISD use only),Finance & Corporate Services,INTERSERVE (FACILITIES MANAGEMENT),,Large,,364834825,5106204893,Building Management,Eland House Off Site Management 14-15,BS32 4NH,"11,279.32",
Communities & Local Government,DCLG,02/07/2014,Facilities Management (ISD use only),Finance & Corporate Services,INTERSERVE (FACILITIES MANAGEMENT),,Large,,364834825,5106204893,Building Management,Eland House Reception 14-15,BS32 4NH,"4,973.66",
Communities & Local Government,DCLG,02/07/2014,Facilities Management (ISD use only),Finance & Corporate Services,INTERSERVE (FACILITIES MANAGEMENT),,Large,,364834825,5106204893,Building Management,TQH Off Site Management 14-15,BS32 4NH,"7,874.37",
Communities & Local Government,DCLG,02/07/2014,Facilities Management (ISD use only),Finance & Corporate Services,INTERSERVE (FACILITIES MANAGEMENT),,Large,,364834825,5106204893,Building Management,TQH On Site Management 14-15,BS32 4NH,"3,181.32",
Communities & Local Government,DCLG,02/07/2014,Facilities Management (ISD use only),Finance & Corporate Services,INTERSERVE (FACILITIES MANAGEMENT),,Large,,364834825,5106204893,Building Management,TQH Reception 14-15,BS32 4NH,"1,663.29",
Communities & Local Government,DCLG,02/07/2014,Facilities Management (ISD use only),Finance & Corporate Services,INTERSERVE (FACILITIES MANAGEMENT),,Large,,364834825,5106204893,Building Management,Hemel Hemp Off Site Management 14-15,BS32 4NH,890.50,
Communities & Local Government,DCLG,02/07/2014,Facilities Management (ISD use only),Finance & Corporate Services,INTERSERVE (FACILITIES MANAGEMENT),,Large,,364834825,5106204893,Building Management,Rivergate Off Site Management 14-15,BS32 4NH,"3,589.89",
Communities & Local Government,DCLG,02/07/2014,Facilities Management (ISD use only),Finance & Corporate Services,INTERSERVE (FACILITIES MANAGEMENT),,Large,,364834825,5106204893,Building Management,Rivergate Reception 14-15,BS32 4NH,"1,653.74",
Communities & Local Government,DCLG,02/07/2014,Facilities Management (ISD use only),Finance & Corporate Services,INTERSERVE (FACILITIES MANAGEMENT),,Large,,364834825,5106204893,Building Management,Bridge House Off Site Management 14-15,BS32 4NH,"1,758.93",
Communities & Local Government,DCLG,02/07/2014,Facilities Management (ISD use only),Finance & Corporate Services,INTERSERVE (FACILITIES MANAGEMENT),,Large,,364834825,5106204893,Building Management,Bridge House On Site Management 14-15,BS32 4NH,"3,663.77",
Communities & Local Government,DCLG,02/07/2014,Facilities Management (ISD use only),Finance & Corporate Services,INTERSERVE (FACILITIES MANAGEMENT),,Large,,364834825,5106204893,Building Management,Citygate Off Site Management 14-15,BS32 4NH,"2,988.76",
Communities & Local Government,DCLG,02/07/2014,Facilities Management (ISD use only),Finance & Corporate Services,INTERSERVE (FACILITIES MANAGEMENT),,Large,,364834825,5106204893,Building Management,Citygate On Site Management 14-15,BS32 4NH,"2,529.54",
Communities & Local Government,DCLG,02/07/2014,Facilities Management (ISD use only),Finance & Corporate Services,INTERSERVE (FACILITIES MANAGEMENT),,Large,,364834825,5106204893,Building Management,Citygate Reception 14-15,BS32 4NH,"1,612.32",
Communities & Local Government,DCLG,02/07/2014,Facilities Management (ISD use only),Finance & Corporate Services,INTERSERVE (FACILITIES MANAGEMENT),,Large,,364834825,5106204893,Building Management,Queen Street Off Site Management 14-15,BS32 4NH,"1,619.18",
Communities & Local Government,DCLG,02/07/2014,Facilities Management (ISD use only),Finance & Corporate Services,INTERSERVE (FACILITIES MANAGEMENT),,Large,,364834825,5106204893,Building Management,5SPP Off Site Management 14-15,BS32 4NH,"2,953.94",
Communities & Local Government,DCLG,02/07/2014,Facilities Management (ISD use only),Finance & Corporate Services,INTERSERVE (FACILITIES MANAGEMENT),,Large,,364834825,5106204893,Building Management,5SPP On Site Management 14-15,BS32 4NH,"3,032.33",
Communities & Local Government,DCLG,02/07/2014,Facilities Management (ISD use only),Finance & Corporate Services,INTERSERVE (FACILITIES MANAGEMENT),,Large,,364834825,5106204893,Building Management,5SPP Reception 14-15,BS32 4NH,"2,854.01",
Communities & Local Government,DCLG,02/07/2014,Facilities Management (ISD use only),Finance & Corporate Services,INTERSERVE (FACILITIES MANAGEMENT),,Large,,364834825,5106204893,Building Management,Paradise Off Site Management 14-15,BS32 4NH,"1,698.13",
Communities & Local Government,DCLG,02/07/2014,Fixed Maintenance,Finance & Corporate Services,INTERSERVE (FACILITIES MANAGEMENT),,Large,,364834825,5106204893,Environmental Services,Bridge House Grounds Maintenance 14-15,BS32 4NH,262.97,
Communities & Local Government,DCLG,02/07/2014,Fixed Maintenance,Finance & Corporate Services,INTERSERVE (FACILITIES MANAGEMENT),,Large,,364834825,5106204893,Environmental Services,Queen Street Grounds Maintenance 14-15,BS32 4NH,13.35,
Communities & Local Government,DCLG,02/07/2014,Fixed Maintenance,Finance & Corporate Services,INTERSERVE (FACILITIES MANAGEMENT),,Large,,364834825,5106204893,Construction Service Providers,Eland House Maintenance 14-15,BS32 4NH,"39,930.53",
Communities & Local Government,DCLG,02/07/2014,Fixed Maintenance,Finance & Corporate Services,INTERSERVE (FACILITIES MANAGEMENT),,Large,,364834825,5106204893,Construction Service Providers,TQH Maintenance 14-15,BS32 4NH,"6,027.81",
Communities & Local Government,DCLG,02/07/2014,Fixed Maintenance,Finance & Corporate Services,INTERSERVE (FACILITIES MANAGEMENT),,Large,,364834825,5106204893,Construction Service Providers,Hemel Hemp Maintenance 14-15,BS32 4NH,"5,437.63",
Communities & Local Government,DCLG,02/07/2014,Fixed Maintenance,Finance & Corporate Services,INTERSERVE (FACILITIES MANAGEMENT),,Large,,364834825,5106204893,Construction Service Providers,Rivergate Maintenance 14-15,BS32 4NH,"3,840.85",
Communities & Local Government,DCLG,02/07/2014,Fixed Maintenance,Finance & Corporate Services,INTERSERVE (FACILITIES MANAGEMENT),,Large,,364834825,5106204893,Construction Service Providers,Bridge House Maintenance 14-15,BS32 4NH,"5,059.73",
Communities & Local Government,DCLG,02/07/2014,Fixed Maintenance,Finance & Corporate Services,INTERSERVE (FACILITIES MANAGEMENT),,Large,,364834825,5106204893,Construction Service Providers,Citygate Maintenance 14-15,BS32 4NH,"3,637.07",
Communities & Local Government,DCLG,02/07/2014,Fixed Maintenance,Finance & Corporate Services,INTERSERVE (FACILITIES MANAGEMENT),,Large,,364834825,5106204893,Construction Service Providers,Queen Street Maintenance 14-15,BS32 4NH,"6,633.13",
Communities & Local Government,DCLG,02/07/2014,Fixed Maintenance,Finance & Corporate Services,INTERSERVE (FACILITIES MANAGEMENT),,Large,,364834825,5106204893,Construction Service Providers,5SPP Maintenance 14-15,BS32 4NH,"10,952.47",
Communities & Local Government,DCLG,02/07/2014,Fixed Maintenance,Finance & Corporate Services,INTERSERVE (FACILITIES MANAGEMENT),,Large,,364834825,5106204893,Construction Service Providers,Paradise Maintenance 14-15,BS32 4NH,"7,911.01",
Communities & Local Government,DCLG,02/07/2014,Grant in Aid to NDPBs (non budget),Neighbourhoods,HOMES & COMMUNITIES AGENCY,,Public Bodies,,215576860,2100244362,,HCASCT Monthly HCA Grant in Aid Claim,NE11 0NA,"291,777,080.00",Yes
Communities & Local Government,DCLG,02/07/2014,IT - Service Contracts,Finance & Corporate Services,FUJITSU SERVICES LTD,,Large,,423375062,5106204818,Managed / Outsourced Services,"FY 13/14 New Requirements ""NR"" Charges",WA3 9BD,"2,347.00",
Communities & Local Government,DCLG,02/07/2014,IT - Service Contracts,Finance & Corporate Services,FUJITSU SERVICES LTD,,Large,,423375062,5106204841,Managed / Outsourced Services,"FY 13/14 New Requirements ""NR"" Charges",WA3 9BD,"2,500.00",
Communities & Local Government,DCLG,02/07/2014,IT - Service Contracts,Neighbourhoods,DEXTROUS WEB LTD,,Micro,,211267270,5106204887,Managed / Outsourced Services,Hosting support and RAMP,N1 7NG,868.80,
Communities & Local Government,DCLG,02/07/2014,IT - Software Maintenance,Finance & Corporate Services,KAIZEN ASSOCIATES LTD,,Micro,,217482430,5106204837,Managed / Outsourced Services,SAP Application Support,SE1 6SW,"1,311.92",
Communities & Local Government,DCLG,02/07/2014,Office Supplies,Localism,BANNER BUSINESS SUPPLIES LTD,,Large,,236638362,5106204568,Office Supplies,DELWEEKLY Banner A4 Recycled Copier Pape,NR3 1PD,241.45,
Communities & Local Government,DCLG,02/07/2014,Office Supplies,Localism,BANNER BUSINESS SUPPLIES LTD,,Large,,236638362,5106204568,Office Supplies,DELWEEKLY Banner Fine Ballpoint Pen Blac,NR3 1PD,1.50,
Communities & Local Government,DCLG,02/07/2014,Office Supplies,Localism,BANNER BUSINESS SUPPLIES LTD,,Large,,236638362,5106204568,Office Supplies,DELWEEKLY Banner Fine Ballpoint Pen Blue,NR3 1PD,3.22,
Communities & Local Government,DCLG,02/07/2014,Office Supplies,Localism,BANNER BUSINESS SUPPLIES LTD,,Large,,236638362,5106204568,Office Supplies,DELWEEKLY Banner Fine Ballpoint Pen Red,NR3 1PD,3.22,
Communities & Local Government,DCLG,02/07/2014,Office Supplies,Localism,BANNER BUSINESS SUPPLIES LTD,,Large,,236638362,5106204568,Office Supplies,DELWEEKLY Banner Staples 24/6,NR3 1PD,2.37,
Communities & Local Government,DCLG,02/07/2014,Photocopying,Finance & Corporate Services,INTERSERVE (FACILITIES MANAGEMENT),,Large,,364834825,5106204893,Operational Services,Eland House Reproduction 14-15,BS32 4NH,353.08,
Communities & Local Government,DCLG,02/07/2014,Photocopying,Finance & Corporate Services,INTERSERVE (FACILITIES MANAGEMENT),,Large,,364834825,5106204893,Operational Services,TQH Reproduction 14-15,BS32 4NH,"6,529.09",
Communities & Local Government,DCLG,02/07/2014,Photocopying,Finance & Corporate Services,INTERSERVE (FACILITIES MANAGEMENT),,Large,,364834825,5106204893,Operational Services,Hemel Hemp Reproduction 14-15,BS32 4NH,126.33,
Communities & Local Government,DCLG,02/07/2014,Photocopying,Finance & Corporate Services,INTERSERVE (FACILITIES MANAGEMENT),,Large,,364834825,5106204893,Operational Services,5SPP Reproduction 14-15,BS32 4NH,353.08,
Communities & Local Government,DCLG,02/07/2014,Printing,"Strategy, Communications and Private Office",STATIONERY OFFICE LTD,,Large,,779375633,5106204880,Printing Services,Non-Vatable,NR3 1PD,165.00,
Communities & Local Government,DCLG,02/07/2014,Printing,"Strategy, Communications and Private Office",STATIONERY OFFICE LTD,,Large,,779375633,5106204880,Printing Services,Vatable,NR3 1PD,130.00,
Communities & Local Government,DCLG,02/07/2014,Professional services,Neighbourhoods,VALUATION OFFICE AGENCY,,Public Bodies,,215253886,5106204768,Financial,Financial Checks/Fees 2011/12,W1B 5BU,"1,026.50",
Communities & Local Government,DCLG,02/07/2014,Professional services,Neighbourhoods,VALUATION OFFICE AGENCY,,Public Bodies,,215253886,5106204769,Financial,Financial Checks/Fees 2011/12,W1B 5BU,"1,503.15",
Communities & Local Government,DCLG,02/07/2014,Publications,Finance & Corporate Services,JONES YARRELL LEADENHALL LTD,,Large,,211522354,5106204897,Learning and Development Materials,Journal and Newspaper supply 2014-15,E3 3JH,328.46,
Communities & Local Government,DCLG,02/07/2014,Publicity,"Strategy, Communications and Private Office",JONES YARRELL LEADENHALL LTD,,Large,,211522354,5106204903,Advertising,Newspaper and Magazines 14/15,E3 3JH,"1,132.87",
Communities & Local Government,DCLG,02/07/2014,Security,Finance & Corporate Services,INTERSERVE (FACILITIES MANAGEMENT),,Large,,364834825,5106204893,Security,Eland House Security 14-15,BS32 4NH,"20,047.44",
Communities & Local Government,DCLG,02/07/2014,Security,Finance & Corporate Services,INTERSERVE (FACILITIES MANAGEMENT),,Large,,364834825,5106204893,Security,TQH Security 14-15,BS32 4NH,"9,286.58",
Communities & Local Government,DCLG,02/07/2014,Security,Finance & Corporate Services,INTERSERVE (FACILITIES MANAGEMENT),,Large,,364834825,5106204893,Security,Hemel Hemp Security 14-15,BS32 4NH,"4,270.93",
Communities & Local Government,DCLG,02/07/2014,Security,Finance & Corporate Services,INTERSERVE (FACILITIES MANAGEMENT),,Large,,364834825,5106204893,Security,Rivergate Security 14-15,BS32 4NH,"6,764.25",
Communities & Local Government,DCLG,02/07/2014,Security,Finance & Corporate Services,INTERSERVE (FACILITIES MANAGEMENT),,Large,,364834825,5106204893,Security,Bridge House Security 14-15,BS32 4NH,"3,210.57",
Communities & Local Government,DCLG,02/07/2014,Security,Finance & Corporate Services,INTERSERVE (FACILITIES MANAGEMENT),,Large,,364834825,5106204893,Security,Citygate Security 14-15,BS32 4NH,"2,546.82",
Communities & Local Government,DCLG,02/07/2014,Security,Finance & Corporate Services,INTERSERVE (FACILITIES MANAGEMENT),,Large,,364834825,5106204893,Security,Queen Street Security 14-15,BS32 4NH,"2,355.01",
Communities & Local Government,DCLG,02/07/2014,Security,Finance & Corporate Services,INTERSERVE (FACILITIES MANAGEMENT),,Large,,364834825,5106204893,Security,5SPP Security 14-15,BS32 4NH,"4,816.46",
Communities & Local Government,DCLG,02/07/2014,Security,Finance & Corporate Services,INTERSERVE (FACILITIES MANAGEMENT),,Large,,364834825,5106204893,Security,Paradise Security 14-15,BS32 4NH,"2,145.00",
Communities & Local Government,DCLG,02/07/2014,Steady State Service Provision,Neighbourhoods,BUILDING RESEARCH ESTABLISHMENT,,Large,,896495033,5106204882,Business Process Outsourcing Services,Advice to DCLG next steps,WD25 9XX,"3,700.80",
Communities & Local Government,DCLG,02/07/2014,Training,Localism,SHEFFIELD CITY COUNCIL,,Large,,210659905,5106204885,Development and Training,Public Service Reform Workshop,S1 2HH,555.75,
Communities & Local Government,DCLG,02/07/2014,Waste Disposal and pest control,Finance & Corporate Services,INTERSERVE (FACILITIES MANAGEMENT),,Large,,364834825,5106204893,Waste Management Services,Eland House Waste 14-15,BS32 4NH,"3,291.36",
Communities & Local Government,DCLG,02/07/2014,Waste Disposal and pest control,Finance & Corporate Services,INTERSERVE (FACILITIES MANAGEMENT),,Large,,364834825,5106204893,Waste Management Services,TQH Waste 14-15,BS32 4NH,"1,301.76",
Communities & Local Government,DCLG,02/07/2014,Waste Disposal and pest control,Finance & Corporate Services,INTERSERVE (FACILITIES MANAGEMENT),,Large,,364834825,5106204893,Waste Management Services,Hemel Hemp Waste 14-15,BS32 4NH,271.36,
Communities & Local Government,DCLG,02/07/2014,Waste Disposal and pest control,Finance & Corporate Services,INTERSERVE (FACILITIES MANAGEMENT),,Large,,364834825,5106204893,Waste Management Services,Rivergate Waste 14-15,BS32 4NH,917.18,
Communities & Local Government,DCLG,02/07/2014,Waste Disposal and pest control,Finance & Corporate Services,INTERSERVE (FACILITIES MANAGEMENT),,Large,,364834825,5106204893,Waste Management Services,Bridge House Waste 14-15,BS32 4NH,523.78,
Communities & Local Government,DCLG,02/07/2014,Waste Disposal and pest control,Finance & Corporate Services,INTERSERVE (FACILITIES MANAGEMENT),,Large,,364834825,5106204893,Waste Management Services,Citygate Waste 14-15,BS32 4NH,881.29,
Communities & Local Government,DCLG,02/07/2014,Waste Disposal and pest control,Finance & Corporate Services,INTERSERVE (FACILITIES MANAGEMENT),,Large,,364834825,5106204893,Waste Management Services,Queen Street Waste 14-15,BS32 4NH,483.15,
Communities & Local Government,DCLG,02/07/2014,Waste Disposal and pest control,Finance & Corporate Services,INTERSERVE (FACILITIES MANAGEMENT),,Large,,364834825,5106204893,Waste Management Services,5SPP Waste 14-15,BS32 4NH,871.18,
Communities & Local Government,DCLG,02/07/2014,Waste Disposal and pest control,Finance & Corporate Services,INTERSERVE (FACILITIES MANAGEMENT),,Large,,364834825,5106204893,Waste Management Services,Paradise Waste 14-15,BS32 4NH,506.16,
Communities & Local Government,DCLG,02/07/2014,Work In Progress Pre-Cert 40373 Spend,Neighbourhoods,CREATIVE ENGLAND LTD,,,,,7600009009,,Revenue Grant To Be Paid,BS1 5SP,"90,896.08",Yes
Communities & Local Government,DCLG,02/07/2014,Work In Progress Pre-Cert 40373 Spend,Neighbourhoods,KEY FUND INVESTMENTS LTD,,Small,,,7600009005,,Revenue Grant To Be Paid,S9 3TY,"12,768.33",Yes
Communities & Local Government,DCLG,02/07/2014,Work In Progress Pre-Cert 40373 Spend,Neighbourhoods,KEY FUND INVESTMENTS LTD,,Small,,,7600009006,,Revenue Grant To Be Paid,S9 3TY,"29,946.84",Yes
Communities & Local Government,DCLG,02/07/2014,Work In Progress Pre-Cert 40373 Spend,Neighbourhoods,WAKEFIELD COUNCIL,,Large,,,7600009004,,Revenue Grant To Be Paid,WF1 2EB,"95,393.04",Yes
Communities & Local Government,DCLG,02/07/2014,Work In Progress Pre-Cert 40467 Spend,Neighbourhoods,BALANUS ASSETS LTD,,Micro,,,7600009007,,Capital Grant To Be Paid,NR20 5LG,"186,688.06",Yes
Communities & Local Government,DCLG,02/07/2014,Work In Progress Pre-Cert 40467 Spend,Neighbourhoods,BURNLEY BOROUGH COUNCIL,,Large,,,2300002127,,Recovery of irregular payment,BB11 9SA,"-6,808.96",Yes
Communities & Local Government,DCLG,02/07/2014,Work In Progress Pre-Cert 40467 Spend,Neighbourhoods,DRANSFIELD PROPERTIES LTD,,,,,7600009008,,Capital Grant To Be Paid,S75 3DP,"253,763.88",Yes
Communities & Local Government,DCLG,02/07/2014,Work In Progress Pre-Cert 40467 Spend,Neighbourhoods,KEY FUND INVESTMENTS LTD,,Small,,,7600009005,,Capital Grant To Be Paid,S9 3TY,"89,570.08",Yes
Communities & Local Government,DCLG,02/07/2014,Work In Progress Pre-Cert 40467 Spend,Neighbourhoods,KEY FUND INVESTMENTS LTD,,Small,,,7600009006,,Capital Grant To Be Paid,S9 3TY,"157,290.05",Yes
Communities & Local Government,DCLG,02/07/2014,Work In Progress Pre-Cert 40467 Spend,Neighbourhoods,TORBAY ECONOMIC DEVELOPMENT COMPANY,,,,,7600009010,,Capital Grant To Be Paid,TQ2 5QW,"3,986.89",Yes
Communities & Local Government,DCLG,03/07/2014,Advertising,"Strategy, Communications and Private Office",ENTER HERE LLP,,Medium,,672098311,5106204936,Advertising,Fire Kills extension 14/15,EC1R 0JH,"9,000.00",
Communities & Local Government,DCLG,03/07/2014,Agency Staff,Localism,CAPITA BUS. SERV. LTD (CSL),,Large,,215580993,5106204935,Contingent Labour,Interim Manager,DL1 9HB,"1,752.30",
Communities & Local Government,DCLG,03/07/2014,Agency Staff,Neighbourhoods,LOCAL PARTNERSHIPS LLP,,,,211702438,5106204932,Contingent Labour,Temp comrc�l advsr to DCLG hsg prjct Dec13 (Local Prtnrshp)                   ,SW1P 3HZ,"10,009.20",
Communities & Local Government,DCLG,03/07/2014,Agency Staff,Neighbourhoods,LOCAL PARTNERSHIPS LLP,,,,211702438,5106204933,Contingent Labour,Temp comr�l advsr to DCLG hsg prjct Feb14 (Local Prtnrshp)                     ,SW1P 3HZ,"14,895.00",
Communities & Local Government,DCLG,03/07/2014,Agency Staff,Neighbourhoods,LOCAL PARTNERSHIPS LLP,,,,211702438,5106204934,Contingent Labour,Temp comr�l advsr to DCLG hsg prjct Jan14 (Local Prtnrshp),SW1P 3HZ,"11,518.80",
Communities & Local Government,DCLG,03/07/2014,Current (non AEF) Grants to Local Authorities,Localism,NORTH DEVON DC,,,,,2600061880,,Bellwin final claim,EX31 1EA,"24,987.00",Yes
Communities & Local Government,DCLG,03/07/2014,Current (non AEF) Grants to Local Authorities,Localism,SOMERSET COUNTY CNCL,,,,211229406,2600061887,,Interim Bellwin claim for Somerset CC,TA1 4DY,"661,650.00",Yes
Communities & Local Government,DCLG,03/07/2014,IT - Service Contracts,Finance & Corporate Services,FUJITSU SERVICES LTD,,Large,,423375062,5106204942,Managed / Outsourced Services,"FY13/14 DRP Charges ""DRP1Table Charges",WA3 9BD,"12,176.48",
Communities & Local Government,DCLG,03/07/2014,IT - Service Contracts,Finance & Corporate Services,FUJITSU SERVICES LTD,,Large,,423375062,5106204943,Managed / Outsourced Services,"FY14/15 Storage Charges (""S""TableCharge)",WA3 9BD,"11,036.05",
Communities & Local Government,DCLG,03/07/2014,IT - Service Contracts,Finance & Corporate Services,FUJITSU SERVICES LTD,,Large,,423375062,5106204944,Managed / Outsourced Services,"FY13/14 LOBA Charges""LoBA MatrixCharges""",WA3 9BD,"23,554.53",
Communities & Local Government,DCLG,03/07/2014,IT - Service Contracts,Finance & Corporate Services,FUJITSU SERVICES LTD,,Large,,423375062,5106204946,Managed / Outsourced Services,"FY14/15 Storage Charges (""S""TableCharge)",WA3 9BD,"11,036.05",
Communities & Local Government,DCLG,03/07/2014,IT - Service Contracts,Finance & Corporate Services,FUJITSU SERVICES LTD,,Large,,423375062,5106204949,Managed / Outsourced Services,"FY13/14 SIAM Charges ""M""Table Charges)",WA3 9BD,"51,791.03",
Communities & Local Government,DCLG,03/07/2014,IT - Service Contracts,Neighbourhoods,AECOM LIMITED,,Large,,225157072,5106204923,Managed / Outsourced Services,Non-Domestic EPC Software Validation Ser,AL1 3ER,"2,121.13",
Communities & Local Government,DCLG,03/07/2014,Legal Fees,Neighbourhoods,PETER BRETT ASSOCIATES LLP,,Large,,,5106204912,Legal,Provision of Legal Advice,EC1V 4LJ,"6,795.00",
Communities & Local Government,DCLG,03/07/2014,Professional services,Finance & Corporate Services,DAWES & FRASER CONSULTING LTD,,Small,,,5106204922,Business and Commercial Services,Contract and Technical support for IPC C,SE20 7BS,"9,006.00",
Communities & Local Government,DCLG,03/07/2014,Professional services,Finance & Corporate Services,DAWES & FRASER CONSULTING LTD,,Small,,,5106204922,Business and Commercial Services,Expenses,SE20 7BS,362.05,
Communities & Local Government,DCLG,03/07/2014,Professional services,Finance & Corporate Services,E C HARRIS LLP,,Large,,,5106204793,Construction Service Providers,PAMU Com - 101 - TFM Support - TG,N1 9AB,"-4,104.00",
Communities & Local Government,DCLG,03/07/2014,Professional services,Finance & Corporate Services,E C HARRIS LLP,,Large,,,5106204927,Construction Service Providers,PAMU Com 119 TFM SM Support PM,N1 9AB,"6,775.14",
Communities & Local Government,DCLG,03/07/2014,Professional services,Finance & Corporate Services,E C HARRIS LLP,,Large,,,5106204928,Construction Service Providers,PAMU Com - 23 TFM Support - FE - Ext,N1 9AB,"3,876.00",
Communities & Local Government,DCLG,03/07/2014,Steady State Service Provision,Localism,LOCALITY,,Medium,,347998312,5106204937,Business Process Outsourcing Services,Addiitonal Demand/Capacity,N1 6DR,"36,000.00",
Communities & Local Government,DCLG,03/07/2014,Steady State Service Provision,Localism,LOCALITY,,Medium,,347998312,5106204938,Business Process Outsourcing Services,Community Ownership of Assets - year 3,N1 6DR,"79,261.34",
Communities & Local Government,DCLG,03/07/2014,Training,Finance & Corporate Services,CAPITA BUS. SERV. LTD (CSL),,Large,,215580993,5106204955,Development and Training,Operational Delivery Professional qualif,DL1 9HB,"2,455.70",
Communities & Local Government,DCLG,03/07/2014,Training,Finance & Corporate Services,DODS PARLIAMENTARY COMM  LTD,,Large,,290673748,5106204910,Development and Training,Unlocking the Senior Civil Service Confe,SW1H 9BP,265.50,
Communities & Local Government,DCLG,03/07/2014,Web Services,"Strategy, Communications and Private Office",DEXTROUS WEB LTD,,Micro,,211267270,5106204855,ICT Services,Departmental Intranet support,N1 7NG,540.00,
Communities & Local Government,DCLG,03/07/2014,Web Services,"Strategy, Communications and Private Office",HELPFUL TECHNOLOGY LTD,,Micro,,216608694,5106204930,ICT Services,Right to buy website support July 14,BR3 4EY,"1,020.00",
Communities & Local Government,DCLG,03/07/2014,Web Services,"Strategy, Communications and Private Office",HELPFUL TECHNOLOGY LTD,,Micro,,216608694,5106204930,ICT Services,Right to buy website support till May 14,BR3 4EY,"1,980.00",
Communities & Local Government,DCLG,03/07/2014,Work In Progress Pre-Cert 40373 Spend,Neighbourhoods,BRADFORD  MDC,,,,,7600009019,,Revenue Grant To Be Paid,BD1 1HY,"124,672.27",Yes
Communities & Local Government,DCLG,03/07/2014,Work In Progress Pre-Cert 40373 Spend,Neighbourhoods,EAST RIDING OF YORKSHIRE COUNCIL,,,,,7600009018,,Revenue Grant To Be Paid,HU17 9BA,"30,455.24",Yes
Communities & Local Government,DCLG,03/07/2014,Work In Progress Pre-Cert 40373 Spend,Neighbourhoods,EAST RIDING OF YORKSHIRE COUNCIL,,,,,7600009023,,Revenue Grant To Be Paid,HU17 9BA,"58,551.32",Yes
Communities & Local Government,DCLG,03/07/2014,Work In Progress Pre-Cert 40373 Spend,Neighbourhoods,KIRKLEES COUNCIL,,,,,7600009024,,Revenue Grant To Be Paid,HD1 2TG,"25,548.56",Yes
Communities & Local Government,DCLG,03/07/2014,Work In Progress Pre-Cert 40373 Spend,Neighbourhoods,NORTH YORKSHIRE COUNTY COUNCIL,,Large,,,7600009025,,Revenue Grant To Be Paid,DL7 8AL,"245,793.22",Yes
Communities & Local Government,DCLG,03/07/2014,Work In Progress Pre-Cert 40373 Spend,Neighbourhoods,PRINCES TRUST,,Large,,,7600009013,,Revenue Grant To Be Paid,LS2 8NG,"14,539.99",Yes
Communities & Local Government,DCLG,03/07/2014,Work In Progress Pre-Cert 40373 Spend,Neighbourhoods,PRINCES TRUST,,Large,,,7600009014,,Revenue Grant To Be Paid,LS2 8NG,"6,508.90",Yes
Communities & Local Government,DCLG,03/07/2014,Work In Progress Pre-Cert 40373 Spend,Neighbourhoods,STH WEST MANUFACTURING ADV SERVICE,,,,,7600009027,,Revenue Grant To Be Paid,TA6 6DF,"126,659.81",Yes
Communities & Local Government,DCLG,03/07/2014,Work In Progress Pre-Cert 40373 Spend,Neighbourhoods,UNIVERSITY OF PLYMOUTH GENERAL A/C,,,,,7600009017,,Revenue Grant To Be Paid,PL4 8AA,"154,384.72",Yes
Communities & Local Government,DCLG,03/07/2014,Work In Progress Pre-Cert 40373 Spend,Neighbourhoods,UNIVERSITY OF PLYMOUTH GENERAL A/C,,,,,7600009020,,Revenue Grant To Be Paid,PL4 8AA,"163,842.85",Yes
Communities & Local Government,DCLG,03/07/2014,Work In Progress Pre-Cert 40373 Spend,Neighbourhoods,WSX ENTERPRISE LIMITED,,,,,7600009016,,Revenue Grant To Be Paid,PO16 7BJ,"77,040.50",Yes
Communities & Local Government,DCLG,03/07/2014,Work In Progress Pre-Cert 40373 Spend,Neighbourhoods,WSX ENTERPRISE LIMITED,,,,,7600009026,,Revenue Grant To Be Paid,PO16 7BJ,"53,806.89",Yes
Communities & Local Government,DCLG,03/07/2014,Work In Progress Pre-Cert 40373 Spend,Neighbourhoods,YORKS & HUMBER PEOPLE UTD AGAINST C,,,,,7600009021,,Revenue Grant Clawback Offset,S1 2AH,-10.91,Yes
Communities & Local Government,DCLG,03/07/2014,Work In Progress Pre-Cert 40373 Spend,Neighbourhoods,YORKS & HUMBER PEOPLE UTD AGAINST C,,,,,7600009021,,Revenue Grant To Be Paid,S1 2AH,"20,052.14",Yes
Communities & Local Government,DCLG,03/07/2014,Work In Progress Pre-Cert 40373 Spend,Neighbourhoods,YORKS & HUMBER PEOPLE UTD AGAINST C,,,,,7600009022,,Revenue Grant Clawback Offset,S1 2AH,-8.03,Yes
Communities & Local Government,DCLG,03/07/2014,Work In Progress Pre-Cert 40373 Spend,Neighbourhoods,YORKS & HUMBER PEOPLE UTD AGAINST C,,,,,7600009022,,Revenue Grant To Be Paid,S1 2AH,"38,517.57",Yes
Communities & Local Government,DCLG,03/07/2014,Work In Progress Pre-Cert 40467 Spend,Neighbourhoods,FORTDOWN DEVELOPMENTS LTD,,Micro,,,7600009028,,Capital Grant To Be Paid,TR8 5RU,"203,185.87",Yes
Communities & Local Government,DCLG,03/07/2014,Work In Progress Pre-Cert 40467 Spend,Neighbourhoods,KIRKLEES COUNCIL,,,,,7600009024,,Capital Grant To Be Paid,HD1 2TG,"2,570.83",Yes
Communities & Local Government,DCLG,03/07/2014,Work In Progress Pre-Cert 40467 Spend,Neighbourhoods,NORTH YORKSHIRE COUNTY COUNCIL,,Large,,,7600009025,,Capital Grant To Be Paid,DL7 8AL,"13,441.96",Yes
Communities & Local Government,DCLG,03/07/2014,Work In Progress Pre-Cert 40467 Spend,Neighbourhoods,UNITY HOUSE (WAKEFIELD) LTD,,Micro,,,7600009011,,Capital Grant To Be Paid,LS8 5HS,"200,718.51",Yes
Communities & Local Government,DCLG,03/07/2014,Work In Progress Pre-Cert 40467 Spend,Neighbourhoods,UNITY HOUSE (WAKEFIELD) LTD,,Micro,,,7600009012,,Capital Grant To Be Paid,LS8 5HS,"3,114.93",Yes
Communities & Local Government,DCLG,03/07/2014,Work In Progress Pre-Cert 40467 Spend,Neighbourhoods,UNITY HOUSE (WAKEFIELD) LTD,,Micro,,,7600009015,,Capital Grant To Be Paid,LS8 5HS,"70,214.76",Yes
Communities & Local Government,DCLG,04/07/2014,Accommodation - actuals,Finance & Corporate Services,REDFERN TRAVEL LIMITED,,Small,,213089972,2100244384,,Consolidated Monthly Travel June Hotels,BD1 3AZ,"2,462.45",
Communities & Local Government,DCLG,04/07/2014,Accommodation - actuals,Finance & Corporate Services,REDFERN TRAVEL LIMITED,,Small,,213089972,2100244384,,Consolidated Monthly Travel June Hotels,BD1 3AZ,652.75,
Communities & Local Government,DCLG,04/07/2014,Accommodation - actuals,Localism,REDFERN TRAVEL LIMITED,,Small,,213089972,2100244384,,Consolidated Monthly Travel June Hotels,BD1 3AZ,325.00,
Communities & Local Government,DCLG,04/07/2014,Accommodation - actuals,Localism,REDFERN TRAVEL LIMITED,,Small,,213089972,2100244384,,Consolidated Monthly Travel June Hotels,BD1 3AZ,678.05,
Communities & Local Government,DCLG,04/07/2014,Accommodation - actuals,Localism,REDFERN TRAVEL LIMITED,,Small,,213089972,2100244384,,Consolidated Monthly Travel June Hotels,BD1 3AZ,317.34,
Communities & Local Government,DCLG,04/07/2014,Accommodation - actuals,Localism,REDFERN TRAVEL LIMITED,,Small,,213089972,2100244384,,Consolidated Monthly Travel June Hotels,BD1 3AZ,"3,552.75",
Communities & Local Government,DCLG,04/07/2014,Accommodation - actuals,Localism,REDFERN TRAVEL LIMITED,,Small,,213089972,2100244384,,Consolidated Monthly Travel June Hotels,BD1 3AZ,866.30,
Communities & Local Government,DCLG,04/07/2014,Accommodation - actuals,Localism,REDFERN TRAVEL LIMITED,,Small,,213089972,2100244384,,Consolidated Monthly Travel June Hotels,BD1 3AZ,504.53,
Communities & Local Government,DCLG,04/07/2014,Accommodation - actuals,Localism,REDFERN TRAVEL LIMITED,,Small,,213089972,2100244384,,Consolidated Monthly Travel June Hotels,BD1 3AZ,664.15,
Communities & Local Government,DCLG,04/07/2014,Accommodation - actuals,Localism,REDFERN TRAVEL LIMITED,,Small,,213089972,2100244384,,Consolidated Monthly Travel June Hotels,BD1 3AZ,"1,012.00",
Communities & Local Government,DCLG,04/07/2014,Accommodation - actuals,Neighbourhoods,REDFERN TRAVEL LIMITED,,Small,,213089972,2100244384,,Consolidated Monthly Travel June Hotels,BD1 3AZ,527.95,
Communities & Local Government,DCLG,04/07/2014,Accommodation - actuals,Neighbourhoods,REDFERN TRAVEL LIMITED,,Small,,213089972,2100244384,,Consolidated Monthly Travel June Hotels,BD1 3AZ,270.00,
Communities & Local Government,DCLG,04/07/2014,Accommodation - actuals,Neighbourhoods,REDFERN TRAVEL LIMITED,,Small,,213089972,2100244384,,Consolidated Monthly Travel June Hotels,BD1 3AZ,"1,809.79",
Communities & Local Government,DCLG,04/07/2014,Accommodation - actuals,Neighbourhoods,REDFERN TRAVEL LIMITED,,Small,,213089972,2100244384,,Consolidated Monthly Travel June Hotels,BD1 3AZ,310.98,
Communities & Local Government,DCLG,04/07/2014,Accommodation - actuals,Neighbourhoods,REDFERN TRAVEL LIMITED,,Small,,213089972,2100244384,,Consolidated Monthly Travel June Hotels,BD1 3AZ,"2,025.26",
Communities & Local Government,DCLG,04/07/2014,Accommodation - actuals,Neighbourhoods,REDFERN TRAVEL LIMITED,,Small,,213089972,2100244384,,Consolidated Monthly Travel June Hotels,BD1 3AZ,317.00,
Communities & Local Government,DCLG,04/07/2014,Accommodation - actuals,Neighbourhoods,REDFERN TRAVEL LIMITED,,Small,,213089972,2100244384,,Consolidated Monthly Travel June Hotels,BD1 3AZ,809.95,
Communities & Local Government,DCLG,04/07/2014,Accommodation - actuals,Neighbourhoods,REDFERN TRAVEL LIMITED,,Small,,213089972,2100244384,,Consolidated Monthly Travel June Hotels,BD1 3AZ,825.75,
Communities & Local Government,DCLG,04/07/2014,Accommodation - actuals,"Strategy, Communications and Private Office",REDFERN TRAVEL LIMITED,,Small,,213089972,2100244384,,Consolidated Monthly Travel June Hotels,BD1 3AZ,255.00,
Communities & Local Government,DCLG,04/07/2014,Accommodation - actuals,"Strategy, Communications and Private Office",REDFERN TRAVEL LIMITED,,Small,,213089972,2100244384,,Consolidated Monthly Travel June Hotels,BD1 3AZ,308.60,
Communities & Local Government,DCLG,04/07/2014,Accommodation - actuals,"Strategy, Communications and Private Office",REDFERN TRAVEL LIMITED,,Small,,213089972,2100244384,,Consolidated Monthly Travel June Hotels,BD1 3AZ,650.45,
Communities & Local Government,DCLG,04/07/2014,Accommodation - actuals,Troubled Families,REDFERN TRAVEL LIMITED,,Small,,213089972,2100244384,,Consolidated Monthly Travel June Hotels,BD1 3AZ,"2,004.51",
Communities & Local Government,DCLG,04/07/2014,Agency Staff,Finance & Corporate Services,REED SPECIALIST RECRUITMENT LTD,,Large,,288656960,5106204966,Contingent Labour,Planning Casework,NN1 1UE,362.69,
Communities & Local Government,DCLG,04/07/2014,Agency Staff,Neighbourhoods,CAPITA BUS. SERV. LTD (CSL),,Large,,215580993,5106204959,Contingent Labour,Interim Manager,DL1 9HB,405.68,
Communities & Local Government,DCLG,04/07/2014,Agency Staff,Neighbourhoods,CAPITA BUS. SERV. LTD (CSL),,Large,,215580993,5106204963,Contingent Labour,Interim and Specialist Contractor,DL1 9HB,"3,797.04",
Communities & Local Government,DCLG,04/07/2014,Agency Staff,Neighbourhoods,REED SPECIALIST RECRUITMENT LTD,,Large,,288656960,5106204957,Contingent Labour,Planning casework AWR Extension1 Month,NN1 1UE,708.91,
Communities & Local Government,DCLG,04/07/2014,Air Travel,Finance & Corporate Services,REDFERN TRAVEL LIMITED,,Small,,213089972,2100244384,,Consolidated Monthly Travel June Air Tickets,BD1 3AZ,267.10,
Communities & Local Government,DCLG,04/07/2014,Air Travel,Finance & Corporate Services,REDFERN TRAVEL LIMITED,,Small,,213089972,2100244384,,Consolidated Monthly Travel June Air Tickets,BD1 3AZ,570.35,
Communities & Local Government,DCLG,04/07/2014,Air Travel,Neighbourhoods,REDFERN TRAVEL LIMITED,,Small,,213089972,2100244384,,Consolidated Monthly Travel June Air Tickets,BD1 3AZ,340.15,
Communities & Local Government,DCLG,04/07/2014,Air Travel,Neighbourhoods,REDFERN TRAVEL LIMITED,,Small,,213089972,2100244384,,Consolidated Monthly Travel June Air Tickets,BD1 3AZ,325.00,
Communities & Local Government,DCLG,04/07/2014,Air Travel,Neighbourhoods,REDFERN TRAVEL LIMITED,,Small,,213089972,2100244384,,Consolidated Monthly Travel June Air Tickets,BD1 3AZ,"1,844.02",
Communities & Local Government,DCLG,04/07/2014,Air Travel,"Strategy, Communications and Private Office",REDFERN TRAVEL LIMITED,,Small,,213089972,2100244384,,Consolidated Monthly Travel June Air Tickets,BD1 3AZ,"3,428.70",
Communities & Local Government,DCLG,04/07/2014,Cap Grants to Local Authorities (DEL),Neighbourhoods,DERBYSHIRE COUNTY COUNCIL,,,,232152967,2100243460,,Enterprise Zones,DE4 3AH,"4,164,800.00",Yes
Communities & Local Government,DCLG,04/07/2014,Current (non AEF) Grants to Local Authorities,Finance & Corporate Services,DURHAM & DARLINGTON FIRE RESCUE SER,,Public Bodies,,424872851,2100242011,,Regional Centre Centre Grant,DH1 1TW,"150,320.92",Yes
Communities & Local Government,DCLG,04/07/2014,Current (non AEF) Grants to Local Authorities,Finance & Corporate Services,GREATER LONDON AUTHORITY,,Large,,225353416,2100241997,,Regional Centre Centre Grant,SE10 1AP,"142,073.92",Yes
Communities & Local Government,DCLG,04/07/2014,Current (non AEF) Grants to Local Authorities,Finance & Corporate Services,GREATER MANCHESTER FIRE & RESCUE,,Public Bodies,,424873172,2100241985,,Regional Centre Centre Grant,M27 8US,"105,122.25",Yes
Communities & Local Government,DCLG,04/07/2014,Current (non AEF) Grants to Local Authorities,Localism,SOMERSET COUNTY CNCL,,,,211229406,2600061888,,Somerset CC Bellwin interim payments,TA1 4DY,"116,761.00",Yes
Communities & Local Government,DCLG,04/07/2014,Current Grants to Non Profit Bodies,Localism,DEPT FOR EDUCATION,,Public Bodies,,237031612,2100244428,,FWW Centenary Battlefield Project  Transfer to DFE,CF14 3UW,"601,800.00",Yes
Communities & Local Government,DCLG,04/07/2014,"Furniture, Fittings and carpets",Finance & Corporate Services,KINNARPS (UK) LIMITED,,Medium,,217351477,5106204976,"Furniture, Fixtures and Fittings",Grs Floor Lockers - Rivergate Hse,SL3 0DX,"1,389.56",
Communities & Local Government,DCLG,04/07/2014,IT - Service Contracts,Finance & Corporate Services,FUJITSU SERVICES LTD,,Large,,423375062,5106204806,Managed / Outsourced Services,"FY13/14 Desktop Charges ""D""Table Charges",WA3 9BD,"51,870.31",
Communities & Local Government,DCLG,04/07/2014,IT - Service Contracts,Finance & Corporate Services,FUJITSU SERVICES LTD,,Large,,423375062,5106204941,Managed / Outsourced Services,"FY13/14 Desktop Charges ""D""Table Charges",WA3 9BD,211.57,
Communities & Local Government,DCLG,04/07/2014,IT - Service Contracts,Finance & Corporate Services,FUJITSU SERVICES LTD,,Large,,423375062,5106204945,Managed / Outsourced Services,"FY13/14 Desktop Charges ""D""Table Charges",WA3 9BD,"1,945.32",
Communities & Local Government,DCLG,04/07/2014,IT - Service Contracts,Finance & Corporate Services,FUJITSU SERVICES LTD,,Large,,423375062,5106204947,Managed / Outsourced Services,"FY13/14 Desktop Charges ""D""Table Charges",WA3 9BD,"93,293.84",
Communities & Local Government,DCLG,04/07/2014,IT - Service Contracts,Finance & Corporate Services,FUJITSU SERVICES LTD,,Large,,423375062,5106204948,Managed / Outsourced Services,"FY13/14 Desktop Charges ""D""Table Charges",WA3 9BD,"7,781.28",
Communities & Local Government,DCLG,04/07/2014,IT - Service Contracts,Finance & Corporate Services,FUJITSU SERVICES LTD,,Large,,423375062,5106204950,Managed / Outsourced Services,"FY 13/14 New Requirements ""NR"" Charges",WA3 9BD,"2,500.00",
Communities & Local Government,DCLG,04/07/2014,IT - Service Contracts,Finance & Corporate Services,FUJITSU SERVICES LTD,,Large,,423375062,5106204951,Managed / Outsourced Services,"FY13/14 Desktop Charges ""D""Table Charges",WA3 9BD,"1,263.88",
Communities & Local Government,DCLG,04/07/2014,IT - Service Contracts,Finance & Corporate Services,FUJITSU SERVICES LTD,,Large,,423375062,5106204985,Managed / Outsourced Services,CNFJDCLG017 Horizon setup,WA3 9BD,"8,379.00",
Communities & Local Government,DCLG,04/07/2014,IT - Service Contracts,Finance & Corporate Services,FUJITSU SERVICES LTD,,Large,,423375062,5106204986,Managed / Outsourced Services,CNFJDCLG045 RAS 60 Day Checker,WA3 9BD,"17,043.00",
Communities & Local Government,DCLG,04/07/2014,IT - Software Maintenance,Finance & Corporate Services,INSIGHT DIRECT (UK) LTD,,Large,,,5106204960,Managed / Outsourced Services,Symantec NetBackup support 2014-15,UB8 1PH,"22,314.17",
Communities & Local Government,DCLG,04/07/2014,Printing,"Strategy, Communications and Private Office",STATIONERY OFFICE LTD,,Large,,779375633,5106204975,Printing Services,Non-Vatable,NR3 1PD,165.00,
Communities & Local Government,DCLG,04/07/2014,Printing,"Strategy, Communications and Private Office",STATIONERY OFFICE LTD,,Large,,779375633,5106204975,Printing Services,Vatable,NR3 1PD,130.00,
Communities & Local Government,DCLG,04/07/2014,Professional services,Localism,VALUATION OFFICE AGENCY,,Public Bodies,,215253886,2100244382,Environmental Services,Payment for July 2014 work on NNDR and CTax,W1B 5BU,"12,083,333.00",
Communities & Local Government,DCLG,04/07/2014,"Rail, Underground and Eurostar",Finance & Corporate Services,REDFERN TRAVEL LIMITED,,Small,,213089972,2100244384,,Consolidated Monthly Travel June Rail,BD1 3AZ,"2,872.53",
Communities & Local Government,DCLG,04/07/2014,"Rail, Underground and Eurostar",Finance & Corporate Services,REDFERN TRAVEL LIMITED,,Small,,213089972,2100244384,,Consolidated Monthly Travel June Rail,BD1 3AZ,547.07,
Communities & Local Government,DCLG,04/07/2014,"Rail, Underground and Eurostar",Finance & Corporate Services,REDFERN TRAVEL LIMITED,,Small,,213089972,2100244384,,Consolidated Monthly Travel June Rail,BD1 3AZ,575.13,
Communities & Local Government,DCLG,04/07/2014,"Rail, Underground and Eurostar",Finance & Corporate Services,REDFERN TRAVEL LIMITED,,Small,,213089972,2100244384,,Consolidated Monthly Travel June Rail,BD1 3AZ,"1,925.49",
Communities & Local Government,DCLG,04/07/2014,"Rail, Underground and Eurostar",Finance & Corporate Services,REDFERN TRAVEL LIMITED,,Small,,213089972,2100244384,,Consolidated Monthly Travel June Rail,BD1 3AZ,680.36,
Communities & Local Government,DCLG,04/07/2014,"Rail, Underground and Eurostar",Finance & Corporate Services,REDFERN TRAVEL LIMITED,,Small,,213089972,2100244384,,Consolidated Monthly Travel June Rail,BD1 3AZ,"6,528.24",
Communities & Local Government,DCLG,04/07/2014,"Rail, Underground and Eurostar",Finance & Corporate Services,REDFERN TRAVEL LIMITED,,Small,,213089972,2100244384,,Consolidated Monthly Travel June Rail,BD1 3AZ,923.61,
Communities & Local Government,DCLG,04/07/2014,"Rail, Underground and Eurostar",Finance & Corporate Services,REDFERN TRAVEL LIMITED,,Small,,213089972,2100244384,,Consolidated Monthly Travel June Rail,BD1 3AZ,653.89,
Communities & Local Government,DCLG,04/07/2014,"Rail, Underground and Eurostar",Finance & Corporate Services,REDFERN TRAVEL LIMITED,,Small,,213089972,2100244384,,Consolidated Monthly Travel June Rail,BD1 3AZ,279.77,
Communities & Local Government,DCLG,04/07/2014,"Rail, Underground and Eurostar",Finance & Corporate Services,REDFERN TRAVEL LIMITED,,Small,,213089972,2100244384,,Consolidated Monthly Travel June Rail,BD1 3AZ,"1,143.26",
Communities & Local Government,DCLG,04/07/2014,"Rail, Underground and Eurostar",Finance & Corporate Services,REDFERN TRAVEL LIMITED,,Small,,213089972,2100244384,,Consolidated Monthly Travel June Rail,BD1 3AZ,"2,667.06",
Communities & Local Government,DCLG,04/07/2014,"Rail, Underground and Eurostar",Finance & Corporate Services,REDFERN TRAVEL LIMITED,,Small,,213089972,2100244384,,Consolidated Monthly Travel June Rail,BD1 3AZ,519.82,
Communities & Local Government,DCLG,04/07/2014,"Rail, Underground and Eurostar",Localism,REDFERN TRAVEL LIMITED,,Small,,213089972,2100244384,,Consolidated Monthly Travel June Rail,BD1 3AZ,776.53,
Communities & Local Government,DCLG,04/07/2014,"Rail, Underground and Eurostar",Localism,REDFERN TRAVEL LIMITED,,Small,,213089972,2100244384,,Consolidated Monthly Travel June Rail,BD1 3AZ,"1,466.72",
Communities & Local Government,DCLG,04/07/2014,"Rail, Underground and Eurostar",Localism,REDFERN TRAVEL LIMITED,,Small,,213089972,2100244384,,Consolidated Monthly Travel June Rail,BD1 3AZ,271.16,
Communities & Local Government,DCLG,04/07/2014,"Rail, Underground and Eurostar",Localism,REDFERN TRAVEL LIMITED,,Small,,213089972,2100244384,,Consolidated Monthly Travel June Rail,BD1 3AZ,"1,105.06",
Communities & Local Government,DCLG,04/07/2014,"Rail, Underground and Eurostar",Localism,REDFERN TRAVEL LIMITED,,Small,,213089972,2100244384,,Consolidated Monthly Travel June Rail,BD1 3AZ,723.48,
Communities & Local Government,DCLG,04/07/2014,"Rail, Underground and Eurostar",Localism,REDFERN TRAVEL LIMITED,,Small,,213089972,2100244384,,Consolidated Monthly Travel June Rail,BD1 3AZ,471.74,
Communities & Local Government,DCLG,04/07/2014,"Rail, Underground and Eurostar",Localism,REDFERN TRAVEL LIMITED,,Small,,213089972,2100244384,,Consolidated Monthly Travel June Rail,BD1 3AZ,"1,659.51",
Communities & Local Government,DCLG,04/07/2014,"Rail, Underground and Eurostar",Localism,REDFERN TRAVEL LIMITED,,Small,,213089972,2100244384,,Consolidated Monthly Travel June Rail,BD1 3AZ,965.43,
Communities & Local Government,DCLG,04/07/2014,"Rail, Underground and Eurostar",Localism,REDFERN TRAVEL LIMITED,,Small,,213089972,2100244384,,Consolidated Monthly Travel June Rail,BD1 3AZ,606.23,
Communities & Local Government,DCLG,04/07/2014,"Rail, Underground and Eurostar",Localism,REDFERN TRAVEL LIMITED,,Small,,213089972,2100244384,,Consolidated Monthly Travel June Rail,BD1 3AZ,"2,235.72",
Communities & Local Government,DCLG,04/07/2014,"Rail, Underground and Eurostar",Localism,REDFERN TRAVEL LIMITED,,Small,,213089972,2100244384,,Consolidated Monthly Travel June Rail,BD1 3AZ,397.06,
Communities & Local Government,DCLG,04/07/2014,"Rail, Underground and Eurostar",Localism,REDFERN TRAVEL LIMITED,,Small,,213089972,2100244384,,Consolidated Monthly Travel June Rail,BD1 3AZ,305.55,
Communities & Local Government,DCLG,04/07/2014,"Rail, Underground and Eurostar",Localism,REDFERN TRAVEL LIMITED,,Small,,213089972,2100244384,,Consolidated Monthly Travel June Rail,BD1 3AZ,814.93,
Communities & Local Government,DCLG,04/07/2014,"Rail, Underground and Eurostar",Localism,REDFERN TRAVEL LIMITED,,Small,,213089972,2100244384,,Consolidated Monthly Travel June Rail,BD1 3AZ,"1,001.37",
Communities & Local Government,DCLG,04/07/2014,"Rail, Underground and Eurostar",Localism,REDFERN TRAVEL LIMITED,,Small,,213089972,2100244384,,Consolidated Monthly Travel June Rail,BD1 3AZ,"3,094.47",
Communities & Local Government,DCLG,04/07/2014,"Rail, Underground and Eurostar",Localism,REDFERN TRAVEL LIMITED,,Small,,213089972,2100244384,,Consolidated Monthly Travel June Rail,BD1 3AZ,"1,148.75",
Communities & Local Government,DCLG,04/07/2014,"Rail, Underground and Eurostar",Localism,REDFERN TRAVEL LIMITED,,Small,,213089972,2100244384,,Consolidated Monthly Travel June Rail,BD1 3AZ,"1,094.13",
Communities & Local Government,DCLG,04/07/2014,"Rail, Underground and Eurostar",Localism,REDFERN TRAVEL LIMITED,,Small,,213089972,2100244384,,Consolidated Monthly Travel June Rail,BD1 3AZ,"1,634.77",
Communities & Local Government,DCLG,04/07/2014,"Rail, Underground and Eurostar",Localism,REDFERN TRAVEL LIMITED,,Small,,213089972,2100244384,,Consolidated Monthly Travel June Rail,BD1 3AZ,332.64,
Communities & Local Government,DCLG,04/07/2014,"Rail, Underground and Eurostar",Localism,REDFERN TRAVEL LIMITED,,Small,,213089972,2100244384,,Consolidated Monthly Travel June Rail,BD1 3AZ,"2,048.09",
Communities & Local Government,DCLG,04/07/2014,"Rail, Underground and Eurostar",Localism,REDFERN TRAVEL LIMITED,,Small,,213089972,2100244384,,Consolidated Monthly Travel June Rail,BD1 3AZ,"1,155.07",
Communities & Local Government,DCLG,04/07/2014,"Rail, Underground and Eurostar",Localism,REDFERN TRAVEL LIMITED,,Small,,213089972,2100244384,,Consolidated Monthly Travel June Rail,BD1 3AZ,"6,177.27",
Communities & Local Government,DCLG,04/07/2014,"Rail, Underground and Eurostar",Neighbourhoods,REDFERN TRAVEL LIMITED,,Small,,213089972,2100244384,,Consolidated Monthly Travel June Rail,BD1 3AZ,378.48,
Communities & Local Government,DCLG,04/07/2014,"Rail, Underground and Eurostar",Neighbourhoods,REDFERN TRAVEL LIMITED,,Small,,213089972,2100244384,,Consolidated Monthly Travel June Rail,BD1 3AZ,778.01,
Communities & Local Government,DCLG,04/07/2014,"Rail, Underground and Eurostar",Neighbourhoods,REDFERN TRAVEL LIMITED,,Small,,213089972,2100244384,,Consolidated Monthly Travel June Rail,BD1 3AZ,"1,579.72",
Communities & Local Government,DCLG,04/07/2014,"Rail, Underground and Eurostar",Neighbourhoods,REDFERN TRAVEL LIMITED,,Small,,213089972,2100244384,,Consolidated Monthly Travel June Rail,BD1 3AZ,"4,828.51",
Communities & Local Government,DCLG,04/07/2014,"Rail, Underground and Eurostar",Neighbourhoods,REDFERN TRAVEL LIMITED,,Small,,213089972,2100244384,,Consolidated Monthly Travel June Rail,BD1 3AZ,"4,836.84",
Communities & Local Government,DCLG,04/07/2014,"Rail, Underground and Eurostar",Neighbourhoods,REDFERN TRAVEL LIMITED,,Small,,213089972,2100244384,,Consolidated Monthly Travel June Rail,BD1 3AZ,603.16,
Communities & Local Government,DCLG,04/07/2014,"Rail, Underground and Eurostar",Neighbourhoods,REDFERN TRAVEL LIMITED,,Small,,213089972,2100244384,,Consolidated Monthly Travel June Rail,BD1 3AZ,758.21,
Communities & Local Government,DCLG,04/07/2014,"Rail, Underground and Eurostar",Neighbourhoods,REDFERN TRAVEL LIMITED,,Small,,213089972,2100244384,,Consolidated Monthly Travel June Rail,BD1 3AZ,"1,956.00",
Communities & Local Government,DCLG,04/07/2014,"Rail, Underground and Eurostar",Neighbourhoods,REDFERN TRAVEL LIMITED,,Small,,213089972,2100244384,,Consolidated Monthly Travel June Rail,BD1 3AZ,"1,013.95",
Communities & Local Government,DCLG,04/07/2014,"Rail, Underground and Eurostar",Neighbourhoods,REDFERN TRAVEL LIMITED,,Small,,213089972,2100244384,,Consolidated Monthly Travel June Rail,BD1 3AZ,327.28,
Communities & Local Government,DCLG,04/07/2014,"Rail, Underground and Eurostar",Neighbourhoods,REDFERN TRAVEL LIMITED,,Small,,213089972,2100244384,,Consolidated Monthly Travel June Rail,BD1 3AZ,"1,428.40",
Communities & Local Government,DCLG,04/07/2014,"Rail, Underground and Eurostar",Neighbourhoods,REDFERN TRAVEL LIMITED,,Small,,213089972,2100244384,,Consolidated Monthly Travel June Rail,BD1 3AZ,"4,434.10",
Communities & Local Government,DCLG,04/07/2014,"Rail, Underground and Eurostar",Neighbourhoods,REDFERN TRAVEL LIMITED,,Small,,213089972,2100244384,,Consolidated Monthly Travel June Rail,BD1 3AZ,"3,646.09",
Communities & Local Government,DCLG,04/07/2014,"Rail, Underground and Eurostar",Neighbourhoods,REDFERN TRAVEL LIMITED,,Small,,213089972,2100244384,,Consolidated Monthly Travel June Rail,BD1 3AZ,"4,347.43",
Communities & Local Government,DCLG,04/07/2014,"Rail, Underground and Eurostar",Neighbourhoods,REDFERN TRAVEL LIMITED,,Small,,213089972,2100244384,,Consolidated Monthly Travel June Rail,BD1 3AZ,"1,122.15",
Communities & Local Government,DCLG,04/07/2014,"Rail, Underground and Eurostar",Neighbourhoods,REDFERN TRAVEL LIMITED,,Small,,213089972,2100244384,,Consolidated Monthly Travel June Rail,BD1 3AZ,"1,492.89",
Communities & Local Government,DCLG,04/07/2014,"Rail, Underground and Eurostar",Neighbourhoods,REDFERN TRAVEL LIMITED,,Small,,213089972,2100244384,,Consolidated Monthly Travel June Rail,BD1 3AZ,512.48,
Communities & Local Government,DCLG,04/07/2014,"Rail, Underground and Eurostar",Neighbourhoods,REDFERN TRAVEL LIMITED,,Small,,213089972,2100244384,,Consolidated Monthly Travel June Rail,BD1 3AZ,"2,362.87",
Communities & Local Government,DCLG,04/07/2014,"Rail, Underground and Eurostar",Neighbourhoods,REDFERN TRAVEL LIMITED,,Small,,213089972,2100244384,,Consolidated Monthly Travel June Rail,BD1 3AZ,"1,826.65",
Communities & Local Government,DCLG,04/07/2014,"Rail, Underground and Eurostar",Neighbourhoods,REDFERN TRAVEL LIMITED,,Small,,213089972,2100244384,,Consolidated Monthly Travel June Rail,BD1 3AZ,"1,322.58",
Communities & Local Government,DCLG,04/07/2014,"Rail, Underground and Eurostar",Neighbourhoods,REDFERN TRAVEL LIMITED,,Small,,213089972,2100244384,,Consolidated Monthly Travel June Rail,BD1 3AZ,"4,638.19",
Communities & Local Government,DCLG,04/07/2014,"Rail, Underground and Eurostar",Neighbourhoods,REDFERN TRAVEL LIMITED,,Small,,213089972,2100244384,,Consolidated Monthly Travel June Rail,BD1 3AZ,"5,640.68",
Communities & Local Government,DCLG,04/07/2014,"Rail, Underground and Eurostar","Strategy, Communications and Private Office",REDFERN TRAVEL LIMITED,,Small,,213089972,2100244384,,Consolidated Monthly Travel June Rail,BD1 3AZ,"1,454.04",
Communities & Local Government,DCLG,04/07/2014,"Rail, Underground and Eurostar","Strategy, Communications and Private Office",REDFERN TRAVEL LIMITED,,Small,,213089972,2100244384,,Consolidated Monthly Travel June Rail,BD1 3AZ,424.36,
Communities & Local Government,DCLG,04/07/2014,"Rail, Underground and Eurostar","Strategy, Communications and Private Office",REDFERN TRAVEL LIMITED,,Small,,213089972,2100244384,,Consolidated Monthly Travel June Rail,BD1 3AZ,273.65,
Communities & Local Government,DCLG,04/07/2014,"Rail, Underground and Eurostar","Strategy, Communications and Private Office",REDFERN TRAVEL LIMITED,,Small,,213089972,2100244384,,Consolidated Monthly Travel June Rail,BD1 3AZ,942.46,
Communities & Local Government,DCLG,04/07/2014,"Rail, Underground and Eurostar","Strategy, Communications and Private Office",REDFERN TRAVEL LIMITED,,Small,,213089972,2100244384,,Consolidated Monthly Travel June Rail,BD1 3AZ,764.12,
Communities & Local Government,DCLG,04/07/2014,"Rail, Underground and Eurostar","Strategy, Communications and Private Office",REDFERN TRAVEL LIMITED,,Small,,213089972,2100244384,,Consolidated Monthly Travel June Rail,BD1 3AZ,540.99,
Communities & Local Government,DCLG,04/07/2014,"Rail, Underground and Eurostar",Troubled Families,REDFERN TRAVEL LIMITED,,Small,,213089972,2100244384,,Consolidated Monthly Travel June Rail,BD1 3AZ,"7,494.45",
Communities & Local Government,DCLG,04/07/2014,Recruitment,Finance & Corporate Services,HM REVENUE & CUSTOMS,,Public Bodies,,365117972,5106204990,Business Process Outsourcing Services,Psychometric testing 13/15,BN12 4XH,"9,705.45",
Communities & Local Government,DCLG,04/07/2014,Steady State Service Provision,Localism,MOTT MACDONALD LTD,,Large,,225250398,5106204993,Business Process Outsourcing Services,Core Service Period 1 (Jun 13-May 15),BN1 4FY,"55,872.92",
Communities & Local Government,DCLG,04/07/2014,Telecoms equipment (non-capitalised),Finance & Corporate Services,DAMOVO UK LTD,,Large,,221481042,5106204987,Telecoms,MPLS Circuit Charges 9 sites,RH12 4QP,"7,072.31",
Communities & Local Government,DCLG,04/07/2014,Telecoms equipment (non-capitalised),Finance & Corporate Services,DAMOVO UK LTD,,Large,,221481042,5106204987,Telecoms,Routine Engineering and powerdowns,RH12 4QP,"12,503.58",
Communities & Local Government,DCLG,04/07/2014,Telecoms equipment (non-capitalised),Finance & Corporate Services,DAMOVO UK LTD,,Large,,221481042,5106204987,Telecoms,Telephone Calls,RH12 4QP,"11,760.06",
Communities & Local Government,DCLG,04/07/2014,Telecoms equipment (non-capitalised),Finance & Corporate Services,DAMOVO UK LTD,,Large,,221481042,5106204987,Telecoms,Telephone Support Services,RH12 4QP,"82,621.64",
Communities & Local Government,DCLG,04/07/2014,Travel and Subsistence Account,Localism,NORTHUMBERLAND FIRE & RESCUE SERVIC,,Large,,423679653,5106204816,Business Travel,Northumberland FRAG T&S,NE23 3JP,464.61,
Communities & Local Government,DCLG,04/07/2014,Vehicle Maintenance,Localism,BABCOCK CRITICAL SERVICES LTD,,Large,,641006945,5106204984,Fleet Management,Fixed costs 14/15,NG15 0DR,"661,595.03",
Communities & Local Government,DCLG,04/07/2014,Work In Progress Pre-Cert 40373 Spend,Neighbourhoods,GROUNDWORK SHEFFIELD,Yes,Small,,,7600009029,,Revenue Grant To Be Paid,S1 4DP,"2,926.51",Yes
Communities & Local Government,DCLG,07/07/2014,Agency Staff,Finance & Corporate Services,CAPITA BUS. SERV. LTD (CSL),,Large,,215580993,5106204970,Contingent Labour,Interim Manager,DL1 9HB,"49,992.53",
Communities & Local Government,DCLG,07/07/2014,Agency Staff,Neighbourhoods,CAPITA BUS. SERV. LTD (CSL),,Large,,215580993,5106204965,Contingent Labour,Temporary Contractor (Specialist),DL1 9HB,"5,535.22",
Communities & Local Government,DCLG,07/07/2014,Agency Staff,Localism,CAPITA BUS. SERV. LTD (CSL),,Large,,215580993,5106204962,Contingent Labour,Interim and Specialist Contractor,DL1 9HB,"3,807.94",
Communities & Local Government,DCLG,07/07/2014,Agency Staff,Neighbourhoods,CAPITA BUS. SERV. LTD (CSL),,Large,,215580993,5106204964,Contingent Labour,Interim Manager,DL1 9HB,"6,572.34",
Communities & Local Government,DCLG,07/07/2014,Agency Staff,Neighbourhoods,CAPITA BUS. SERV. LTD (CSL),,Large,,215580993,5106204967,Contingent Labour,Interim assessor,DL1 9HB,"2,028.42",
Communities & Local Government,DCLG,07/07/2014,Agency Staff,Neighbourhoods,CAPITA BUS. SERV. LTD (CSL),,Large,,215580993,5106204968,Contingent Labour,Interim Manager,DL1 9HB,"1,311.94",
Communities & Local Government,DCLG,07/07/2014,Agency Staff,Neighbourhoods,CAPITA BUS. SERV. LTD (CSL),,Large,,215580993,5106204969,Contingent Labour,Interim and Specialist Contractor,DL1 9HB,"1,963.44",
Communities & Local Government,DCLG,07/07/2014,Agency Staff,Neighbourhoods,CAPITA BUS. SERV. LTD (CSL),,Large,,215580993,5106204972,Contingent Labour,Interim and Specialist Contractor,DL1 9HB,"3,327.42",
Communities & Local Government,DCLG,07/07/2014,Agency Staff,Neighbourhoods,CAPITA BUS. SERV. LTD (CSL),,Large,,215580993,5106204974,Contingent Labour,Interim and Specialist Contractor,DL1 9HB,"1,833.60",
Communities & Local Government,DCLG,07/07/2014,Agency Staff,Neighbourhoods,REED SPECIALIST RECRUITMENT LTD,,Large,,288656960,5106204991,Contingent Labour,Planning case work,NN1 1UE,848.02,
Communities & Local Government,DCLG,07/07/2014,Current (non AEF) Grants to Local Authorities,Localism,OXFORDSHIRE CC,,,,228216438,2600061891,,Bellwin claim,OX4 2GQ,"9,017.00",Yes
Communities & Local Government,DCLG,07/07/2014,Current (non AEF) Grants to Local Authorities,Localism,SOUTH OXFORDSHIRE DC,,,,212296766,2600061893,,Bellwin claim,OX10 8ED,"60,029.00",Yes
Communities & Local Government,DCLG,07/07/2014,Current (non AEF) Grants to Local Authorities,Localism,TAUNTON DEANE BC,,,,236185294,2600061890,,Bellwin claim,TA1 1HE,"36,176.00",Yes
Communities & Local Government,DCLG,07/07/2014,Current (non AEF) Grants to Local Authorities,Localism,TEWKESBURY BC,,,,232740399,2600061892,,Bellwin claim,GL20 5TT,"23,614.00",Yes
Communities & Local Government,DCLG,07/07/2014,Current (non AEF) Grants to Local Authorities,Localism,WORCESTER CITY CNCL,,,,227419751,2600061889,,Wocester City - 13-14 Dec - Feb Floods,WR1 2EZ,"51,701.00",Yes
Communities & Local Government,DCLG,07/07/2014,Current Grants to Non Profit Bodies,Localism,NAT ASSOC LOCAL COUNCILS,,,,580214963,2100244429,,Support for Parish Councils,WC1B 3LD,"25,600.00",Yes
Communities & Local Government,DCLG,07/07/2014,Electricity,Finance & Corporate Services,EDF ENERGY 1 LIMITED,,Large,,230840469,5106204997,Energy,Y&H Wakefield Electricity 2014-15,PL3 5XQ,"2,905.54",
Communities & Local Government,DCLG,07/07/2014,Electricity,Finance & Corporate Services,EDF ENERGY 1 LIMITED,,Large,,230840469,5106204998,Energy,SW Taunton Electricity 2013-14,PL3 5XQ,"2,397.17",
Communities & Local Government,DCLG,07/07/2014,Grant in Aid to NDPBs (non budget),Finance & Corporate Services,COMMISSION LOCAL ADMINISTRATION,,,,215271508,2100244376,,DCLG DEl - CLAE Grant in Aid payment July 2014,SW1P 4QP,"840,000.00",Yes
Communities & Local Government,DCLG,07/07/2014,Grant in Aid to NDPBs (non budget),Finance & Corporate Services,VALUATION TRIBUNAL SERVICE,,,,211218366,2100244426,,DCLG DEL - Grant in Aid to VTS - For non dom Rates,E1 1DU,"624,054.00",Yes
Communities & Local Government,DCLG,07/07/2014,Research,Finance & Corporate Services,ECORYS UK LTD,,Medium,,,5106205012,Operational Services,Research - Troubled Families,B1 2RA,"20,179.20",
Communities & Local Government,DCLG,07/07/2014,Services provided by other Govt Orgs,Finance & Corporate Services,DEPARTMENT FOR WORK & PENSIONS,,Public Bodies,,218124765,5106205024,Business and Commercial Services,DCLG Security Vetting 2014-15,FY5 3TA,"3,670.67",Yes
Communities & Local Government,DCLG,07/07/2014,Services provided by other Govt Orgs,Neighbourhoods,VALUATION OFFICE AGENCY,,Public Bodies,,215253886,5106205002,Business and Commercial Services,RTB VOA Valuation 13/14,W1B 5BU,"111,160.77",Yes
Communities & Local Government,DCLG,07/07/2014,Steady State Service Provision,Neighbourhoods,CEL GROUP,,Medium,,394794614,5106205006,Business Process Outsourcing Services,Foundations NCB Contract Ext-Housing Care & Sup Foundation,WA2 0YL,"48,829.33",
Communities & Local Government,DCLG,07/07/2014,Training,Localism,FIRE SERVICE COLLEGE LTD,,,,,5106205015,Learning and Development Materials,National Resilience    ,GL56 0RG,"341,605.00",
Communities & Local Government,DCLG,07/07/2014,Vehicle Maintenance,Localism,BABCOCK CRITICAL SERVICES LTD,,Large,,641006945,5106205013,Fleet Management,Consumables 14/15,NG15 0DR,"30,222.66",
Communities & Local Government,DCLG,07/07/2014,Vehicle Maintenance,Localism,BABCOCK CRITICAL SERVICES LTD,,Large,,641006945,5106205020,Fleet Management,Unplanned maintenance 14/15,NG15 0DR,"5,184.60",
Communities & Local Government,DCLG,07/07/2014,Water,Finance & Corporate Services,COOLERAID LTD,,Medium,,766676985,5106205023,Operation of Water Supplies and Distribution,Water/Rental 2014,CB22 3TJ,740.16,
Communities & Local Government,DCLG,07/07/2014,Work In Progress Pre-Cert 40373 Spend,Neighbourhoods,GWE BUSINESS WEST LTD,,,,,7600009033,,Revenue Grant To Be Paid,BS8 3RA,"25,650.99",Yes
Communities & Local Government,DCLG,07/07/2014,Work In Progress Pre-Cert 40373 Spend,Neighbourhoods,LOUGHBOROUGH UNIVERSITY,,Large,,,2100244480,,Loughborough University,LE11 3TU,"9,508.97",Yes
Communities & Local Government,DCLG,07/07/2014,Work In Progress Pre-Cert 40373 Spend,Neighbourhoods,LOUGHBOROUGH UNIVERSITY,,Large,,,2300002046,,Recovery of irregular payment,LE11 3TU,"-9,508.97",Yes
Communities & Local Government,DCLG,07/07/2014,Work In Progress Pre-Cert 40373 Spend,Neighbourhoods,NOTTINGHAM UNIVERSITY,,Large,,,7600009032,,Revenue Grant To Be Paid,NG7 2RD,"24,914.98",Yes
Communities & Local Government,DCLG,07/07/2014,Work In Progress Pre-Cert 40373 Spend,Neighbourhoods,NTH EAST SOCIAL ENTERPRISE PARTNERS,,,,,7600009036,,Revenue Grant To Be Paid,NE33 4EB,"45,641.49",Yes
Communities & Local Government,DCLG,07/07/2014,Work In Progress Pre-Cert 40373 Spend,Neighbourhoods,NTH EAST SOCIAL ENTERPRISE PARTNERS,,,,,7600009041,,Revenue Grant To Be Paid,NE33 4EB,"51,634.46",Yes
Communities & Local Government,DCLG,07/07/2014,Work In Progress Pre-Cert 40373 Spend,Neighbourhoods,UNIVERSITY OF SHEFFIELD,,,,,7600009034,,Revenue Grant To Be Paid,S60 5TZ,"31,223.59",Yes
Communities & Local Government,DCLG,07/07/2014,Work In Progress Pre-Cert 40373 Spend,Neighbourhoods,UNIVERSITY OF SHEFFIELD,,,,,7600009035,,Revenue Grant To Be Paid,S60 5TZ,"20,821.95",Yes
Communities & Local Government,DCLG,07/07/2014,Work In Progress Pre-Cert 40373 Spend,Neighbourhoods,WSX ENTERPRISE LIMITED,,,,,7600009037,,Revenue Grant To Be Paid,PO16 7BJ,"5,596.73",Yes
Communities & Local Government,DCLG,07/07/2014,Work In Progress Pre-Cert 40373 Spend,Neighbourhoods,WSX ENTERPRISE LIMITED,,,,,7600009042,,Revenue Grant To Be Paid,PO16 7BJ,"23,711.92",Yes
Communities & Local Government,DCLG,07/07/2014,Work In Progress Pre-Cert 40467 Spend,Neighbourhoods,CHESTERFIELD BOROUGH COUNCIL,,Large,,,7600009031,,Capital Grant To Be Paid,S40 1LP,"181,982.21",Yes
Communities & Local Government,DCLG,07/07/2014,Work In Progress Pre-Cert 40467 Spend,Neighbourhoods,HALLENBEAGLE ESTATES LIMITED,,,,,7600009040,,Capital Grant To Be Paid,SL3 9EH,"248,184.01",Yes
Communities & Local Government,DCLG,07/07/2014,Work In Progress Pre-Cert 40467 Spend,Neighbourhoods,HORNCASTLE GROUP PLC,,Medium,,,7600009038,,Capital Grant To Be Paid,HU15 2AT,"14,453.67",Yes
Communities & Local Government,DCLG,07/07/2014,Work In Progress Pre-Cert 40467 Spend,Neighbourhoods,HORNCASTLE GROUP PLC,,Medium,,,7600009039,,Capital Grant To Be Paid,HU15 2AT,"96,868.33",Yes
Communities & Local Government,DCLG,07/07/2014,Work In Progress Pre-Cert 40467 Spend,Neighbourhoods,NOTTINGHAMSHIRE COUNTY COUNCIL,,Large,,,7600009043,,Capital Grant To Be Paid,NG2 7QP,"31,255.00",Yes
Communities & Local Government,DCLG,08/07/2014,Accommodation Service Charges,Neighbourhoods,GVA GRIMLEY LTD,,Large,,210158990,5106204988,Accommodation Services,ERDF YH LDU Valuation Services to Dec 13,B1 2JB,"3,540.00",
Communities & Local Government,DCLG,08/07/2014,Agency Staff,Finance & Corporate Services,INTERQUEST GROUP UK LIMITED,,Large,,423935241,5106205027,Contingent Labour,SAP Support until closedown,EC1N 8TS,"14,184.00",
Communities & Local Government,DCLG,08/07/2014,Agency Staff,Neighbourhoods,CAPITA RESOURCING LTD,,Large,,215581006,5106205044,Contingent Labour,Interim Manager,SL6 1DP,"2,616.00",
Communities & Local Government,DCLG,08/07/2014,Current (non AEF) Grants to Local Authorities,Localism,MALVERN HILLS DC,,,,227470424,2600061894,,Malver Hills DC Bellwin payment for 13/14 floods,WR14 3AF,"19,249.00",Yes
Communities & Local Government,DCLG,08/07/2014,Current (non AEF) Grants to Local Authorities,Localism,SEDGEMOOR DC,,,,211204011,2600061898,,Sedgemoor DC Bellwin payment for 13/14 floods pay,TA6 3AR,"87,326.00",Yes
Communities & Local Government,DCLG,08/07/2014,Current (non AEF) Grants to Local Authorities,Localism,SOUTH SOMERSET DC,,,,239850811,2600061897,,S Somerset DC Bellwin payment for 13/14 floods pay,BA20 2DS,"39,481.00",Yes
Communities & Local Government,DCLG,08/07/2014,Current (non AEF) Grants to Local Authorities,Localism,WEST SOMERSET DC,,,,216015144,2600061896,,W Somerset DC Bellwin payment for 13/14 floods pay,TA4 4QA,"5,175.00",Yes
Communities & Local Government,DCLG,08/07/2014,Current (non AEF) Grants to Local Authorities,Localism,WYRE FOREST DISTRICT COUNCIL,,,,,2600061895,,Wyre Forest DC Bellwin payment for 13/14 floods,DY11 7WF,"62,001.00",Yes
Communities & Local Government,DCLG,08/07/2014,Electricity,Finance & Corporate Services,EDF ENERGY 1 LIMITED,,Large,,230840469,5106205047,Energy,EoE Waterbeach Electricity 2014-15,PL3 5XQ,"3,669.77",
Communities & Local Government,DCLG,08/07/2014,Electricity,Finance & Corporate Services,EDF ENERGY 1 LIMITED,,Large,,230840469,5106205064,Energy,EM Castle Don Electricity 2014-15,PL3 5XQ,"2,617.21",
Communities & Local Government,DCLG,08/07/2014,IT - Service Contracts,Finance & Corporate Services,FUJITSU SERVICES LTD,,Large,,423375062,5106204809,Managed / Outsourced Services,"FY13/14 Desktop Charges ""D""Table Charges",WA3 9BD,"21,905.45",
Communities & Local Government,DCLG,08/07/2014,IT - Service Contracts,Finance & Corporate Services,FUJITSU SERVICES LTD,,Large,,423375062,5106204810,Managed / Outsourced Services,"FY13/14WAN Management Charges(""W""Tables)",WA3 9BD,"58,409.58",
Communities & Local Government,DCLG,08/07/2014,IT - Service Contracts,Finance & Corporate Services,FUJITSU SERVICES LTD,,Large,,423375062,5106204856,Managed / Outsourced Services,"FY 13/14 New Requirements ""NR"" Charges",WA3 9BD,"1,350.00",
Communities & Local Government,DCLG,08/07/2014,IT - Service Contracts,Finance & Corporate Services,FUJITSU SERVICES LTD,,Large,,423375062,5106204859,Managed / Outsourced Services,"FY 13/14 New Requirements ""NR"" Charges",WA3 9BD,"3,022.00",
Communities & Local Government,DCLG,08/07/2014,IT - Service Contracts,Finance & Corporate Services,FUJITSU SERVICES LTD,,Large,,423375062,5106204884,Managed / Outsourced Services,"FY 13/14 New Requirements ""NR"" Charges",WA3 9BD,"4,548.94",
Communities & Local Government,DCLG,08/07/2014,IT - Service Contracts,Finance & Corporate Services,FUJITSU SERVICES LTD,,Large,,423375062,5106204924,Managed / Outsourced Services,"FY 13/14 New Requirements ""NR"" Charges",WA3 9BD,"1,961.00",
Communities & Local Government,DCLG,08/07/2014,IT - Service Contracts,Finance & Corporate Services,FUJITSU SERVICES LTD,,Large,,423375062,5106204925,Managed / Outsourced Services,CNFJDCLG040 PINS Bristol WAN Load Share,WA3 9BD,"18,422.00",
Communities & Local Government,DCLG,08/07/2014,IT - Service Contracts,Finance & Corporate Services,FUJITSU SERVICES LTD,,Large,,423375062,5106204952,Managed / Outsourced Services,"FY 13/14 New Requirements ""NR"" Charges",WA3 9BD,"1,554.00",
Communities & Local Government,DCLG,08/07/2014,IT - Service Contracts,Finance & Corporate Services,FUJITSU SERVICES LTD,,Large,,423375062,5106205009,Managed / Outsourced Services,"FY 13/14 New Requirements ""NR"" Charges",WA3 9BD,"3,825.00",
Communities & Local Government,DCLG,08/07/2014,IT - Service Contracts,Finance & Corporate Services,FUJITSU SERVICES LTD,,Large,,423375062,5106205021,Managed / Outsourced Services,"FY14/15 Storage Charges (""S""TableCharge)",WA3 9BD,"-11,036.05",
Communities & Local Government,DCLG,08/07/2014,IT - Service Contracts,Localism,LOCALITY,,Medium,,347998312,5106205067,Managed / Outsourced Services,Direct Support - Our Place,N1 6DR,"11,014.00",
Communities & Local Government,DCLG,08/07/2014,IT - Service Contracts,Localism,LOCALITY,,Medium,,347998312,5106205067,Managed / Outsourced Services,management fee - Our Place,N1 6DR,"14,458.00",
Communities & Local Government,DCLG,08/07/2014,IT Maintenance,Finance & Corporate Services,INFORMATION SECURITY SYSTEMS LTD,,Micro,,735620416,5106204850,ICT Services,Brent Telephony Support Services 2014-16,HP12 3RL,"4,550.00",
Communities & Local Government,DCLG,08/07/2014,IT Maintenance,Finance & Corporate Services,ORACLE CORPORATION UK LTD,,Large,,291601524,5106205033,ICT Services,Annual support for SUN hardware 2014/15,RG6 1RA,"4,260.06",
Communities & Local Government,DCLG,08/07/2014,Legal Fees,Finance & Corporate Services,TREASURY SOLICITORS DEPT,,Public Bodies,,215580680,5106205026,Legal,Provision of Legal Advice,WC2B 4TS,"1,795.09",
Communities & Local Government,DCLG,08/07/2014,Legal Fees,Finance & Corporate Services,TREASURY SOLICITORS DEPT,,Public Bodies,,215580680,5106205037,Legal,Provision of Legal Advice,WC2B 4TS,"141,631.28",
Communities & Local Government,DCLG,08/07/2014,Legal Fees,Finance & Corporate Services,TREASURY SOLICITORS DEPT,,Public Bodies,,215580680,5106205037,Legal,Provision of Legal Advice,WC2B 4TS,72.00,
Communities & Local Government,DCLG,08/07/2014,Legal Fees,Finance & Corporate Services,TREASURY SOLICITORS DEPT,,Public Bodies,,215580680,5106205048,Legal,Provision of Legal Advice,WC2B 4TS,478.32,
Communities & Local Government,DCLG,08/07/2014,Professional services,Localism,GOVT ACTUARYS DEPARTMENT,,Public Bodies,,233567432,5106205042,Financial,WFPP 2014/15 budget for acturial advice,EC4A 1AB,"45,131.41",
Communities & Local Government,DCLG,08/07/2014,Professional services,Localism,GOVT ACTUARYS DEPARTMENT,,Public Bodies,,233567432,5106205051,Financial,WFPP 2014/15 budget for acturial advice,EC4A 1AB,"17,391.45",
Communities & Local Government,DCLG,08/07/2014,Professional services,Localism,GOVT ACTUARYS DEPARTMENT,,Public Bodies,,233567432,5106205059,Financial,WFPP 2014/15 budget for acturial advice,EC4A 1AB,"57,519.04",
Communities & Local Government,DCLG,08/07/2014,Professional services,Neighbourhoods,RICARDO-AEA LTD,,Large,,,5106205058,Technical Services,Aviation Safeguarding Tool,OX11 0QR,"2,548.80",
Communities & Local Government,DCLG,08/07/2014,Publications,Finance & Corporate Services,SWETS INFORMATION SERVICES LTD,,Large,,216230292,5106205063,Learning and Development Materials,Journals supply 2014-15,OX14 1UQ,510.37,
Communities & Local Government,DCLG,08/07/2014,Recruitment,Finance & Corporate Services,HM REVENUE & CUSTOMS,,Public Bodies,,365117972,5106205025,Business Process Outsourcing Services,Psychometric testing 14/15,BN12 4XH,"1,516.95",
Communities & Local Government,DCLG,08/07/2014,Services provided by other Govt Orgs,Neighbourhoods,VALUATION OFFICE AGENCY,,Public Bodies,,215253886,5106205003,Business and Commercial Services,RTB VOA Valuation 13/14,W1B 5BU,"69,225.19",Yes
Communities & Local Government,DCLG,08/07/2014,Services provided by other Govt Orgs,Neighbourhoods,VALUATION OFFICE AGENCY,,Public Bodies,,215253886,5106205004,Business and Commercial Services,RTB VOA Valuation 13/14,W1B 5BU,"83,850.90",Yes
Communities & Local Government,DCLG,08/07/2014,Steady State Service Provision,Localism,LOCALITY,,Medium,,347998312,5106205067,Business Process Outsourcing Services,Grant Admin - Our Place,N1 6DR,950.00,
Communities & Local Government,DCLG,08/07/2014,Steady State Service Provision,Localism,SOCIAL INVESTMENT BUSINESS,,Small,,211067898,5106205010,Business Process Outsourcing Services,Community Right to Challenge,WC1H 8AG,"78,360.00",
Communities & Local Government,DCLG,08/07/2014,Steady State Service Provision,Neighbourhoods,TRIBAL EDUCATION-MANAGEMENT FEES,,Large,,221445146,5106205032,Business Process Outsourcing Services,Payment to Tribal re Empty Homes Community Fund for DCLG,BS2 8RR,"6,788.16",
Communities & Local Government,DCLG,08/07/2014,Telecoms equipment (non-capitalised),Finance & Corporate Services,DAMOVO UK LTD,,Large,,221481042,5106204847,Telecoms,Core Infrastructure Marsham St CCN029,RH12 4QP,"66,559.20",
Communities & Local Government,DCLG,08/07/2014,Telecoms equipment (non-capitalised),Finance & Corporate Services,DAMOVO UK LTD,,Large,,221481042,5106205019,Telecoms,Core Infrastructure Marsham St CCN029,RH12 4QP,"1,380.00",
Communities & Local Government,DCLG,08/07/2014,Training,Finance & Corporate Services,CAPITA BUS. SERV. LTD (CSL),,Large,,215580993,5106205028,Development and Training,Presentation Skills,DL1 9HB,293.00,
Communities & Local Government,DCLG,08/07/2014,Training,Finance & Corporate Services,CAPITA BUS. SERV. LTD (CSL),,Large,,215580993,5106205029,Development and Training,FS: Postgraduate Certificate in Manageme,DL1 9HB,"3,000.00",
Communities & Local Government,DCLG,08/07/2014,Training,Finance & Corporate Services,CAPITA BUS. SERV. LTD (CSL),,Large,,215580993,5106205031,Development and Training,Presentation Skills,DL1 9HB,293.00,
Communities & Local Government,DCLG,08/07/2014,Training,Finance & Corporate Services,DODS PARLIAMENTARY COMM  LTD,,Large,,290673748,5106205049,Development and Training,Unlocking the Senior Civil Service: Secu,SW1H 9BP,295.00,
Communities & Local Government,DCLG,08/07/2014,Training,Finance & Corporate Services,KAPLAN FINANCIAL LIMITED,,,,210416648,5106205066,Development and Training,"ACCA P1 Governance, Risk & Ethics Questi",NE1 3PA,126.66,
Communities & Local Government,DCLG,08/07/2014,Training,Finance & Corporate Services,KAPLAN FINANCIAL LIMITED,,,,210416648,5106205066,Development and Training,"ACCA P1 Governance, Risk & Ethics Revisi",NE1 3PA,267.11,
Communities & Local Government,DCLG,08/07/2014,Training,Finance & Corporate Services,KAPLAN FINANCIAL LIMITED,,,,210416648,5106205066,Development and Training,"ACCA P1 Governance, Risk and Ethics Tuit",NE1 3PA,329.57,
Communities & Local Government,DCLG,08/07/2014,Travel and Subsistence Account,Localism,DIAL A CAB,,Medium,,225338235,2100244482,Business Travel,Travel June 2014,N1 6AH,201.18,
Communities & Local Government,DCLG,08/07/2014,Travel and Subsistence Account,"Strategy, Communications and Private Office",DIAL A CAB,,Medium,,225338235,2100244482,Business Travel,Travel June 2014,N1 6AH,61.86,
Communities & Local Government,DCLG,08/07/2014,Travel and Subsistence Account,"Strategy, Communications and Private Office",DIAL A CAB,,Medium,,225338235,2100244482,Business Travel,Travel June 2014,N1 6AH,185.92,
Communities & Local Government,DCLG,08/07/2014,Travel and Subsistence Account,"Strategy, Communications and Private Office",DIAL A CAB,,Medium,,225338235,2100244482,Business Travel,Travel June 2014,N1 6AH,166.60,
Communities & Local Government,DCLG,08/07/2014,Travel and Subsistence Account,"Strategy, Communications and Private Office",DIAL A CAB,,Medium,,225338235,2100244482,Business Travel,Travel June 2014,N1 6AH,65.31,
Communities & Local Government,DCLG,08/07/2014,Water,Finance & Corporate Services,SEVERN TRENT WATER LTD,,Large,,234404465,5106205045,Operation of Water Supplies and Distribution,2013/14 St Philips B ham Annual Water,CV3 9FJ,"2,076.18",
Communities & Local Government,DCLG,08/07/2014,Work In Progress Pre-Cert 40373 Spend,Neighbourhoods,CHESTER UNIVERSITY,,,,,7600009047,,Revenue Grant To Be Paid,WA2 0DB,"49,918.09",Yes
Communities & Local Government,DCLG,08/07/2014,Work In Progress Pre-Cert 40373 Spend,Neighbourhoods,ECONOMIC SOLUTIONS LIMITED,,Large,,,7600009050,,Revenue Grant Clawback Offset,M1 5JW,-210.34,Yes
Communities & Local Government,DCLG,08/07/2014,Work In Progress Pre-Cert 40373 Spend,Neighbourhoods,ECONOMIC SOLUTIONS LIMITED,,Large,,,7600009050,,Revenue Grant To Be Paid,M1 5JW,"3,657.55",Yes
Communities & Local Government,DCLG,08/07/2014,Work In Progress Pre-Cert 40373 Spend,Neighbourhoods,ECONOMIC SOLUTIONS LIMITED,,Large,,,7600009051,,Revenue Grant Clawback Offset,M1 5JW,-842.75,Yes
Communities & Local Government,DCLG,08/07/2014,Work In Progress Pre-Cert 40373 Spend,Neighbourhoods,ECONOMIC SOLUTIONS LIMITED,,Large,,,7600009051,,Revenue Grant To Be Paid,M1 5JW,"64,065.59",Yes
Communities & Local Government,DCLG,08/07/2014,Work In Progress Pre-Cert 40373 Spend,Neighbourhoods,ECONOMIC SOLUTIONS LIMITED,,Large,,,7600009052,,Revenue Grant To Be Paid,M1 5JW,"8,117.06",Yes
Communities & Local Government,DCLG,08/07/2014,Work In Progress Pre-Cert 40373 Spend,Neighbourhoods,ECONOMIC SOLUTIONS LIMITED,,Large,,,7600009053,,Revenue Grant To Be Paid,M1 5JW,"51,968.39",Yes
Communities & Local Government,DCLG,08/07/2014,Work In Progress Pre-Cert 40373 Spend,Neighbourhoods,ECONOMIC SOLUTIONS LIMITED,,Large,,,7600009054,,Revenue Grant To Be Paid,M1 5JW,"14,187.82",Yes
Communities & Local Government,DCLG,08/07/2014,Work In Progress Pre-Cert 40373 Spend,Neighbourhoods,ECONOMIC SOLUTIONS LIMITED,,Large,,,7600009055,,Revenue Grant To Be Paid,M1 5JW,"93,025.10",Yes
Communities & Local Government,DCLG,08/07/2014,Work In Progress Pre-Cert 40373 Spend,Neighbourhoods,ECONOMIC SOLUTIONS LIMITED,,Large,,,7600009056,,Revenue Grant To Be Paid,M1 5JW,"82,168.87",Yes
Communities & Local Government,DCLG,08/07/2014,Work In Progress Pre-Cert 40373 Spend,Neighbourhoods,ECONOMIC SOLUTIONS LIMITED,,Large,,,7600009057,,Revenue Grant To Be Paid,M1 5JW,"8,793.39",Yes
Communities & Local Government,DCLG,08/07/2014,Work In Progress Pre-Cert 40373 Spend,Neighbourhoods,EEEGR,,,,,7600009066,,Revenue Grant To Be Paid,NR32 1XH,"31,468.49",Yes
Communities & Local Government,DCLG,08/07/2014,Work In Progress Pre-Cert 40373 Spend,Neighbourhoods,GTR MANCHESTER BUSINESS SUPPORT LTD,,Medium,,,7600009044,,Revenue Grant To Be Paid,M1 5JW,"1,071.76",Yes
Communities & Local Government,DCLG,08/07/2014,Work In Progress Pre-Cert 40373 Spend,Neighbourhoods,GTR MANCHESTER BUSINESS SUPPORT LTD,,Medium,,,7600009045,,Revenue Grant To Be Paid,M1 5JW,"21,650.99",Yes
Communities & Local Government,DCLG,08/07/2014,Work In Progress Pre-Cert 40373 Spend,Neighbourhoods,GTR MANCHESTER BUSINESS SUPPORT LTD,,Medium,,,7600009048,,Revenue Grant To Be Paid,M1 5JW,"179,042.99",Yes
Communities & Local Government,DCLG,08/07/2014,Work In Progress Pre-Cert 40373 Spend,Neighbourhoods,GTR MANCHESTER BUSINESS SUPPORT LTD,,Medium,,,7600009065,,Revenue Grant Clawback Offset,M1 5JW,-712.08,Yes
Communities & Local Government,DCLG,08/07/2014,Work In Progress Pre-Cert 40373 Spend,Neighbourhoods,GTR MANCHESTER BUSINESS SUPPORT LTD,,Medium,,,7600009065,,Revenue Grant To Be Paid,M1 5JW,"88,235.69",Yes
Communities & Local Government,DCLG,08/07/2014,Work In Progress Pre-Cert 40373 Spend,Neighbourhoods,LANCASTER UNIVERISTY,,,,,7600009060,,Revenue Grant Clawback Offset,LA1 4YW,"-5,056.42",Yes
Communities & Local Government,DCLG,08/07/2014,Work In Progress Pre-Cert 40373 Spend,Neighbourhoods,LANCASTER UNIVERISTY,,,,,7600009060,,Revenue Grant To Be Paid,LA1 4YW,"59,246.20",Yes
Communities & Local Government,DCLG,08/07/2014,Work In Progress Pre-Cert 40373 Spend,Neighbourhoods,LANCASTER UNIVERISTY,,,,,7600009061,,Revenue Grant Clawback Offset,LA1 4YW,"-4,839.22",Yes
Communities & Local Government,DCLG,08/07/2014,Work In Progress Pre-Cert 40373 Spend,Neighbourhoods,LANCASTER UNIVERISTY,,,,,7600009061,,Revenue Grant To Be Paid,LA1 4YW,"249,915.95",Yes
Communities & Local Government,DCLG,08/07/2014,Work In Progress Pre-Cert 40373 Spend,Neighbourhoods,ROTHERHAM METROPOLITAN BC,,,,,7600009046,,Revenue Grant To Be Paid,S65 1DJ,"8,001.84",Yes
Communities & Local Government,DCLG,08/07/2014,Work In Progress Pre-Cert 40373 Spend,Neighbourhoods,SCARBOROUGH BOROUGH COUNCIL,,,,,7600009049,,Revenue Grant To Be Paid,YO11 2HG,"7,633.71",Yes
Communities & Local Government,DCLG,08/07/2014,Work In Progress Pre-Cert 40373 Spend,Neighbourhoods,SCARBOROUGH BOROUGH COUNCIL,,,,,7600009064,,Revenue Grant To Be Paid,YO11 2HG,"21,236.48",Yes
Communities & Local Government,DCLG,08/07/2014,Work In Progress Pre-Cert 40373 Spend,Neighbourhoods,SERCO REGIONAL SERVICES LTD,,,,,7600009058,,Revenue Grant To Be Paid,PL6 8LU,"33,966.90",Yes
Communities & Local Government,DCLG,08/07/2014,Work In Progress Pre-Cert 40467 Spend,Neighbourhoods,CHESTER UNIVERSITY,,,,,7600009047,,Capital Grant To Be Paid,WA2 0DB,"500,684.45",Yes
Communities & Local Government,DCLG,08/07/2014,Work In Progress Pre-Cert 40467 Spend,Neighbourhoods,MOJO MARITIME LTD,,,,,7600009063,,Capital Grant To Be Paid,TR11 4SZ,"13,604.71",Yes
Communities & Local Government,DCLG,08/07/2014,Work In Progress Pre-Cert 40467 Spend,Neighbourhoods,R M DEVELOPMENTS LTD,,,,,7600009062,,Capital Grant To Be Paid,TR1 2NY,"130,190.64",Yes
Communities & Local Government,DCLG,08/07/2014,Work In Progress Pre-Cert 40467 Spend,Neighbourhoods,ST AGNES ISLAND HALL,,Micro,,,7600009059,,Capital Grant To Be Paid,TR22 0PL,"98,800.00",Yes
Communities & Local Government,DCLG,09/07/2014,Agency Staff,Finance & Corporate Services,ALLEN LANE FINANCIAL RECRUITMENT,,Medium,Yes,234388853,5106205102,Contingent Labour,Interim Accountant (Extension 01),,"3,796.08",
Communities & Local Government,DCLG,09/07/2014,Agency Staff,Neighbourhoods,LOCAL PARTNERSHIPS LLP,,,,211702438,5106205111,Contingent Labour,Temp comr�l advsr to DCLG hsg prjct Jun14 (Local Prtnrshp},SW1P 3HZ,"15,649.68",
Communities & Local Government,DCLG,09/07/2014,BRR Estimated Collection Fund Surplus PY,Localism,OFFICE OF THE PAYMASTER GENERAL (NN,,,,239956253,2100244542,,BRR Estimated Collection Fund,RH10 1UH,"4,072,725.00",Yes
Communities & Local Government,DCLG,09/07/2014,Central Share,Localism,OFFICE OF THE PAYMASTER GENERAL (NN,,,,239956253,2100244542,,BRR Central Share receipts,RH10 1UH,"1,206,958,474.00",Yes
Communities & Local Government,DCLG,09/07/2014,Current (non AEF) Grants to Local Authorities,Localism,GLOUCESTERSHIRE COUNTY COUNCIL,,,,211272067,5000255290,,Firefighters� pension grant adjustment,GL2 2AX,"-401,463.00",Yes
Communities & Local Government,DCLG,09/07/2014,Current (non AEF) Grants to Local Authorities,Localism,HUMBERSIDE FIRE & RESCUE SERVICE,,,,229832563,5000255230,,Firefighters� pension grant adjustment,HU4 7BB,"-135,088.00",Yes
Communities & Local Government,DCLG,09/07/2014,IT - Software Maintenance,Finance & Corporate Services,COMPUTACENTER (UK) LTD,,Large,,226023463,5106205080,Managed / Outsourced Services,NetBackup SAP agent support 1 year,AL10 9TW,"1,566.92",
Communities & Local Government,DCLG,09/07/2014,IT - Software Maintenance,Finance & Corporate Services,KAIZEN ASSOCIATES LTD,,Micro,,217482430,5106205089,Managed / Outsourced Services,SAP Application Support,SE1 6SW,863.95,
Communities & Local Government,DCLG,09/07/2014,IT Maintenance,Finance & Corporate Services,COMPUTACENTER (UK) LTD,,Large,,226023463,5106205093,ICT Services,SUN SE6020 arrays support 14/15,AL10 9TW,"5,500.00",
Communities & Local Government,DCLG,09/07/2014,NNDR Central List Receipts,Localism,OFFICE OF THE PAYMASTER GENERAL (NN,,,,239956253,2100244542,,Central List Receipts,RH10 1UH,"105,008,442.00",Yes
Communities & Local Government,DCLG,09/07/2014,Professional services,Localism,GOVT ACTUARYS DEPARTMENT,,Public Bodies,,233567432,5106205092,Financial,WFPP 2014/15 budget for acturial advice,EC4A 1AB,"9,173.22",
Communities & Local Government,DCLG,09/07/2014,Publicity,"Strategy, Communications and Private Office",GORKANA GROUP LTD,,Large,,210089876,5106205035,Advertising,Press cuttings,EC1Y 8QE,"3,336.61",
Communities & Local Government,DCLG,09/07/2014,Research,Finance & Corporate Services,SHEFFIELD UNIVERSITY,,Large,,228147328,5106205118,Operational Services,Research - New Homes Bonus Evaluation,S10 2TN,"34,938.40",
Communities & Local Government,DCLG,09/07/2014,Research,Finance & Corporate Services,SHEFFIELD UNIVERSITY,,Large,,228147328,5106205118,Operational Services,Research - New Homes Bonus Evaluation,S10 2TN,"14,973.60",
Communities & Local Government,DCLG,09/07/2014,Steady State Service Provision,Finance & Corporate Services,ALLPAY LIMITED,,Medium,,738359918,5106205079,Business Process Outsourcing Services,Monthly Management Fee Payments,HR1 3SE,500.00,
Communities & Local Government,DCLG,09/07/2014,Steady State Service Provision,Neighbourhoods,PHILIP M HALE LTD,,Micro,,,5106205104,Business Process Outsourcing Services,Costs incured April 2014 to March 2015,BS29 6PD,"13,300.00",
Communities & Local Government,DCLG,09/07/2014,Steady State Service Provision,Neighbourhoods,PHILIP M HALE LTD,,Micro,,,5106205104,Business Process Outsourcing Services,Expenses 14/15,BS29 6PD,38.40,
Communities & Local Government,DCLG,09/07/2014,Telecoms equipment (non-capitalised),Finance & Corporate Services,DAMOVO UK LTD,,Large,,221481042,5106205103,Telecoms,Telephone Calls,RH12 4QP,880.32,
Communities & Local Government,DCLG,09/07/2014,Training,Finance & Corporate Services,INSTITUTE OF INTERNAL AUDITORS,,Small,,292669967,5106205072,Development and Training,P2 Financial Risks & Controls (Tuition),SW4 7BX,"1,125.00",
Communities & Local Government,DCLG,09/07/2014,Training,Finance & Corporate Services,OFFICE FOR NATIONAL STATISTICS,,Public Bodies,,232101196,5106205073,Development and Training,19th GSS Methodology Symposium (AC),NP10 8XG,125.00,
Communities & Local Government,DCLG,09/07/2014,Training,Finance & Corporate Services,OFFICE FOR NATIONAL STATISTICS,,Public Bodies,,232101196,5106205073,Development and Training,19th GSS Methodology Symposium (JB),NP10 8XG,125.00,
Communities & Local Government,DCLG,09/07/2014,Training,Finance & Corporate Services,OFFICE FOR NATIONAL STATISTICS,,Public Bodies,,232101196,5106205073,Development and Training,19th GSS Methodology Symposium (NG),NP10 8XG,125.00,
Communities & Local Government,DCLG,09/07/2014,Training,Finance & Corporate Services,SAP (UK) LTD,,Large,,396951675,5106205081,Development and Training,BPC430 SAP Business Planning and Consoli,TW14 8HD,"2,600.00",
Communities & Local Government,DCLG,09/07/2014,Transitional Receipts,Localism,OFFICE OF THE PAYMASTER GENERAL (NN,,,,239956253,2100244542,,BRR Transitional Protection receipts,RH10 1UH,"949,787.00",Yes
Communities & Local Government,DCLG,09/07/2014,Work In Progress Pre-Cert 40373 Spend,Neighbourhoods,DRUM HOUSING,,Large,,,2300002150,,Recovery of irregular payment,GU32 3NG,"-40,023.99",Yes
Communities & Local Government,DCLG,09/07/2014,Work In Progress Pre-Cert 40373 Spend,Neighbourhoods,ENTERPRISE LOANS EAST MIDLANDS,,Small,,,7600009070,,Revenue Grant To Be Paid,NG7 5FU,"13,382.93",Yes
Communities & Local Government,DCLG,09/07/2014,Work In Progress Pre-Cert 40373 Spend,Neighbourhoods,LEICESTER UNIVERSITY,,Large,,,7600009071,,Revenue Grant To Be Paid,LE1 7RH,"16,623.44",Yes
Communities & Local Government,DCLG,09/07/2014,Work In Progress Pre-Cert 40373 Spend,Neighbourhoods,LINCOLN BUSINESS IMPROVEMENT GROUP,,Small,,,7600009068,,Revenue Grant To Be Paid,LN2 1HA,"27,631.08",Yes
Communities & Local Government,DCLG,09/07/2014,Work In Progress Pre-Cert 40373 Spend,Neighbourhoods,MEDIAWORKS TRUST,,Small,,,7600009069,,Revenue Grant To Be Paid,DE22 3RG,"2,747.72",Yes
Communities & Local Government,DCLG,09/07/2014,Work In Progress Pre-Cert 40373 Spend,Neighbourhoods,ONE EAST MIDLANDS,,,,,7600009072,,Revenue Grant To Be Paid,NG1 3FB,"9,203.91",Yes
Communities & Local Government,DCLG,09/07/2014,Work In Progress Pre-Cert 40467 Spend,Neighbourhoods,LINCOLN BUSINESS IMPROVEMENT GROUP,,Small,,,7600009068,,Capital Grant To Be Paid,LN2 1HA,"26,764.27",Yes
Communities & Local Government,DCLG,09/07/2014,Work In Progress Pre-Cert 40467 Spend,Neighbourhoods,MEDIAWORKS TRUST,,Small,,,7600009069,,Capital Grant To Be Paid,DE22 3RG,"1,068.58",Yes
Communities & Local Government,DCLG,09/07/2014,Work In Progress Pre-Cert 40467 Spend,Neighbourhoods,SOUTH YORKS PASSENGER TRANS EXEC,,,,,7600009067,,Capital Grant To Be Paid,S1 2BQ,"362,541.94",Yes
Communities & Local Government,DCLG,10/07/2014,Accommodation Service Charges,Neighbourhoods,GVA GRIMLEY LTD,,Large,,210158990,5106205056,Accommodation Services,ERDF YH LDU Valuation Services to Dec 13,B1 2JB,"3,540.00",
Communities & Local Government,DCLG,10/07/2014,Accommodation Service Charges,Neighbourhoods,GVA GRIMLEY LTD,,Large,,210158990,5106205057,Accommodation Services,ERDF YH LDU Valuation Services to Dec 13,B1 2JB,"3,540.00",
Communities & Local Government,DCLG,10/07/2014,Current (non AEF) Grants to Local Authorities,Troubled Families,SLOUGH BOROUGH COUNCIL,,,,211027123,5000248162,,Firefighters� pension grant adjustment,SL1 3UQ,"-48,100.00",Yes
Communities & Local Government,DCLG,10/07/2014,Professional services,Finance & Corporate Services,GVA GRIMLEY LTD,,Large,,210158990,5106205065,Building Management,Com 95 - Disposal & Management of FSC,B1 2JB,"3,120.00",
Communities & Local Government,DCLG,10/07/2014,Work In Progress Pre-Cert 40467 Spend,Neighbourhoods,MANCHESTER CITY COUNCIL,,,,,2300002125,,Recovery of irregular payment,M60 2JR,"-247,559.40",Yes
Communities & Local Government,DCLG,10/07/2014,Work In Progress Pre-Cert 40467 Spend,Neighbourhoods,NORTH WEST BUSINESS FINANCE,,Micro,,,2300002155,,Return of FEI Funds,WA4 6PU,"-10,906,721.00",Yes
Communities & Local Government,DCLG,11/07/2014,Agency Staff,Finance & Corporate Services,CAPITA BUS. SERV. LTD (CSL),,Large,,215580993,5106204822,Contingent Labour,Extension from June,DL1 9HB,"3,167.14",
Communities & Local Government,DCLG,11/07/2014,Agency Staff,Finance & Corporate Services,CAPITA BUS. SERV. LTD (CSL),,Large,,215580993,5106204822,Contingent Labour,Interim Manager (Expenses),DL1 9HB,21.36,
Communities & Local Government,DCLG,11/07/2014,Agency Staff,Finance & Corporate Services,CAPITA BUS. SERV. LTD (CSL),,Large,,215580993,5106204822,Contingent Labour,Interim and Specialist Contractor,DL1 9HB,791.78,
Communities & Local Government,DCLG,11/07/2014,Agency Staff,Finance & Corporate Services,CAPITA BUS. SERV. LTD (CSL),,Large,,215580993,5106205174,Contingent Labour,Interim and Specialist Contractor,DL1 9HB,"6,005.28",
Communities & Local Government,DCLG,11/07/2014,Agency Staff,Finance & Corporate Services,CAPITA BUS. SERV. LTD (CSL),,Large,,215580993,5106205175,Contingent Labour,Interim and Specialist Contractor,DL1 9HB,"3,958.92",
Communities & Local Government,DCLG,11/07/2014,Agency Staff,Finance & Corporate Services,CAPITA BUS. SERV. LTD (CSL),,Large,,215580993,5106205177,Contingent Labour,Interim Manager,DL1 9HB,"8,887.56",
Communities & Local Government,DCLG,11/07/2014,Agency Staff,Finance & Corporate Services,SQUARE ONE RESOURCES LTD,,Medium,,491410288,5106205123,Contingent Labour,SAP Support until closedown,EC2A 2AD,"2,858.82",
Communities & Local Government,DCLG,11/07/2014,Agency Staff,Localism,CAPITA BUS. SERV. LTD (CSL),,Large,,215580993,5106205171,Contingent Labour,Interim Manager,DL1 9HB,"12,799.68",
Communities & Local Government,DCLG,11/07/2014,Agency Staff,Localism,CAPITA BUS. SERV. LTD (CSL),,Large,,215580993,5106205178,Contingent Labour,Interim and Specialist Contractor,DL1 9HB,"2,855.95",
Communities & Local Government,DCLG,11/07/2014,Agency Staff,Neighbourhoods,CAPITA BUS. SERV. LTD (CSL),,Large,,215580993,5106205169,Contingent Labour,Interim and Specialist Contractor,DL1 9HB,"1,963.44",
Communities & Local Government,DCLG,11/07/2014,Agency Staff,Neighbourhoods,CAPITA BUS. SERV. LTD (CSL),,Large,,215580993,5106205170,Contingent Labour,Interim Manager,DL1 9HB,"1,639.92",
Communities & Local Government,DCLG,11/07/2014,Agency Staff,Neighbourhoods,CAPITA BUS. SERV. LTD (CSL),,Large,,215580993,5106205172,Contingent Labour,Interim Manager,DL1 9HB,"1,622.74",
Communities & Local Government,DCLG,11/07/2014,Agency Staff,Neighbourhoods,CAPITA BUS. SERV. LTD (CSL),,Large,,215580993,5106205172,Contingent Labour,Interim Manager (Expenses),DL1 9HB,143.82,
Communities & Local Government,DCLG,11/07/2014,Agency Staff,Neighbourhoods,CAPITA BUS. SERV. LTD (CSL),,Large,,215580993,5106205173,Contingent Labour,Interim assessor,DL1 9HB,"2,028.42",
Communities & Local Government,DCLG,11/07/2014,Agency Staff,Neighbourhoods,CAPITA BUS. SERV. LTD (CSL),,Large,,215580993,5106205176,Contingent Labour,Interim regional assessor,DL1 9HB,"5,855.76",
Communities & Local Government,DCLG,11/07/2014,Agency Staff,Neighbourhoods,CAPITA BUS. SERV. LTD (CSL),,Large,,215580993,5106205179,Contingent Labour,Interim and Specialist Contractor,DL1 9HB,"3,327.42",
Communities & Local Government,DCLG,11/07/2014,Agency Staff,Neighbourhoods,CAPITA BUS. SERV. LTD (CSL),,Large,,215580993,5106205180,Contingent Labour,Interim and Specialist Contractor,DL1 9HB,"1,833.60",
Communities & Local Government,DCLG,11/07/2014,Agency Staff,Neighbourhoods,MANPOWER UK LTD,,Large,,238500362,5106205184,Contingent Labour,Planning Portal admin Support,UB8 1AB,"1,045.69",
Communities & Local Government,DCLG,11/07/2014,Capital Grants to Private Sect Non Profit,Localism,CFOA (NATIONAL RESILIANCE) LTD,,Small,,211512993,2100244433,,National Resilience Capability Assurance,GL56 0RH,"750,000.00",Yes
Communities & Local Government,DCLG,11/07/2014,Current (non AEF) Grants to Local Authorities,Localism,ASHFORD BC,,,,229467071,5000256068,,Council Tax Flood Relief Grant,TN23 1PL,590.00,Yes
Communities & Local Government,DCLG,11/07/2014,Current (non AEF) Grants to Local Authorities,Localism,AYLESBURY VALE DC(HSG),,,,396710709,5000256069,,Council Tax Flood Relief Grant,HP19 8FF,"29,476.00",Yes
Communities & Local Government,DCLG,11/07/2014,Current (non AEF) Grants to Local Authorities,Localism,BASINGSTOKE & DEANE BC,,,,228328506,5000256140,,Council Tax Flood Relief Grant,RG21 2AJ,"26,072.00",Yes
Communities & Local Government,DCLG,11/07/2014,Current (non AEF) Grants to Local Authorities,Localism,BATH & NE SOMERSET DC (HSG),,,,214502499,5000256071,,Council Tax Flood Relief Grant,BA1 5AW,"1,428.00",Yes
Communities & Local Government,DCLG,11/07/2014,Current (non AEF) Grants to Local Authorities,Localism,BEXLEY LB (HSG),,,,,5000256072,,Council Tax Flood Relief Grant,DA8 1TL,"1,345.00",Yes
Communities & Local Government,DCLG,11/07/2014,Current (non AEF) Grants to Local Authorities,Localism,BOSTON BC,,,,236417713,5000256074,,Council Tax Flood Relief Grant,PE21 8QR,"30,247.00",Yes
Communities & Local Government,DCLG,11/07/2014,Current (non AEF) Grants to Local Authorities,Localism,BRIGHTON & HOVE CITY COUNCIL,,,,228455218,5000256142,,Council Tax Flood Relief Grant,BN3 2SR,281.00,Yes
Communities & Local Government,DCLG,11/07/2014,Current (non AEF) Grants to Local Authorities,Localism,CANTERBURY CITY CNCL,,,,,5000256075,,Council Tax Flood Relief Grant,CT1 1YW,"1,818.00",Yes
Communities & Local Government,DCLG,11/07/2014,Current (non AEF) Grants to Local Authorities,Localism,CHELMSFORD BC,,,,,5000256144,,Council Tax Flood Relief Grant,CM1 1JE,744.00,Yes
Communities & Local Government,DCLG,11/07/2014,Current (non AEF) Grants to Local Authorities,Localism,CHERWELL DC,,,,,5000256077,,Council Tax Flood Relief Grant,OX15 4AA,"23,251.00",Yes
Communities & Local Government,DCLG,11/07/2014,Current (non AEF) Grants to Local Authorities,Localism,CORNWALL UNITARY AUTHORITY,,,,211334404,5000256183,,Council Tax Flood Relief Grant,TR1 3AY,"3,325.00",Yes
Communities & Local Government,DCLG,11/07/2014,Current (non AEF) Grants to Local Authorities,Localism,COTSWOLD DC,,,,232462085,5000256079,,Council Tax Flood Relief Grant,GL7 1PX,"14,140.00",Yes
Communities & Local Government,DCLG,11/07/2014,Current (non AEF) Grants to Local Authorities,Localism,CRAWLEY BC,,,,211222500,5000256080,,Council Tax Flood Relief Grant,RH10 1UZ,"1,766.00",Yes
Communities & Local Government,DCLG,11/07/2014,Current (non AEF) Grants to Local Authorities,Localism,CROYDON LB,,,,212419973,5000256145,,Council Tax Flood Relief Grant,CR9 3JS,"16,178.00",Yes
Communities & Local Government,DCLG,11/07/2014,Current (non AEF) Grants to Local Authorities,Localism,DARTFORD BC,,,,225694942,5000256082,,Council Tax Flood Relief Grant,DA1 1DR,"1,046.00",Yes
Communities & Local Government,DCLG,11/07/2014,Current (non AEF) Grants to Local Authorities,Localism,DOVER DC,,,,,5000256084,,Council Tax Flood Relief Grant,CT16 3PD,343.00,Yes
Communities & Local Government,DCLG,11/07/2014,Current (non AEF) Grants to Local Authorities,Localism,EAST HAMPSHIRE DC,,,,,5000256085,,Council Tax Flood Relief Grant,GU31 4EX,"12,197.00",Yes
Communities & Local Government,DCLG,11/07/2014,Current (non AEF) Grants to Local Authorities,Localism,EAST HERTFORDSHIRE DC,,,,236176954,5000256087,,Council Tax Flood Relief Grant,SG13 8EQ,"17,622.00",Yes
Communities & Local Government,DCLG,11/07/2014,Current (non AEF) Grants to Local Authorities,Localism,EAST RIDING OF YORKS (RSG),,,,,5000256179,,Council Tax Flood Relief Grant,HU17 9AB,"148,722.00",Yes
Communities & Local Government,DCLG,11/07/2014,Current (non AEF) Grants to Local Authorities,Localism,ELMBRIDGE BC (HSG),,,,,5000256088,,Council Tax Flood Relief Grant,KT10 9SD,"8,832.00",Yes
Communities & Local Government,DCLG,11/07/2014,Current (non AEF) Grants to Local Authorities,Localism,EPSOM & EWELL BC,,,,225423094,5000256147,,Council Tax Flood Relief Grant,KT18 5BY,"3,757.00",Yes
Communities & Local Government,DCLG,11/07/2014,Current (non AEF) Grants to Local Authorities,Localism,FOREST OF DEAN DC,,,,211278890,5000256090,,Council Tax Flood Relief Grant,GL16 8HG,"6,879.00",Yes
Communities & Local Government,DCLG,11/07/2014,Current (non AEF) Grants to Local Authorities,Localism,GRAVESHAM BC,,,,236178612,5000256149,,Council Tax Flood Relief Grant,DA12 1AU,813.00,Yes
Communities & Local Government,DCLG,11/07/2014,Current (non AEF) Grants to Local Authorities,Localism,GREENWICH LB,,,,,5000256150,,Council Tax Flood Relief Grant,SE18 6BU,"7,470.00",Yes
Communities & Local Government,DCLG,11/07/2014,Current (non AEF) Grants to Local Authorities,Localism,GUILDFORD BC,,,,236663720,5000256092,,Council Tax Flood Relief Grant,GU2 5BB,"46,223.00",Yes
Communities & Local Government,DCLG,11/07/2014,Current (non AEF) Grants to Local Authorities,Localism,HART DC,,,,229723895,5000256152,,Council Tax Flood Relief Grant,GU13 8AE,326.00,Yes
Communities & Local Government,DCLG,11/07/2014,Current (non AEF) Grants to Local Authorities,Localism,HAVANT BC,,,,211047543,5000256153,,Council Tax Flood Relief Grant,PO9 2AX,"5,490.00",Yes
Communities & Local Government,DCLG,11/07/2014,Current (non AEF) Grants to Local Authorities,Localism,HULL CITY COUNCIL,,,,217460984,5000256158,,Council Tax Flood Relief Grant,HU1 2AA,"29,926.00",Yes
Communities & Local Government,DCLG,11/07/2014,Current (non AEF) Grants to Local Authorities,Localism,ISLE OF WIGHT CNCL,,,,236431730,5000256155,,Council Tax Flood Relief Grant,PO30 1UD,"16,941.00",Yes
Communities & Local Government,DCLG,11/07/2014,Current (non AEF) Grants to Local Authorities,Localism,LANCASTER CITY CNCL,,,,228669990,5000256093,,Council Tax Flood Relief Grant,LA1 1PJ,934.00,Yes
Communities & Local Government,DCLG,11/07/2014,Current (non AEF) Grants to Local Authorities,Localism,LEWES DC,,,,213090082,5000256095,,Council Tax Flood Relief Grant,BN7 2DQ,"1,828.00",Yes
Communities & Local Government,DCLG,11/07/2014,Current (non AEF) Grants to Local Authorities,Localism,MAIDSTONE BC,,Public Bodies,,293004214,5000256096,,Council Tax Flood Relief Grant,ME15 6JQ,"13,331.00",Yes
Communities & Local Government,DCLG,11/07/2014,Current (non AEF) Grants to Local Authorities,Localism,MALVERN HILLS DC,,,,227470424,5000256160,,Council Tax Flood Relief Grant,WR14 3AF,"11,382.00",Yes
Communities & Local Government,DCLG,11/07/2014,Current (non AEF) Grants to Local Authorities,Localism,MOLE VALLEY DC,,,,225385772,5000256098,,Council Tax Flood Relief Grant,RH4 1SJ,"77,429.00",Yes
Communities & Local Government,DCLG,11/07/2014,Current (non AEF) Grants to Local Authorities,Localism,NEW FOREST DC,,Public Bodies,,,5000256100,,Council Tax Flood Relief Grant,SO43 9ZG,"41,062.00",Yes
Communities & Local Government,DCLG,11/07/2014,Current (non AEF) Grants to Local Authorities,Localism,NORTH HERTS DC (HOUSING) (HSG),,,,233593917,5000256101,,Council Tax Flood Relief Grant,SG6 3JF,"2,295.00",Yes
Communities & Local Government,DCLG,11/07/2014,Current (non AEF) Grants to Local Authorities,Localism,NORTH LINCOLNSHIRE DC (HSG),,Public Bodies,,424005502,5000256103,,Council Tax Flood Relief Grant,DN16 1AB,"81,966.00",Yes
Communities & Local Government,DCLG,11/07/2014,Current (non AEF) Grants to Local Authorities,Localism,POOLE BC (HSG),,,,,5000256105,,Council Tax Flood Relief Grant,BH15 2RU,"6,368.00",Yes
Communities & Local Government,DCLG,11/07/2014,Current (non AEF) Grants to Local Authorities,Localism,READING BC,,,,210220399,5000256162,,Council Tax Flood Relief Grant,RG1 7TD,"5,416.00",Yes
Communities & Local Government,DCLG,11/07/2014,Current (non AEF) Grants to Local Authorities,Localism,REIGATE & BANSTEAD BC,,,,211313515,5000256163,,Council Tax Flood Relief Grant,RH2 OSH,"3,631.00",Yes
Communities & Local Government,DCLG,11/07/2014,Current (non AEF) Grants to Local Authorities,Localism,RUNNYMEDE BOROUGH COUNCIL,,,,232225722,5000256165,,Council Tax Flood Relief Grant,KT15 2AH,"265,003.00",Yes
Communities & Local Government,DCLG,11/07/2014,Current (non AEF) Grants to Local Authorities,Localism,SCARBOROUGH BC,,Large,,,5000256107,,Council Tax Flood Relief Grant,YO11 2HG,"5,753.00",Yes
Communities & Local Government,DCLG,11/07/2014,Current (non AEF) Grants to Local Authorities,Localism,SEDGEMOOR DC,,,,211204011,5000256108,,Council Tax Flood Relief Grant,TA6 3AR,"208,938.00",Yes
Communities & Local Government,DCLG,11/07/2014,Current (non AEF) Grants to Local Authorities,Localism,SLOUGH BOROUGH COUNCIL,,,,211027123,5000256167,,Council Tax Flood Relief Grant,SL1 3UQ,382.00,Yes
Communities & Local Government,DCLG,11/07/2014,Current (non AEF) Grants to Local Authorities,Localism,SOUTH GLOUCESTERSHIRE DC (HSG),,,,,5000256110,,Council Tax Flood Relief Grant,BS15 2TR,"4,924.00",Yes
Communities & Local Government,DCLG,11/07/2014,Current (non AEF) Grants to Local Authorities,Localism,SOUTH LAKELAND DC,,,,236445466,5000256112,,Council Tax Flood Relief Grant,LA49 4DQ,424.00,Yes
Communities & Local Government,DCLG,11/07/2014,Current (non AEF) Grants to Local Authorities,Localism,SPELTHORNE DC,,,,211177332,5000256113,,Council Tax Flood Relief Grant,TW18 1XB,"68,869.00",Yes
Communities & Local Government,DCLG,11/07/2014,Current (non AEF) Grants to Local Authorities,Localism,SUFFOLK COASTAL DC (HSG),,,,239933203,5000256115,,Council Tax Flood Relief Grant,IP12 1AU,"5,166.00",Yes
Communities & Local Government,DCLG,11/07/2014,Current (non AEF) Grants to Local Authorities,Localism,SWALE BC,,,,239842768,5000256169,,Council Tax Flood Relief Grant,ME10 3HT,"1,736.00",Yes
Communities & Local Government,DCLG,11/07/2014,Current (non AEF) Grants to Local Authorities,Localism,TANDRIDGE DC,,,,225481076,5000256116,,Council Tax Flood Relief Grant,RH8 0BT,"34,228.00",Yes
Communities & Local Government,DCLG,11/07/2014,Current (non AEF) Grants to Local Authorities,Localism,TEWKESBURY BC,,,,232740399,5000256118,,Council Tax Flood Relief Grant,GL20 5TT,"20,879.00",Yes
Communities & Local Government,DCLG,11/07/2014,Current (non AEF) Grants to Local Authorities,Localism,THREE RIVERS DC,,,,,5000256171,,Council Tax Flood Relief Grant,WD3 1RL,"1,659.00",Yes
Communities & Local Government,DCLG,11/07/2014,Current (non AEF) Grants to Local Authorities,Localism,TONBRIDGE & MALLING BC,,,,,5000256120,,Council Tax Flood Relief Grant,ME19 6LZ,"117,726.00",Yes
Communities & Local Government,DCLG,11/07/2014,Current (non AEF) Grants to Local Authorities,Localism,TUNBRIDGE WELLS BC,,,,775221013,5000256122,,Council Tax Flood Relief Grant,TN1 1RS,"2,863.00",Yes
Communities & Local Government,DCLG,11/07/2014,Current (non AEF) Grants to Local Authorities,Localism,UTTLESFORD DC,,,,424423242,5000256124,,Council Tax Flood Relief Grant,CB11 4ER,"4,368.00",Yes
Communities & Local Government,DCLG,11/07/2014,Current (non AEF) Grants to Local Authorities,Localism,WAVENEY DISTRICT COUNCIL,,Large,,229740980,5000256126,,Council Tax Flood Relief Grant,NR32 1HS,"6,184.00",Yes
Communities & Local Government,DCLG,11/07/2014,Current (non AEF) Grants to Local Authorities,Localism,WAVERLEY BC V177,,,,,5000256127,,Council Tax Flood Relief Grant,GU7 1HR,"16,508.00",Yes
Communities & Local Government,DCLG,11/07/2014,Current (non AEF) Grants to Local Authorities,Localism,WEALDEN DC,,,,232688697,5000256129,,Council Tax Flood Relief Grant,BN22 9LN,"2,091.00",Yes
Communities & Local Government,DCLG,11/07/2014,Current (non AEF) Grants to Local Authorities,Localism,WELWYN HATFIELD COUNCIL,,,,210360804,5000256130,,Council Tax Flood Relief Grant,AL8 6AE,"2,226.00",Yes
Communities & Local Government,DCLG,11/07/2014,Current (non AEF) Grants to Local Authorities,Localism,WEST OXFORDSHIRE DC,,,,210401379,5000256132,,Council Tax Flood Relief Grant,OX28 1NB,"11,313.00",Yes
Communities & Local Government,DCLG,11/07/2014,Current (non AEF) Grants to Local Authorities,Localism,WILTSHIRE COUNCIL,,,,211341656,5000256181,,Council Tax Flood Relief Grant,BA14 4DS,"43,349.00",Yes
Communities & Local Government,DCLG,11/07/2014,Current (non AEF) Grants to Local Authorities,Localism,WINCHESTER CITY CNCL,,,,228838280,5000256133,,Council Tax Flood Relief Grant,SO23 9LJ,"50,421.00",Yes
Communities & Local Government,DCLG,11/07/2014,Current (non AEF) Grants to Local Authorities,Localism,WINDSOR & MAIDENHEAD (HSG),,,,227411998,5000256135,,Council Tax Flood Relief Grant,SL6 1RF,"47,046.00",Yes
Communities & Local Government,DCLG,11/07/2014,Current (non AEF) Grants to Local Authorities,Localism,WOKING BC,,,,211163449,5000256172,,Council Tax Flood Relief Grant,GU21 1YL,"49,603.00",Yes
Communities & Local Government,DCLG,11/07/2014,Current (non AEF) Grants to Local Authorities,Localism,WOKINGHAM DC,,,,,5000256174,,Council Tax Flood Relief Grant,RG11 1WJ,"6,517.00",Yes
Communities & Local Government,DCLG,11/07/2014,Current (non AEF) Grants to Local Authorities,Localism,WORCESTER CITY CNCL,,,,227419751,5000256176,,Council Tax Flood Relief Grant,WR1 2EZ,"17,708.00",Yes
Communities & Local Government,DCLG,11/07/2014,Current (non AEF) Grants to Local Authorities,Localism,WYCHAVON DISTRICT COUNCIL,,,,232257139,5000256137,,Council Tax Flood Relief Grant,WR10 1PT,"1,752.00",Yes
Communities & Local Government,DCLG,11/07/2014,Current (non AEF) Grants to Local Authorities,Localism,WYCOMBE DC,,Medium,,232683771,5000256138,,Council Tax Flood Relief Grant,HP11 1BB,"66,706.00",Yes
Communities & Local Government,DCLG,11/07/2014,Current (non AEF) Grants to Local Authorities,Localism,WYRE FOREST DISTRICT COUNCIL,,,,,5000256177,,Council Tax Flood Relief Grant,DY11 7WF,"4,202.00",Yes
Communities & Local Government,DCLG,11/07/2014,Current Grants to Non Profit Bodies,Localism,CFOA (NATIONAL RESILIANCE) LTD,,Small,,211512993,2100244433,,National Resilience Capability Assurance,GL56 0RH,"1,887,500.00",Yes
Communities & Local Government,DCLG,11/07/2014,Current Grants to Non Profit Bodies,Localism,CFOA (NATIONAL RESILIANCE) LTD,,Small,,211512993,2100244433,,National Resilience Capability Assurance,GL56 0RH,"157,500.00",Yes
Communities & Local Government,DCLG,11/07/2014,Current Grants to Non Profit Bodies,Localism,FAITH ACTION,Yes,Medium,,,2100244550,,Faith Action - Interfaith Social Action,RM8 3QS,"50,000.00",Yes
Communities & Local Government,DCLG,11/07/2014,Current Grants to Non Profit Bodies,Neighbourhoods,HOMELESS LINK,Yes,,,,5000256185,,Preventing Homelessness Grant (VOL),SE11 4AP,"375,000.00",Yes
Communities & Local Government,DCLG,11/07/2014,Current Grants to Non Profit Bodies,Neighbourhoods,VALUATION OFFICE AGENCY,,Public Bodies,,215253886,2100244509,,Rent Officer Services and Pensions Liability,W1B 5BU,"610,000.00",Yes
Communities & Local Government,DCLG,11/07/2014,Electricity,Finance & Corporate Services,EDF ENERGY 1 LIMITED,,,,230840469,5106205129,Energy,TQH - Electricity Charges 2014 - 2015,PL3 5XQ,"23,725.37",
Communities & Local Government,DCLG,11/07/2014,Electricity,Finance & Corporate Services,EDF ENERGY 1 LIMITED,,Large,,230840469,5106205128,Energy,St Philips Place Electricity 2014 - 2015,PL3 5XQ,"12,489.11",
Communities & Local Government,DCLG,11/07/2014,Electricity,Finance & Corporate Services,EDF ENERGY 1 LIMITED,,Large,,230840469,5106205131,Energy,Bridge House Electricity 2014 - 2015,PL3 5XQ,"4,765.63",
Communities & Local Government,DCLG,11/07/2014,Electricity,Finance & Corporate Services,EDF ENERGY 1 LIMITED,,Large,,230840469,5106205135,Energy,Rivergate Electricity 2014 2015,PL3 5XQ,"11,360.00",
Communities & Local Government,DCLG,11/07/2014,Electricity,Finance & Corporate Services,EDF ENERGY 1 LIMITED,,Large,,230840469,5106205137,Energy,Paradise Circus Electricity 2014 - 2015,PL3 5XQ,"2,038.78",
Communities & Local Government,DCLG,11/07/2014,Electricity,Finance & Corporate Services,EDF ENERGY 1 LIMITED,,Large,,230840469,5106205139,Energy,Queen St Electricty 2014 - 2015,PL3 5XQ,"1,743.20",
Communities & Local Government,DCLG,11/07/2014,Electricity,Finance & Corporate Services,EDF ENERGY 1 LIMITED,,Large,,230840469,5106205140,Energy,Eland House Electricity 2014 - 2015,PL3 5XQ,"43,848.78",
Communities & Local Government,DCLG,11/07/2014,Fixed Maintenance,Finance & Corporate Services,BLAKE LAPTHORN,,Micro,,774428882,2100244620,Cleaning,REFERENCE NUMBER 516742.3 BRIDGE SETTLEMENT,PO6 4ST,"570,415.84",
Communities & Local Government,DCLG,11/07/2014,Grant in Aid to NDPBs (non budget),Neighbourhoods,LEASEHOLD ADVISORY SERVICE,,Small,,378000152,2100244583,,Grant in Aid Claim for Q2(July-Sept 2014),WT1 7BN,"425,933.00",Yes
Communities & Local Government,DCLG,11/07/2014,IT - Service Contracts,Finance & Corporate Services,PROCSERVE SHARED SERVICES LTD,,Large,,739834971,5106204825,Managed / Outsourced Services,32mths subscriptions Jul 2011-Jul 2014,SW1W 9SR,"6,176.64",
Communities & Local Government,DCLG,11/07/2014,IT - Service Contracts,Finance & Corporate Services,SWIRRL IT LIMITED,,Micro,,211074993,5106205145,Managed / Outsourced Services,Open data communication,FK7 7WT,"7,632.00",
Communities & Local Government,DCLG,11/07/2014,IT - Software Maintenance,Finance & Corporate Services,METHODS CONSULTING LTD,,Medium,,505275578,5106205127,Managed / Outsourced Services,PIMS Application Support 17mths,WC2H 8AD,"24,000.00",
Communities & Local Government,DCLG,11/07/2014,Legal Fees,Finance & Corporate Services,DAVITT JONES BOULD LTD,,Medium,,,5106205146,Legal,Provision of Legal Advice,TA1 4EB,550.44,
Communities & Local Government,DCLG,11/07/2014,Office Supplies,Neighbourhoods,BANNER BUSINESS SUPPLIES LTD,,Large,,236638362,5106205136,Office Supplies,DELWEEKLY Banner A4 Recycled Copier Pape,NR3 1PD,254.16,
Communities & Local Government,DCLG,11/07/2014,Office Supplies,Neighbourhoods,BANNER BUSINESS SUPPLIES LTD,,Large,,236638362,5106205136,Office Supplies,DELWEEKLY Banner Brilliant Page Marker 3,NR3 1PD,3.36,
Communities & Local Government,DCLG,11/07/2014,Office Supplies,Neighbourhoods,BANNER BUSINESS SUPPLIES LTD,,Large,,236638362,5106205136,Office Supplies,DELWEEKLY Banner Giant Plain Paperclip,NR3 1PD,1.32,
Communities & Local Government,DCLG,11/07/2014,Printing,"Strategy, Communications and Private Office",WILLIAMS LEA LIMITED,,Large,,393456413,5106205083,Printing Services,Year 3 Print services,W2 6LG,212.50,
Communities & Local Government,DCLG,11/07/2014,Professional services,Finance & Corporate Services,E C HARRIS LLP,,Large,,,5106205157,Construction Service Providers,PAMU Com - 101 - TFM Support - TG,N1 9AB,"4,104.00",
Communities & Local Government,DCLG,11/07/2014,Publicity,"Strategy, Communications and Private Office",PRESS ASSOCIATION,,Large,,217191704,5106205141,Advertising,PRESS ASSOCIATION (PA) 2014-17,DN14 7YH,"1,273.82",
Communities & Local Government,DCLG,11/07/2014,Recruitment,Finance & Corporate Services,HM REVENUE & CUSTOMS,,Public Bodies,,365117972,5106205124,Business Process Outsourcing Services,Psychometric testing 14/15,BN12 4XH,"4,730.00",
Communities & Local Government,DCLG,11/07/2014,Research,Neighbourhoods,E C HARRIS LLP,,Large,,,5106205156,Operational Services,Excel Book & Draft Potential Costs Rpt,N1 9AB,"63,600.00",
Communities & Local Government,DCLG,11/07/2014,Research,Neighbourhoods,E C HARRIS LLP,,Large,,,5106205156,Operational Services,Survey of Current Standards Draft,N1 9AB,"16,800.00",
Communities & Local Government,DCLG,11/07/2014,Software Licences,Finance & Corporate Services,S A S SOFTWARE LTD,,Large,,225293703,5106205130,Software,SAS software Licence,SL7 2EB,"7,514.40",
Communities & Local Government,DCLG,11/07/2014,Steady State Service Provision,Neighbourhoods,CENTRAL BEDFORDSHIRE COUNCIL,,Public Bodies,,,5106205185,Business Process Outsourcing Services,Planning Officer (NC) 2014/15,MK42 9BD,900.00,
Communities & Local Government,DCLG,11/07/2014,Steady State Service Provision,Neighbourhoods,CENTRAL BEDFORDSHIRE COUNCIL,,Public Bodies,,,5106205185,Business Process Outsourcing Services,Principal Planning Officer (SM) 2014/15,MK42 9BD,"1,640.00",
Communities & Local Government,DCLG,11/07/2014,Steady State Service Provision,Neighbourhoods,CENTRAL BEDFORDSHIRE COUNCIL,,Public Bodies,,,5106205185,Business Process Outsourcing Services,Principal Planning Officer(LH) T&S 14/15,MK42 9BD,33.00,
Communities & Local Government,DCLG,11/07/2014,Steady State Service Provision,Neighbourhoods,CENTRAL BEDFORDSHIRE COUNCIL,,Public Bodies,,,5106205185,Business Process Outsourcing Services,Team Leader 2014/15,MK42 9BD,100.00,
Communities & Local Government,DCLG,11/07/2014,Steady State Service Provision,Neighbourhoods,LOCALITY,,Medium,,347998312,5106205098,Business Process Outsourcing Services,Support Services for Community RighttoBuild - 9/4/14-8/7/4-Locality,N1 6DR,"49,149.25",
Communities & Local Government,DCLG,11/07/2014,Telecoms equipment (non-capitalised),Finance & Corporate Services,B T PAYMENT SERVICES LTD,,Large,,219226417,5106205105,Telecoms,2013 BT ISDN 2E(WAN)&BB,DH98 1BT,329.11,
Communities & Local Government,DCLG,11/07/2014,Training,Finance & Corporate Services,AMBERHAWK TRAINING LTD,,Micro,,211166062,5106204718,Development and Training,Introduction to Access to Information,LS18 4TJ,-400.00,
Communities & Local Government,DCLG,11/07/2014,Training,Finance & Corporate Services,AMBERHAWK TRAINING LTD,,Micro,,211166062,5106204718,Development and Training,"Requests, Fees & Introduction to Exempti",LS18 4TJ,-250.00,
Communities & Local Government,DCLG,11/07/2014,Training,Finance & Corporate Services,BPP PROFESSIONAL EDUCATION LTD,,,,732726158,5106205142,Development and Training,F9 Financial management BM,W12 8AW,451.04,
Communities & Local Government,DCLG,11/07/2014,Training,Finance & Corporate Services,BPP PROFESSIONAL EDUCATION LTD,,,,732726158,5106205142,Development and Training,Question day,W12 8AW,177.08,
Communities & Local Government,DCLG,11/07/2014,Training,Finance & Corporate Services,BPP PROFESSIONAL EDUCATION LTD,,,,732726158,5106205142,Development and Training,Revision,W12 8AW,412.18,
Communities & Local Government,DCLG,11/07/2014,Training,Finance & Corporate Services,PRIVACY & DATA PROTECTION LTD,,Micro,,219697385,5106205162,Development and Training,FOI Practitioner Certificate,SW4 0JY,"1,745.00",
Communities & Local Government,DCLG,11/07/2014,Training,Neighbourhoods,ROYAL TOWN PLANNING INSTITUTE-WM,Yes,Medium,,,5106205160,Development and Training,5 place season ticket training,EC3R 8DL,220.00,
Communities & Local Government,DCLG,11/07/2014,Work In Progress Pre-Cert 40373 Spend,Neighbourhoods,BIRMINGHAM CITY COUNCIL (NOT RATES),,Large,,,7600009079,,Revenue Grant To Be Paid,B1 1BB,"8,969.95",Yes
Communities & Local Government,DCLG,11/07/2014,Work In Progress Pre-Cert 40373 Spend,Neighbourhoods,CUMBRIA COUNTY COUNCIL,,Public Bodies,,,7600009076,,Revenue Grant Clawback Offset,CA3 8NA,"-5,822.54",Yes
Communities & Local Government,DCLG,11/07/2014,Work In Progress Pre-Cert 40373 Spend,Neighbourhoods,CUMBRIA COUNTY COUNCIL,,Public Bodies,,,7600009076,,Revenue Grant To Be Paid,CA3 8NA,"12,682.57",Yes
Communities & Local Government,DCLG,11/07/2014,Work In Progress Pre-Cert 40373 Spend,Neighbourhoods,LANCASHIRE COUNTY COUNCIL,,Large,,,7600009075,,Revenue Grant To Be Paid,PR1 0LD,"179,459.91",Yes
Communities & Local Government,DCLG,11/07/2014,Work In Progress Pre-Cert 40373 Spend,Neighbourhoods,LIVERPOOL JOHN MOORES UNIVERSITY,,,,,7600009081,,Revenue Grant To Be Paid,L3 2AJ,"53,798.36",Yes
Communities & Local Government,DCLG,11/07/2014,Work In Progress Pre-Cert 40373 Spend,Neighbourhoods,MERSEY MARTIME LTD,,Micro,,,7600009078,,Revenue Grant To Be Paid,CH41 5LH,"8,387.84",Yes
Communities & Local Government,DCLG,11/07/2014,Work In Progress Pre-Cert 40373 Spend,Neighbourhoods,MERSEY MARTIME LTD,,Micro,,,7600009090,,Revenue Grant To Be Paid,CH41 5LH,"16,533.21",Yes
Communities & Local Government,DCLG,11/07/2014,Work In Progress Pre-Cert 40373 Spend,Neighbourhoods,MERSEYSIDE NETWORK FOR EUROPE,,,,,7600009080,,Revenue Grant To Be Paid,L2 2AH,"10,244.26",Yes
Communities & Local Government,DCLG,11/07/2014,Work In Progress Pre-Cert 40373 Spend,Neighbourhoods,NCEE,,,,,7600009083,,Revenue Grant Clawback Offset,CV1 2TT,"-4,558.70",Yes
Communities & Local Government,DCLG,11/07/2014,Work In Progress Pre-Cert 40373 Spend,Neighbourhoods,NCEE,,,,,7600009083,,Revenue Grant To Be Paid,CV1 2TT,"270,137.67",Yes
Communities & Local Government,DCLG,11/07/2014,Work In Progress Pre-Cert 40373 Spend,Neighbourhoods,NCEE,,,,,7600009084,,Revenue Grant To Be Paid,CV1 2TT,"63,678.21",Yes
Communities & Local Government,DCLG,11/07/2014,Work In Progress Pre-Cert 40373 Spend,Neighbourhoods,NORTH WEST AEROSPACE ALLIANCE,,,,,7600009086,,Revenue Grant Clawback Offset,PR5 6BL,-245.44,Yes
Communities & Local Government,DCLG,11/07/2014,Work In Progress Pre-Cert 40373 Spend,Neighbourhoods,NORTH WEST AEROSPACE ALLIANCE,,,,,7600009086,,Revenue Grant To Be Paid,PR5 6BL,"42,408.86",Yes
Communities & Local Government,DCLG,11/07/2014,Work In Progress Pre-Cert 40373 Spend,Neighbourhoods,STOKE-ON-TRENT CITY COUNCIL,,Large,,,7600009073,,Revenue Grant To Be Paid,ST4 1HP,"14,801.46",Yes
Communities & Local Government,DCLG,11/07/2014,Work In Progress Pre-Cert 40373 Spend,Neighbourhoods,WORCESTERSHIRE COUNTY COUNCIL,,Public Bodies,,,7600009074,,Revenue Grant To Be Paid,WR5 2NP,"23,901.74",Yes
Communities & Local Government,DCLG,11/07/2014,Work In Progress Pre-Cert 40373 Spend,Neighbourhoods,YORKSHIRE UNIVERSITIES,,Micro,,,7600009082,,Revenue Grant To Be Paid,LS2 9JY,"18,046.75",Yes
Communities & Local Government,DCLG,11/07/2014,Work In Progress Pre-Cert 40467 Spend,Neighbourhoods,BIRMINGHAM CITY COUNCIL (NOT RATES),,Large,,,7600009079,,Capital Grant To Be Paid,B1 1BB,"41,924.51",Yes
Communities & Local Government,DCLG,11/07/2014,Work In Progress Pre-Cert 40467 Spend,Neighbourhoods,CUMBRIA COUNTY COUNCIL,,Public Bodies,,,7600009076,,Capital Grant To Be Paid,CA3 8NA,"749,730.54",Yes
Communities & Local Government,DCLG,11/07/2014,Work In Progress Pre-Cert 40467 Spend,Neighbourhoods,EAST RIDING OF YORKSHIRE COUNCIL,,,,,7600009077,,Capital Grant To Be Paid,HU17 9BA,"113,404.21",Yes
Communities & Local Government,DCLG,11/07/2014,Work In Progress Pre-Cert 40467 Spend,Neighbourhoods,EAST RIDING OF YORKSHIRE COUNCIL,,,,,7600009087,,Capital Grant To Be Paid,HU17 9BA,"398,480.22",Yes
Communities & Local Government,DCLG,11/07/2014,Work In Progress Pre-Cert 40467 Spend,Neighbourhoods,MANCHESTER CITY COUNCIL,,,,,7600009085,,Capital Grant To Be Paid,M60 2JR,"218,396.57",Yes
Communities & Local Government,DCLG,11/07/2014,Work In Progress Pre-Cert 40467 Spend,Neighbourhoods,REDSUN DEVELOPMENTS LTD,,,,,7600009088,,Capital Grant To Be Paid,L2 7QS,"508,016.76",Yes
Communities & Local Government,DCLG,11/07/2014,Work In Progress Pre-Cert 40467 Spend,Neighbourhoods,SECOND AVENUE RESOURCE CENTRE LTD,,Small,,,7600009089,,Capital Grant To Be Paid,DN33 1NU,"108,871.39",Yes
Communities & Local Government,DCLG,11/07/2014,Work In Progress Pre-Cert 40467 Spend,Neighbourhoods,STOKE-ON-TRENT CITY COUNCIL,,Large,,,7600009073,,Capital Grant To Be Paid,ST4 1HP,"88,006.07",Yes
Communities & Local Government,DCLG,11/07/2014,Work In Progress Pre-Cert 40467 Spend,Neighbourhoods,WORCESTERSHIRE COUNTY COUNCIL,,Public Bodies,,,7600009074,,Capital Grant To Be Paid,WR5 2NP,"40,755.58",Yes
Communities & Local Government,DCLG,14/07/2014,Agency Staff,Neighbourhoods,REED SPECIALIST RECRUITMENT LTD,,Large,,288656960,5106205193,Contingent Labour,Planning casework,NN1 1UE,377.05,
Communities & Local Government,DCLG,14/07/2014,Agency Staff,Neighbourhoods,REED SPECIALIST RECRUITMENT LTD,,Large,,288656960,5106205194,Contingent Labour,Planning casework AWR Extension1 Month,NN1 1UE,708.91,
Communities & Local Government,DCLG,14/07/2014,Current (non AEF) Grants to Local Authorities,Localism,WEYMOUTH & PORTLAND BC,,,,735157948,2600061899,,Weymouth Dec 13 - Feb 14 Bellwin Claim,DT4 8TA,"23,412.00",Yes
Communities & Local Government,DCLG,14/07/2014,Current Grants to Non Profit Bodies,Localism,APASENTH,,,,,2100244628,,The e3 Pilot Project,E14 7FF,"72,345.00",Yes
Communities & Local Government,DCLG,14/07/2014,Current Grants to Non Profit Bodies,Localism,MUSLIM CHARITIES FORUM,,Micro,,,2100244622,,Faith Minorities in Action,W5 1YY,"91,772.00",Yes
Communities & Local Government,DCLG,14/07/2014,Current Grants to Non Profit Bodies,Localism,TINDER FOUNDATION,Yes,Medium,,,2100244627,,English My Way,S1 2BX,"360,663.00",Yes
Communities & Local Government,DCLG,14/07/2014,Online Database Information Retrieval,Finance & Corporate Services,IDOX SOFTWARE LTD,,Large,,423692610,5106205215,ICT Services,Idox Information Service,G2 6JZ,"14,940.00",
Communities & Local Government,DCLG,14/07/2014,Physical Storage,Finance & Corporate Services,TNT UK LIMITED,,Large,,,5106205201,Warehousing and Storage,Offsite Records Storage FYR 14/15,BL10 9GR,482.86,
Communities & Local Government,DCLG,14/07/2014,Physical Storage,Finance & Corporate Services,TNT UK LIMITED,,Large,,,5106205202,Warehousing and Storage,Offsite Records Storage FYR 14/15,BL10 9GR,756.44,
Communities & Local Government,DCLG,14/07/2014,Physical Storage,Finance & Corporate Services,TNT UK LIMITED,,Large,,,5106205203,Warehousing and Storage,Offsite Records Storage FYR 14/15,BL10 9GR,727.18,
Communities & Local Government,DCLG,14/07/2014,Physical Storage,Finance & Corporate Services,TNT UK LIMITED,,Large,,,5106205204,Warehousing and Storage,Offsite Records Storage FYR 14/15,BL10 9GR,281.53,
Communities & Local Government,DCLG,14/07/2014,Physical Storage,Finance & Corporate Services,TNT UK LIMITED,,Large,,,5106205205,Warehousing and Storage,Offsite Records Storage FYR 14/15,BL10 9GR,342.64,
Communities & Local Government,DCLG,14/07/2014,Physical Storage,Finance & Corporate Services,TNT UK LIMITED,,Large,,,5106205206,Warehousing and Storage,Offsite Records Storage FYR 14/15,BL10 9GR,876.71,
Communities & Local Government,DCLG,14/07/2014,Physical Storage,Finance & Corporate Services,TNT UK LIMITED,,Large,,,5106205207,Warehousing and Storage,Offsite Records Storage FYR 14/15,BL10 9GR,"23,903.16",
Communities & Local Government,DCLG,14/07/2014,Physical Storage,Finance & Corporate Services,TNT UK LIMITED,,Large,,,5106205208,Warehousing and Storage,Offsite Records Storage FYR 14/15,BL10 9GR,646.86,
Communities & Local Government,DCLG,14/07/2014,Physical Storage,Finance & Corporate Services,TNT UK LIMITED,,Large,,,5106205209,Warehousing and Storage,Offsite Records Storage FYR 14/15,BL10 9GR,297.77,
Communities & Local Government,DCLG,14/07/2014,Physical Storage,Finance & Corporate Services,TNT UK LIMITED,,Large,,,5106205210,Warehousing and Storage,Offsite Records Storage FYR 14/15,BL10 9GR,443.67,
Communities & Local Government,DCLG,14/07/2014,Printing,"Strategy, Communications and Private Office",STATIONERY OFFICE LTD,,Large,,779375633,5106205196,Printing Services,Non-Vatable,NR3 1PD,165.00,
Communities & Local Government,DCLG,14/07/2014,Printing,"Strategy, Communications and Private Office",STATIONERY OFFICE LTD,,Large,,779375633,5106205196,Printing Services,Vatable,NR3 1PD,130.00,
Communities & Local Government,DCLG,14/07/2014,Printing,"Strategy, Communications and Private Office",STATIONERY OFFICE LTD,,Large,,779375633,5106205197,Printing Services,Non-Vatable,NR3 1PD,165.00,
Communities & Local Government,DCLG,14/07/2014,Printing,"Strategy, Communications and Private Office",STATIONERY OFFICE LTD,,Large,,779375633,5106205197,Printing Services,Vatable,NR3 1PD,130.00,
Communities & Local Government,DCLG,14/07/2014,Printing,"Strategy, Communications and Private Office",STATIONERY OFFICE LTD,,Large,,779375633,5106205199,Printing Services,Non-Vatable,NR3 1PD,165.00,
Communities & Local Government,DCLG,14/07/2014,Printing,"Strategy, Communications and Private Office",STATIONERY OFFICE LTD,,Large,,779375633,5106205199,Printing Services,Vatable,NR3 1PD,130.00,
Communities & Local Government,DCLG,14/07/2014,Professional services,Finance & Corporate Services,GVA GRIMLEY LTD,,Large,,210158990,5106205152,Building Management,Com 95 - Disposal & Management of FSC,B1 2JB,"3,120.00",
Communities & Local Government,DCLG,14/07/2014,Professional services,Finance & Corporate Services,GVA GRIMLEY LTD,,Large,,210158990,5106205153,Accommodation Services,Assessment of Newt Land - FSC - Com 123,B1 2JB,883.20,
Communities & Local Government,DCLG,14/07/2014,Professional services,Neighbourhoods,BUILDING RESEARCH ESTABLISHMENT,,Large,,896495033,5106205187,Technical Services,Call off Contract Maintenance,WD25 9XX,"1,900.80",
Communities & Local Government,DCLG,14/07/2014,Professional services,Neighbourhoods,BUILDING RESEARCH ESTABLISHMENT,,Large,,896495033,5106205200,Technical Services,Call off Contract Maintenance,WD25 9XX,"4,279.20",
Communities & Local Government,DCLG,14/07/2014,Services provided by other Govt Orgs,Neighbourhoods,MINISTRY OF JUSTICE,,,,211860841,2100244623,Business and Commercial Services,Law Commission s Project on Rights to Light,NP10 8ZF,"31,250.00",Yes
Communities & Local Government,DCLG,14/07/2014,Telecoms equipment (non-capitalised),Finance & Corporate Services,VODAFONE LTD FORMELY CABLE  & WIREL,,Large,,231838819,5106179617,Telecoms,GSI Hosting and Leased Line for GON,MK3 5JP,"-33,680.69",
Communities & Local Government,DCLG,14/07/2014,Vehicle hire,"Strategy, Communications and Private Office",GOVERNMENT CAR & DESPATCH AGENCY,,Public Bodies,,,5106205211,Vehicle Hire and Lease,Duty Car,SW8 5AX,"7,186.67",
Communities & Local Government,DCLG,14/07/2014,Work In Progress Pre-Cert 40373 Spend,Neighbourhoods,BASSETLAW DISTRICT COUNCIL,,Large,,,7600009112,,Revenue Grant To Be Paid,S81 2AH,"1,860.95",Yes
Communities & Local Government,DCLG,14/07/2014,Work In Progress Pre-Cert 40373 Spend,Neighbourhoods,CITY OF BRISTOL COLLEGE,,,,,7600009108,,Revenue Grant To Be Paid,BS2 2BB,"12,046.57",Yes
Communities & Local Government,DCLG,14/07/2014,Work In Progress Pre-Cert 40373 Spend,Neighbourhoods,COMMUNITY ACTION DERBY,,,,,7600009111,,Revenue Grant To Be Paid,DE1 2GT,"17,308.07",Yes
Communities & Local Government,DCLG,14/07/2014,Work In Progress Pre-Cert 40373 Spend,Neighbourhoods,COVENTRY UNIVERSITY ENTERPRISES LTD,,Medium,,,7600009120,,Revenue Grant To Be Paid,CV1 2TT,"13,622.09",Yes
Communities & Local Government,DCLG,14/07/2014,Work In Progress Pre-Cert 40373 Spend,Neighbourhoods,DONCASTER METROPOLITAN BC,,,,,7600009107,,Revenue Grant To Be Paid,DN1 1DE,"113,715.47",Yes
Communities & Local Government,DCLG,14/07/2014,Work In Progress Pre-Cert 40373 Spend,Neighbourhoods,EAST DURHAM BUSINESS SERVICE LTD,,Small,,,7600009119,,Revenue Grant To Be Paid,SR8 2QJ,"3,535.65",Yes
Communities & Local Government,DCLG,14/07/2014,Work In Progress Pre-Cert 40373 Spend,Neighbourhoods,LOUGHBOROUGH UNIVERSITY,,Large,,,7600009110,,Revenue Grant Clawback Offset,LE11 3TU,"-2,527.03",Yes
Communities & Local Government,DCLG,14/07/2014,Work In Progress Pre-Cert 40373 Spend,Neighbourhoods,LOUGHBOROUGH UNIVERSITY,,Large,,,7600009110,,Revenue Grant To Be Paid,LE11 3TU,"62,363.87",Yes
Communities & Local Government,DCLG,14/07/2014,Work In Progress Pre-Cert 40373 Spend,Neighbourhoods,NEWCASTLE CITY COUNCIL,,,,,7600009102,,Revenue Grant To Be Paid,NE1 8QN,"8,605.28",Yes
Communities & Local Government,DCLG,14/07/2014,Work In Progress Pre-Cert 40373 Spend,Neighbourhoods,PRINCES TRUST,,,,,7600009100,,Revenue Grant To Be Paid,NE11 0SR,"38,855.92",Yes
Communities & Local Government,DCLG,14/07/2014,Work In Progress Pre-Cert 40373 Spend,Neighbourhoods,PRINCES TRUST,,,,,7600009101,,Revenue Grant To Be Paid,NE11 0SR,"37,843.10",Yes
Communities & Local Government,DCLG,14/07/2014,Work In Progress Pre-Cert 40373 Spend,Neighbourhoods,PRINCES TRUST,,,,,7600009104,,Revenue Grant To Be Paid,NE11 0SR,"50,443.16",Yes
Communities & Local Government,DCLG,14/07/2014,Work In Progress Pre-Cert 40373 Spend,Neighbourhoods,ROTHERHAM METROPOLITAN BC,,,,,7600009099,,Revenue Grant To Be Paid,S65 1DJ,"10,107.93",Yes
Communities & Local Government,DCLG,14/07/2014,Work In Progress Pre-Cert 40373 Spend,Neighbourhoods,SANDWELL MBC,,Large,,,7600009091,,Revenue Grant To Be Paid,B69 3BS,"7,498.97",Yes
Communities & Local Government,DCLG,14/07/2014,Work In Progress Pre-Cert 40373 Spend,Neighbourhoods,SANDWELL MBC,,Large,,,7600009092,,Revenue Grant To Be Paid,B69 3BS,"5,811.10",Yes
Communities & Local Government,DCLG,14/07/2014,Work In Progress Pre-Cert 40373 Spend,Neighbourhoods,SANDWELL MBC,,Large,,,7600009093,,Revenue Grant To Be Paid,B69 3BS,"7,296.44",Yes
Communities & Local Government,DCLG,14/07/2014,Work In Progress Pre-Cert 40373 Spend,Neighbourhoods,SANDWELL MBC,,Large,,,7600009094,,Revenue Grant To Be Paid,B69 3BS,"7,806.76",Yes
Communities & Local Government,DCLG,14/07/2014,Work In Progress Pre-Cert 40373 Spend,Neighbourhoods,SANDWELL MBC,,Large,,,7600009095,,Revenue Grant To Be Paid,B69 3BS,"5,871.59",Yes
Communities & Local Government,DCLG,14/07/2014,Work In Progress Pre-Cert 40373 Spend,Neighbourhoods,SANDWELL MBC,,Large,,,7600009096,,Revenue Grant To Be Paid,B69 3BS,"8,159.87",Yes
Communities & Local Government,DCLG,14/07/2014,Work In Progress Pre-Cert 40373 Spend,Neighbourhoods,SKILLS FOR ENTERPRISE LTD,,Small,,,7600009116,,Revenue Grant To Be Paid,LE1 1QA,"2,803.28",Yes
Communities & Local Government,DCLG,14/07/2014,Work In Progress Pre-Cert 40373 Spend,Neighbourhoods,SOUTH DEVON COLLEGE,,,,,7600009113,,Revenue Grant Clawback Offset,TQ4 7EJ,-3.58,Yes
Communities & Local Government,DCLG,14/07/2014,Work In Progress Pre-Cert 40373 Spend,Neighbourhoods,SOUTH DEVON COLLEGE,,,,,7600009113,,Revenue Grant To Be Paid,TQ4 7EJ,"25,150.95",Yes
Communities & Local Government,DCLG,14/07/2014,Work In Progress Pre-Cert 40373 Spend,Neighbourhoods,SOUTH DEVON COLLEGE,,,,,7600009114,,Revenue Grant To Be Paid,TQ4 7EJ,"9,076.85",Yes
Communities & Local Government,DCLG,14/07/2014,Work In Progress Pre-Cert 40373 Spend,Neighbourhoods,UNIVERSITY OF EXETER,,,,,7600009098,,Revenue Grant To Be Paid,EX4 4QJ,"220,080.14",Yes
Communities & Local Government,DCLG,14/07/2014,Work In Progress Pre-Cert 40373 Spend,Neighbourhoods,UNIVERSITY OF SUNDERLAND,,,,,7600009115,,Revenue Grant To Be Paid,SR1 3SD,"91,497.70",Yes
Communities & Local Government,DCLG,14/07/2014,Work In Progress Pre-Cert 40373 Spend,Neighbourhoods,UNIVERSITY OF WOLVERHAMPTON,,Large,,,7600009103,,Revenue Grant To Be Paid,WV1 1SB,"35,413.16",Yes
Communities & Local Government,DCLG,14/07/2014,Work In Progress Pre-Cert 40373 Spend,Neighbourhoods,UNIVERSITY OF WOLVERHAMPTON,,Large,,,7600009105,,Revenue Grant To Be Paid,WV1 1SB,"66,454.78",Yes
Communities & Local Government,DCLG,14/07/2014,Work In Progress Pre-Cert 40373 Spend,Neighbourhoods,UNIVERSITY OF WOLVERHAMPTON,,Large,,,7600009106,,Revenue Grant To Be Paid,WV1 1SB,"78,308.63",Yes
Communities & Local Government,DCLG,14/07/2014,Work In Progress Pre-Cert 40373 Spend,Neighbourhoods,WEST OF ENGLAND AEROSPACE FORUM,,,,,7600009121,,Revenue Grant To Be Paid,BS21 6UP,"39,207.80",Yes
Communities & Local Government,DCLG,14/07/2014,Work In Progress Pre-Cert 40467 Spend,Neighbourhoods,BARNSLEY METROPOLITAN BC,,Public Bodies,,,7600009109,,Capital Grant To Be Paid,S70 9OO,"3,062.98",Yes
Communities & Local Government,DCLG,14/07/2014,Work In Progress Pre-Cert 40467 Spend,Neighbourhoods,EAST DURHAM BUSINESS SERVICE LTD,,Small,,,7600009119,,Capital Grant To Be Paid,SR8 2QJ,"8,091.81",Yes
Communities & Local Government,DCLG,14/07/2014,Work In Progress Pre-Cert 40467 Spend,Neighbourhoods,HORNCASTLE GROUP PLC,,Medium,,,7600009117,,Capital Grant Clawback Offset,HU15 2AT,-160.08,Yes
Communities & Local Government,DCLG,14/07/2014,Work In Progress Pre-Cert 40467 Spend,Neighbourhoods,HORNCASTLE GROUP PLC,,Medium,,,7600009117,,Capital Grant To Be Paid,HU15 2AT,"12,526.66",Yes
Communities & Local Government,DCLG,14/07/2014,Work In Progress Pre-Cert 40467 Spend,Neighbourhoods,HORNCASTLE GROUP PLC,,Medium,,,7600009118,,Capital Grant Clawback Offset,HU15 2AT,-139.10,Yes
Communities & Local Government,DCLG,14/07/2014,Work In Progress Pre-Cert 40467 Spend,Neighbourhoods,HORNCASTLE GROUP PLC,,Medium,,,7600009118,,Capital Grant To Be Paid,HU15 2AT,"177,567.92",Yes
Communities & Local Government,DCLG,14/07/2014,Work In Progress Pre-Cert 40467 Spend,Neighbourhoods,MILLFIELDS COMMUNITY ECONOMIC DEV T,Yes,,,,7600009122,,Capital Grant To Be Paid,PL1 3HQ,"205,808.75",Yes
Communities & Local Government,DCLG,14/07/2014,Work In Progress Pre-Cert 40467 Spend,Neighbourhoods,NEWCASTLE CITY COUNCIL,,,,,7600009102,,Capital Grant To Be Paid,NE1 8QN,"22,679.02",Yes
Communities & Local Government,DCLG,14/07/2014,Work In Progress Pre-Cert 40467 Spend,Neighbourhoods,SANDWELL MBC,,Large,,,7600009091,,Capital Grant To Be Paid,B69 3BS,818.14,Yes
Communities & Local Government,DCLG,14/07/2014,Work In Progress Pre-Cert 40467 Spend,Neighbourhoods,SANDWELL MBC,,Large,,,7600009092,,Capital Grant To Be Paid,B69 3BS,"108,636.11",Yes
Communities & Local Government,DCLG,14/07/2014,Work In Progress Pre-Cert 40467 Spend,Neighbourhoods,SANDWELL MBC,,Large,,,7600009093,,Capital Grant To Be Paid,B69 3BS,"306,532.04",Yes
Communities & Local Government,DCLG,14/07/2014,Work In Progress Pre-Cert 40467 Spend,Neighbourhoods,SANDWELL MBC,,Large,,,7600009094,,Capital Grant To Be Paid,B69 3BS,"2,550.08",Yes
Communities & Local Government,DCLG,14/07/2014,Work In Progress Pre-Cert 40467 Spend,Neighbourhoods,SANDWELL MBC,,Large,,,7600009095,,Capital Grant To Be Paid,B69 3BS,"358,763.98",Yes
Communities & Local Government,DCLG,14/07/2014,Work In Progress Pre-Cert 40467 Spend,Neighbourhoods,SANDWELL MBC,,Large,,,7600009096,,Capital Grant To Be Paid,B69 3BS,"8,392.80",Yes
Communities & Local Government,DCLG,14/07/2014,Work In Progress Pre-Cert 40467 Spend,Neighbourhoods,SANDWELL MBC,,Large,,,7600009097,,Capital Grant To Be Paid,B69 3BS,"24,526.46",Yes
Communities & Local Government,DCLG,14/07/2014,Work In Progress Pre-Cert 40467 Spend,Neighbourhoods,SOUTH DEVON COLLEGE,,,,,7600009113,,Capital Grant To Be Paid,TQ4 7EJ,"32,372.48",Yes
Communities & Local Government,DCLG,14/07/2014,Work In Progress Pre-Cert 40467 Spend,Neighbourhoods,SOUTH DEVON COLLEGE,,,,,7600009114,,Capital Grant To Be Paid,TQ4 7EJ,"12,104.68",Yes
Communities & Local Government,DCLG,15/07/2014,Advertising,"Strategy, Communications and Private Office",M4C-DIVISION OF GROUPM UK LTD,,Large,,734728194,5106205074,Advertising,Asbof Fee,WC1X 8RX,7.99,
Communities & Local Government,DCLG,15/07/2014,Advertising,"Strategy, Communications and Private Office",M4C-DIVISION OF GROUPM UK LTD,,Large,,734728194,5106205074,Advertising,RtBuy - 'Digital Advertising Activity for 2014/15,WC1X 8RX,"10,126.99",
Communities & Local Government,DCLG,15/07/2014,Advertising,"Strategy, Communications and Private Office",M4C-DIVISION OF GROUPM UK LTD,,Large,,734728194,5106205075,Advertising,Asbof Fee,WC1X 8RX,4.47,
Communities & Local Government,DCLG,15/07/2014,Advertising,"Strategy, Communications and Private Office",M4C-DIVISION OF GROUPM UK LTD,,Large,,734728194,5106205075,Advertising,RtBuy - 'Digital Advertising Activity for 2014/15,WC1X 8RX,"5,537.51",
Communities & Local Government,DCLG,15/07/2014,Agency Staff,Localism,CAPITA RESOURCING LTD,,Large,,215581006,5106205228,Contingent Labour,Interim Manager - Ext 02,SL6 1DP,"2,235.60",
Communities & Local Government,DCLG,15/07/2014,Agency Staff,Neighbourhoods,CAPITA RESOURCING LTD,,Large,,215581006,5106205222,Contingent Labour,Contractor ERDF,SL6 1DP,"1,326.00",
Communities & Local Government,DCLG,15/07/2014,Agency Staff,Neighbourhoods,CAPITA RESOURCING LTD,,Large,,215581006,5106205222,Contingent Labour,Contractor ERDF Expenses,SL6 1DP,171.83,
Communities & Local Government,DCLG,15/07/2014,Agency Staff,Neighbourhoods,CAPITA RESOURCING LTD,,Large,,215581006,5106205225,Contingent Labour,Interim Manager,SL6 1DP,"2,616.00",
Communities & Local Government,DCLG,15/07/2014,Agency Staff,Neighbourhoods,CAPITA RESOURCING LTD,,Large,,215581006,5106205227,Contingent Labour,Interim Manager,SL6 1DP,"8,586.00",
Communities & Local Government,DCLG,15/07/2014,Agency Staff,Neighbourhoods,CAPITA RESOURCING LTD,,Large,,215581006,5106205233,Contingent Labour,Contractor Expenses,SL6 1DP,603.82,
Communities & Local Government,DCLG,15/07/2014,Agency Staff,Neighbourhoods,CAPITA RESOURCING LTD,,Large,,215581006,5106205233,Contingent Labour,Extension DEC13-June14,SL6 1DP,"3,651.48",
Communities & Local Government,DCLG,15/07/2014,Agency Staff,Neighbourhoods,CAPITA RESOURCING LTD,,Large,,215581006,5106205239,Contingent Labour,CPD 0492030 Capita MSP,SL6 1DP,"2,527.44",
Communities & Local Government,DCLG,15/07/2014,Agency Staff,Neighbourhoods,CAPITA RESOURCING LTD,,Large,,215581006,5106205239,Contingent Labour,Expenses INTERREG 2Seas-Territorial Faci,SL6 1DP,323.95,
Communities & Local Government,DCLG,15/07/2014,Cap Grants to Private Sector Companies,Neighbourhoods,REALLY USEFUL PRODUCTS LTD,,Medium,,,2100244548,,Really Useful Products Ltd,WF6 1TN,"797,242.00",Yes
Communities & Local Government,DCLG,15/07/2014,Cap Grants to Private Sector Companies,Neighbourhoods,SIEMENS PLC,,,,,2100244543,,Expand the Hebburn Site - Siemens PLC (Hebburn),NE31 1LX,"8,063.00",Yes
Communities & Local Government,DCLG,15/07/2014,Cap Grants to Private Sector Companies,Neighbourhoods,UK HISTORIC BUILDING PRESERVATION T,Yes,Small,,,2100244546,,Middleport Potteries - UK Historic Buildings,SW1W 0QP,624.10,Yes
Communities & Local Government,DCLG,15/07/2014,Capital Grant to LA Replace Loan Nonbud,Neighbourhoods,BIRMINGHAM CITY COUNCIL,,,,213270263,2100244544,,Tooling Loan Fund - Birmingham City Council,B3 3PL,"3,675,000.00",
Communities & Local Government,DCLG,15/07/2014,Capital Grant to LA Replace Loan Nonbud,Neighbourhoods,BIRMINGHAM CITY COUNCIL,,,,213270263,2100244545,,Unlocking Growth - Birmingham City Council,B3 3PL,"2,625,000.00",
Communities & Local Government,DCLG,15/07/2014,Current (non AEF) Grants to Local Authorities,Localism,ADUR DC,,,,227472891,5000255437,,Council Tax Freeze,BN11 1HB,"6,288.00",Yes
Communities & Local Government,DCLG,15/07/2014,Current (non AEF) Grants to Local Authorities,Localism,ADUR DC,,,,227472891,5000257334,,Small Business Rates Relief on Second Properties,BN11 1HB,443.00,Yes
Communities & Local Government,DCLG,15/07/2014,Current (non AEF) Grants to Local Authorities,Localism,ADUR DC,,,,227472891,5000257336,,Business Rates 2% Inflation Cap,BN11 1HB,"1,901.00",Yes
Communities & Local Government,DCLG,15/07/2014,Current (non AEF) Grants to Local Authorities,Localism,ADUR DC,,,,227472891,5000257339,,Small Business Rates Relief,BN11 1HB,"21,936.00",Yes
Communities & Local Government,DCLG,15/07/2014,Current (non AEF) Grants to Local Authorities,Localism,ADUR DC,,,,227472891,5000257346,,Retail Relief,BN11 1HB,"10,090.00",Yes
Communities & Local Government,DCLG,15/07/2014,Current (non AEF) Grants to Local Authorities,Localism,ALLERDALE BOROUGH COUNCIL,,,,218146780,5000257350,,Business Rates 2% Inflation Cap,CA14 3YJ,"4,355.00",Yes
Communities & Local Government,DCLG,15/07/2014,Current (non AEF) Grants to Local Authorities,Localism,ALLERDALE BOROUGH COUNCIL,,,,218146780,5000257352,,Retail Relief,CA14 3YJ,"25,612.00",Yes
Communities & Local Government,DCLG,15/07/2014,Current (non AEF) Grants to Local Authorities,Localism,ALLERDALE BOROUGH COUNCIL,,,,218146780,5000257355,,Small Business Rates Relief on Second Properties,CA14 3YJ,952.00,Yes
Communities & Local Government,DCLG,15/07/2014,Current (non AEF) Grants to Local Authorities,Localism,ALLERDALE BOROUGH COUNCIL,,,,218146780,5000257359,,Small Business Rates Relief,CA14 3YJ,"62,809.00",Yes
Communities & Local Government,DCLG,15/07/2014,Current (non AEF) Grants to Local Authorities,Localism,AMBER VALLEY BC,,,,,5000255438,,Council Tax Freeze,DE5 3WZ,"6,377.00",Yes
Communities & Local Government,DCLG,15/07/2014,Current (non AEF) Grants to Local Authorities,Localism,AMBER VALLEY BC,,,,,5000257365,,Reoccupation Relief,DE5 3WZ,809.00,Yes
Communities & Local Government,DCLG,15/07/2014,Current (non AEF) Grants to Local Authorities,Localism,AMBER VALLEY BC,,,,,5000257368,,Retail Relief,DE5 3WZ,"24,254.00",Yes
Communities & Local Government,DCLG,15/07/2014,Current (non AEF) Grants to Local Authorities,Localism,AMBER VALLEY BC,,,,,5000257371,,Small Business Rates Relief on Second Properties,DE5 3WZ,"1,011.00",Yes
Communities & Local Government,DCLG,15/07/2014,Current (non AEF) Grants to Local Authorities,Localism,AMBER VALLEY BC,,,,,5000257374,,Small Business Rates Relief,DE5 3WZ,"50,283.00",Yes
Communities & Local Government,DCLG,15/07/2014,Current (non AEF) Grants to Local Authorities,Localism,AMBER VALLEY BC,,,,,5000257377,,Business Rates 2% Inflation Cap,DE5 3WZ,"3,758.00",Yes
Communities & Local Government,DCLG,15/07/2014,Current (non AEF) Grants to Local Authorities,Localism,ARUN DC,,,,211217668,5000255310,,Council Tax Freeze,BN17 5LF,"10,274.00",Yes
Communities & Local Government,DCLG,15/07/2014,Current (non AEF) Grants to Local Authorities,Localism,ARUN DC,,,,211217668,5000256515,,Business Rates 2% Inflation Cap,BN17 5LF,"5,271.00",Yes
Communities & Local Government,DCLG,15/07/2014,Current (non AEF) Grants to Local Authorities,Localism,ARUN DC,,,,211217668,5000256517,,Retail Relief,BN17 5LF,"30,879.00",Yes
Communities & Local Government,DCLG,15/07/2014,Current (non AEF) Grants to Local Authorities,Localism,ARUN DC,,,,211217668,5000256519,,Small Business Rates Relief,BN17 5LF,"61,493.00",Yes
Communities & Local Government,DCLG,15/07/2014,Current (non AEF) Grants to Local Authorities,Localism,ASHFIELD DC,,,,235415296,5000257380,,Reoccupation Relief,NG17 8DA,940.00,Yes
Communities & Local Government,DCLG,15/07/2014,Current (non AEF) Grants to Local Authorities,Localism,ASHFIELD DC,,,,235415296,5000257382,,Small Business Rates Relief on Second Properties,NG17 8DA,"3,536.00",Yes
Communities & Local Government,DCLG,15/07/2014,Current (non AEF) Grants to Local Authorities,Localism,ASHFIELD DC,,,,235415296,5000257385,,Retail Relief,NG17 8DA,"16,777.00",Yes
Communities & Local Government,DCLG,15/07/2014,Current (non AEF) Grants to Local Authorities,Localism,ASHFIELD DC,,,,235415296,5000257389,,Business Rates 2% Inflation Cap,NG17 8DA,"4,437.00",Yes
Communities & Local Government,DCLG,15/07/2014,Current (non AEF) Grants to Local Authorities,Localism,ASHFIELD DC,,,,235415296,5000257392,,Small Business Rates Relief,NG17 8DA,"33,558.00",Yes
Communities & Local Government,DCLG,15/07/2014,Current (non AEF) Grants to Local Authorities,Localism,ASHFIELD DC,,,,235415296,5000257394,,Empty New Build Relief,NG17 8DA,"1,880.00",Yes
Communities & Local Government,DCLG,15/07/2014,Current (non AEF) Grants to Local Authorities,Localism,ASHFORD BC,,,,229467071,5000255311,,Council Tax Freeze,TN23 1PL,"6,865.00",Yes
Communities & Local Government,DCLG,15/07/2014,Current (non AEF) Grants to Local Authorities,Localism,ASHFORD BC,,,,229467071,5000256522,,Retail Relief,TN23 1PL,"36,706.00",Yes
Communities & Local Government,DCLG,15/07/2014,Current (non AEF) Grants to Local Authorities,Localism,ASHFORD BC,,,,229467071,5000256524,,Business Rates 2% Inflation Cap,TN23 1PL,"3,169.00",Yes
Communities & Local Government,DCLG,15/07/2014,Current (non AEF) Grants to Local Authorities,Localism,ASHFORD BC,,,,229467071,5000256525,,Small Business Rates Relief,TN23 1PL,"47,538.00",Yes
Communities & Local Government,DCLG,15/07/2014,Current (non AEF) Grants to Local Authorities,Localism,AVON FIRE AUTHORITY,,Large,,424872570,5000255272,,Firefighters Pensions,BS1 6EU,"3,316,872.00",Yes
Communities & Local Government,DCLG,15/07/2014,Current (non AEF) Grants to Local Authorities,Localism,AVON FIRE AUTHORITY,,Large,,424872570,5000255273,,Firefighters Pensions,BS1 6EU,"6,191,747.00",Yes
Communities & Local Government,DCLG,15/07/2014,Current (non AEF) Grants to Local Authorities,Localism,AVON FIRE AUTHORITY,,Large,,424872570,5000256550,,Business Rates 2% Inflation Cap,BS1 6EU,"10,298.00",Yes
Communities & Local Government,DCLG,15/07/2014,Current (non AEF) Grants to Local Authorities,Localism,AVON FIRE AUTHORITY,,Large,,424872570,5000256552,,Small Business Rates Relief,BS1 6EU,"7,891.00",Yes
Communities & Local Government,DCLG,15/07/2014,Current (non AEF) Grants to Local Authorities,Localism,AVON FIRE AUTHORITY,,Large,,424872570,5000256557,,Reoccupation Relief,BS1 6EU,"1,945.00",Yes
Communities & Local Government,DCLG,15/07/2014,Current (non AEF) Grants to Local Authorities,Localism,AVON FIRE AUTHORITY,,Large,,424872570,5000256559,,Small Business Rates Relief on Second Properties,BS1 6EU,388.00,Yes
Communities & Local Government,DCLG,15/07/2014,Current (non AEF) Grants to Local Authorities,Localism,AVON FIRE AUTHORITY,,Large,,424872570,5000256563,,Retail Relief,BS1 6EU,"5,523.00",Yes
Communities & Local Government,DCLG,15/07/2014,Current (non AEF) Grants to Local Authorities,Localism,AYLESBURY VALE DC(HSG),,,,396710709,5000256527,,Business Rates 2% Inflation Cap,HP19 8FF,"3,577.00",Yes
Communities & Local Government,DCLG,15/07/2014,Current (non AEF) Grants to Local Authorities,Localism,AYLESBURY VALE DC(HSG),,,,396710709,5000256529,,Small Business Rates Relief,HP19 8FF,"59,302.00",Yes
Communities & Local Government,DCLG,15/07/2014,Current (non AEF) Grants to Local Authorities,Localism,BABERGH DC,,,,232618405,5000255312,,Council Tax Freeze,IP7 6SJ,"4,931.00",Yes
Communities & Local Government,DCLG,15/07/2014,Current (non AEF) Grants to Local Authorities,Localism,BABERGH DC,,,,232618405,5000256531,,Reoccupation Relief,IP7 6SJ,"2,428.00",Yes
Communities & Local Government,DCLG,15/07/2014,Current (non AEF) Grants to Local Authorities,Localism,BABERGH DC,,,,232618405,5000256533,,Retail Relief,IP7 6SJ,"6,064.00",Yes
Communities & Local Government,DCLG,15/07/2014,Current (non AEF) Grants to Local Authorities,Localism,BABERGH DC,,,,232618405,5000256535,,Small Business Rates Relief on Second Properties,IP7 6SJ,823.00,Yes
Communities & Local Government,DCLG,15/07/2014,Current (non AEF) Grants to Local Authorities,Localism,BABERGH DC,,,,232618405,5000256537,,Small Business Rates Relief,IP7 6SJ,"40,739.00",Yes
Communities & Local Government,DCLG,15/07/2014,Current (non AEF) Grants to Local Authorities,Localism,BABERGH DC,,,,232618405,5000256539,,Business Rates 2% Inflation Cap,IP7 6SJ,"2,622.00",Yes
Communities & Local Government,DCLG,15/07/2014,Current (non AEF) Grants to Local Authorities,Localism,BARKING & DAGENHAM LB (HSG),,,,217142293,5000255313,,Council Tax Freeze,RM10 7BY,"54,149.00",Yes
Communities & Local Government,DCLG,15/07/2014,Current (non AEF) Grants to Local Authorities,Localism,BARKING & DAGENHAM LB (HSG),,,,217142293,5000256541,,Reoccupation Relief,RM10 7BY,"3,890.00",Yes
Communities & Local Government,DCLG,15/07/2014,Current (non AEF) Grants to Local Authorities,Localism,BARKING & DAGENHAM LB (HSG),,,,217142293,5000256543,,Retail Relief,RM10 7BY,"42,597.00",Yes
Communities & Local Government,DCLG,15/07/2014,Current (non AEF) Grants to Local Authorities,Localism,BARKING & DAGENHAM LB (HSG),,,,217142293,5000256545,,Small Business Rates Relief,RM10 7BY,"33,218.00",Yes
Communities & Local Government,DCLG,15/07/2014,Current (non AEF) Grants to Local Authorities,Localism,BARKING & DAGENHAM LB (HSG),,,,217142293,5000256547,,Business Rates 2% Inflation Cap,RM10 7BY,"54,064.00",Yes
Communities & Local Government,DCLG,15/07/2014,Current (non AEF) Grants to Local Authorities,Localism,BARKING & DAGENHAM LB (HSG),,,,217142293,5000256549,,Empty New Build Relief,RM10 7BY,"2,530.00",Yes
Communities & Local Government,DCLG,15/07/2014,Current (non AEF) Grants to Local Authorities,Localism,BARNET LBC,,,,211049507,5000255440,,Council Tax Freeze,NW4 4BG,"165,932.00",Yes
Communities & Local Government,DCLG,15/07/2014,Current (non AEF) Grants to Local Authorities,Localism,BARNET LBC,,,,211049507,5000257397,,Small Business Rates Relief,NW4 4BG,"50,422.00",Yes
Communities & Local Government,DCLG,15/07/2014,Current (non AEF) Grants to Local Authorities,Localism,BARNET LBC,,,,211049507,5000257400,,Reoccupation Relief,NW4 4BG,"36,383.00",Yes
Communities & Local Government,DCLG,15/07/2014,Current (non AEF) Grants to Local Authorities,Localism,BARNET LBC,,,,211049507,5000257403,,Retail Relief,NW4 4BG,"75,797.00",Yes
Communities & Local Government,DCLG,15/07/2014,Current (non AEF) Grants to Local Authorities,Localism,BARNET LBC,,,,211049507,5000257406,,Business Rates 2% Inflation Cap,NW4 4BG,"54,712.00",Yes
Communities & Local Government,DCLG,15/07/2014,Current (non AEF) Grants to Local Authorities,Localism,BARNSLEY MBC,,,,211178595,5000257409,,Business Rates 2% Inflation Cap,S70 2AQ,"53,943.00",Yes
Communities & Local Government,DCLG,15/07/2014,Current (non AEF) Grants to Local Authorities,Localism,BARNSLEY MBC,,,,211178595,5000257412,,Small Business Rates Relief,S70 2AQ,"110,389.00",Yes
Communities & Local Government,DCLG,15/07/2014,Current (non AEF) Grants to Local Authorities,Localism,BARNSLEY MBC,,,,211178595,5000257415,,Reoccupation Relief,S70 2AQ,"2,124.00",Yes
Communities & Local Government,DCLG,15/07/2014,Current (non AEF) Grants to Local Authorities,Localism,BARNSLEY MBC,,,,211178595,5000257418,,Retail Relief,S70 2AQ,"36,541.00",Yes
Communities & Local Government,DCLG,15/07/2014,Current (non AEF) Grants to Local Authorities,Localism,BARROW BC,,,,295632913,5000257421,,Retail Relief,LA14 2LD,"13,501.00",Yes
Communities & Local Government,DCLG,15/07/2014,Current (non AEF) Grants to Local Authorities,Localism,BARROW BC,,,,295632913,5000257424,,Business Rates 2% Inflation Cap,LA14 2LD,"3,525.00",Yes
Communities & Local Government,DCLG,15/07/2014,Current (non AEF) Grants to Local Authorities,Localism,BARROW BC,,,,295632913,5000257427,,Small Business Rates Relief,LA14 2LD,"25,932.00",Yes
Communities & Local Government,DCLG,15/07/2014,Current (non AEF) Grants to Local Authorities,Localism,BARROW BC,,,,295632913,5000257430,,Reoccupation Relief,LA14 2LD,"2,455.00",Yes
Communities & Local Government,DCLG,15/07/2014,Current (non AEF) Grants to Local Authorities,Localism,BASILDON BOROUGH COUNCIL,,,,,5000255442,,Council Tax Freeze,SS14 0DF,"16,237.00",Yes
Communities & Local Government,DCLG,15/07/2014,Current (non AEF) Grants to Local Authorities,Localism,BASILDON BOROUGH COUNCIL,,,,,5000257433,,Business Rates 2% Inflation Cap,SS14 0DF,"5,624.00",Yes
Communities & Local Government,DCLG,15/07/2014,Current (non AEF) Grants to Local Authorities,Localism,BASILDON BOROUGH COUNCIL,,,,,5000257435,,Small Business Rates Relief on Second Properties,SS14 0DF,809.00,Yes
Communities & Local Government,DCLG,15/07/2014,Current (non AEF) Grants to Local Authorities,Localism,BASILDON BOROUGH COUNCIL,,,,,5000257438,,Small Business Rates Relief,SS14 0DF,"45,130.00",Yes
Communities & Local Government,DCLG,15/07/2014,Current (non AEF) Grants to Local Authorities,Localism,BASILDON BOROUGH COUNCIL,,,,,5000257441,,Reoccupation Relief,SS14 0DF,"15,361.00",Yes
Communities & Local Government,DCLG,15/07/2014,Current (non AEF) Grants to Local Authorities,Localism,BASILDON BOROUGH COUNCIL,,,,,5000257444,,Retail Relief,SS14 0DF,"42,285.00",Yes
Communities & Local Government,DCLG,15/07/2014,Current (non AEF) Grants to Local Authorities,Localism,BASINGSTOKE & DEANE BC,,,,228328506,5000255443,,Council Tax Freeze,RG21 2AJ,"6,937.00",Yes
Communities & Local Government,DCLG,15/07/2014,Current (non AEF) Grants to Local Authorities,Localism,BASINGSTOKE & DEANE BC,,,,228328506,5000257447,,Business Rates 2% Inflation Cap,RG21 2AJ,"3,191.00",Yes
Communities & Local Government,DCLG,15/07/2014,Current (non AEF) Grants to Local Authorities,Localism,BASINGSTOKE & DEANE BC,,,,228328506,5000257450,,Empty New Build Relief,RG21 2AJ,975.00,Yes
Communities & Local Government,DCLG,15/07/2014,Current (non AEF) Grants to Local Authorities,Localism,BASINGSTOKE & DEANE BC,,,,228328506,5000257453,,Reoccupation Relief,RG21 2AJ,"3,314.00",Yes
Communities & Local Government,DCLG,15/07/2014,Current (non AEF) Grants to Local Authorities,Localism,BASINGSTOKE & DEANE BC,,,,228328506,5000257456,,Retail Relief,RG21 2AJ,"20,212.00",Yes
Communities & Local Government,DCLG,15/07/2014,Current (non AEF) Grants to Local Authorities,Localism,BASINGSTOKE & DEANE BC,,,,228328506,5000257459,,Small Business Rates Relief on Second Properties,RG21 2AJ,"1,142.00",Yes
Communities & Local Government,DCLG,15/07/2014,Current (non AEF) Grants to Local Authorities,Localism,BASINGSTOKE & DEANE BC,,,,228328506,5000257462,,Small Business Rates Relief,RG21 2AJ,"30,295.00",Yes
Communities & Local Government,DCLG,15/07/2014,Current (non AEF) Grants to Local Authorities,Localism,BASSETLAW DC (HSG),,,,,5000256551,,Business Rates 2% Inflation Cap,S80 2AH,"2,886.00",Yes
Communities & Local Government,DCLG,15/07/2014,Current (non AEF) Grants to Local Authorities,Localism,BASSETLAW DC (HSG),,,,,5000256553,,Small Business Rates Relief,S80 2AH,"44,955.00",Yes
Communities & Local Government,DCLG,15/07/2014,Current (non AEF) Grants to Local Authorities,Localism,BASSETLAW DC (HSG),,,,,5000256556,,Reoccupation Relief,S80 2AH,"3,436.00",Yes
Communities & Local Government,DCLG,15/07/2014,Current (non AEF) Grants to Local Authorities,Localism,BASSETLAW DC (HSG),,,,,5000256561,,Small Business Rates Relief on Second Properties,S80 2AH,616.00,Yes
Communities & Local Government,DCLG,15/07/2014,Current (non AEF) Grants to Local Authorities,Localism,BASSETLAW DC (HSG),,,,,5000256564,,Empty New Build Relief,S80 2AH,"1,011.00",Yes
Communities & Local Government,DCLG,15/07/2014,Current (non AEF) Grants to Local Authorities,Localism,BASSETLAW DC (HSG),,,,,5000256568,,Retail Relief,S80 2AH,"16,170.00",Yes
Communities & Local Government,DCLG,15/07/2014,Current (non AEF) Grants to Local Authorities,Localism,BATH & NE SOMERSET DC (HSG),,,,214502499,5000255316,,Council Tax Freeze,BA1 5AW,"79,867.00",Yes
Communities & Local Government,DCLG,15/07/2014,Current (non AEF) Grants to Local Authorities,Localism,BATH & NE SOMERSET DC (HSG),,,,214502499,5000256572,,Business Rates 2% Inflation Cap,BA1 5AW,"23,470.00",Yes
Communities & Local Government,DCLG,15/07/2014,Current (non AEF) Grants to Local Authorities,Localism,BATH & NE SOMERSET DC (HSG),,,,214502499,5000256576,,Small Business Rates Relief,BA1 5AW,"86,761.00",Yes
Communities & Local Government,DCLG,15/07/2014,Current (non AEF) Grants to Local Authorities,Localism,BATH & NE SOMERSET DC (HSG),,,,214502499,5000256580,,Reoccupation Relief,BA1 5AW,"17,300.00",Yes
Communities & Local Government,DCLG,15/07/2014,Current (non AEF) Grants to Local Authorities,Localism,BATH & NE SOMERSET DC (HSG),,,,214502499,5000256584,,Retail Relief,BA1 5AW,"58,356.00",Yes
Communities & Local Government,DCLG,15/07/2014,Current (non AEF) Grants to Local Authorities,Localism,BEDFORD UNITARY AUTHORITY,,,,225682160,5000255704,,Council Tax Freeze,MK40 1SJ,"77,230.00",Yes
Communities & Local Government,DCLG,15/07/2014,Current (non AEF) Grants to Local Authorities,Localism,BEDFORD UNITARY AUTHORITY,,,,225682160,5000256662,,Business Rates 2% Inflation Cap,MK40 1SJ,"31,029.00",Yes
Communities & Local Government,DCLG,15/07/2014,Current (non AEF) Grants to Local Authorities,Localism,BEDFORD UNITARY AUTHORITY,,,,225682160,5000256666,,Retail Relief,MK40 1SJ,"36,150.00",Yes
Communities & Local Government,DCLG,15/07/2014,Current (non AEF) Grants to Local Authorities,Localism,BEDFORD UNITARY AUTHORITY,,,,225682160,5000256670,,Small Business Rates Relief,MK40 1SJ,"70,348.00",Yes
Communities & Local Government,DCLG,15/07/2014,Current (non AEF) Grants to Local Authorities,Localism,BEDFORD UNITARY AUTHORITY,,,,225682160,5000256674,,Reoccupation Relief,MK40 1SJ,"1,238.00",Yes
Communities & Local Government,DCLG,15/07/2014,Current (non AEF) Grants to Local Authorities,Localism,BEDS & LUTON FIRE & RESCUE SERVICE,,Medium,,387821283,5000255244,,Firefighters Pensions,MK42 7NR,"2,264,842.00",Yes
Communities & Local Government,DCLG,15/07/2014,Current (non AEF) Grants to Local Authorities,Localism,BEDS & LUTON FIRE & RESCUE SERVICE,,Medium,,387821283,5000255245,,Firefighters Pensions,MK42 7NR,"619,698.00",Yes
Communities & Local Government,DCLG,15/07/2014,Current (non AEF) Grants to Local Authorities,Localism,BEDS & LUTON FIRE & RESCUE SERVICE,,Medium,,387821283,5000257817,,Business Rates 2% Inflation Cap,MK42 7NR,"5,545.00",Yes
Communities & Local Government,DCLG,15/07/2014,Current (non AEF) Grants to Local Authorities,Localism,BEDS & LUTON FIRE & RESCUE SERVICE,,Medium,,387821283,5000257820,,Small Business Rates Relief,MK42 7NR,"4,911.00",Yes
Communities & Local Government,DCLG,15/07/2014,Current (non AEF) Grants to Local Authorities,Localism,BEDS & LUTON FIRE & RESCUE SERVICE,,Medium,,387821283,5000257823,,Reoccupation Relief,MK42 7NR,359.00,Yes
Communities & Local Government,DCLG,15/07/2014,Current (non AEF) Grants to Local Authorities,Localism,BEDS & LUTON FIRE & RESCUE SERVICE,,Medium,,387821283,5000257826,,Retail Relief,MK42 7NR,"2,863.00",Yes
Communities & Local Government,DCLG,15/07/2014,Current (non AEF) Grants to Local Authorities,Localism,BEXLEY LB (HSG),,,,,5000255317,,Council Tax Freeze,DA8 1TL,"96,816.00",Yes
Communities & Local Government,DCLG,15/07/2014,Current (non AEF) Grants to Local Authorities,Localism,BEXLEY LB (RSG),,,,,5000257478,,Reoccupation Relief,DA8 1TL,"1,688.00",Yes
Communities & Local Government,DCLG,15/07/2014,Current (non AEF) Grants to Local Authorities,Localism,BEXLEY LB (RSG),,,,,5000257481,,Business Rates 2% Inflation Cap,DA8 1TL,"36,219.00",Yes
Communities & Local Government,DCLG,15/07/2014,Current (non AEF) Grants to Local Authorities,Localism,BEXLEY LB (RSG),,,,,5000257484,,Small Business Rates Relief,DA8 1TL,"58,237.00",Yes
Communities & Local Government,DCLG,15/07/2014,Current (non AEF) Grants to Local Authorities,Localism,BEXLEY LB (RSG),,,,,5000257487,,Retail Relief,DA8 1TL,"34,414.00",Yes
Communities & Local Government,DCLG,15/07/2014,Current (non AEF) Grants to Local Authorities,Localism,BIRMINGHAM CITY CNCL,,,,213780559,5000257465,,Business Rates 2% Inflation Cap,B2 2AJ,"345,209.00",Yes
Communities & Local Government,DCLG,15/07/2014,Current (non AEF) Grants to Local Authorities,Localism,BIRMINGHAM CITY CNCL,,,,213780559,5000257468,,Retail Relief,B2 2AJ,"251,067.00",Yes
Communities & Local Government,DCLG,15/07/2014,Current (non AEF) Grants to Local Authorities,Localism,BIRMINGHAM CITY CNCL,,,,213780559,5000257471,,Small Business Rates Relief,B2 2AJ,"534,828.00",Yes
Communities & Local Government,DCLG,15/07/2014,Current (non AEF) Grants to Local Authorities,Localism,BLABY DC (HSG),,,,,5000256589,,Business Rates 2% Inflation Cap,LE9 5EP,"3,383.00",Yes
Communities & Local Government,DCLG,15/07/2014,Current (non AEF) Grants to Local Authorities,Localism,BLABY DC (HSG),,,,,5000256594,,Small Business Rates Relief,LE9 5EP,"22,799.00",Yes
Communities & Local Government,DCLG,15/07/2014,Current (non AEF) Grants to Local Authorities,Localism,BLABY DC (HSG),,,,,5000256598,,Retail Relief,LE9 5EP,"7,297.00",Yes
Communities & Local Government,DCLG,15/07/2014,Current (non AEF) Grants to Local Authorities,Localism,BLACKBURN WITH DARWEN BC,,,,,5000255446,,Council Tax Freeze,BB1 7DY,"49,797.00",Yes
Communities & Local Government,DCLG,15/07/2014,Current (non AEF) Grants to Local Authorities,Localism,BLACKBURN WITH DARWEN BC,,,,,5000257475,,Reoccupation Relief,BB1 7DY,"7,725.00",Yes
Communities & Local Government,DCLG,15/07/2014,Current (non AEF) Grants to Local Authorities,Localism,BLACKBURN WITH DARWEN BC,,,,,5000257477,,Small Business Rates Relief on Second Properties,BB1 7DY,"2,476.00",Yes
Communities & Local Government,DCLG,15/07/2014,Current (non AEF) Grants to Local Authorities,Localism,BLACKBURN WITH DARWEN BC,,,,,5000257480,,Business Rates 2% Inflation Cap,BB1 7DY,"42,503.00",Yes
Communities & Local Government,DCLG,15/07/2014,Current (non AEF) Grants to Local Authorities,Localism,BLACKBURN WITH DARWEN BC,,,,,5000257483,,Small Business Rates Relief,BB1 7DY,"115,134.00",Yes
Communities & Local Government,DCLG,15/07/2014,Current (non AEF) Grants to Local Authorities,Localism,BLACKBURN WITH DARWEN BC,,,,,5000257486,,Retail Relief,BB1 7DY,"22,927.00",Yes
Communities & Local Government,DCLG,15/07/2014,Current (non AEF) Grants to Local Authorities,Localism,BLACKPOOL BC,,,,,5000255448,,Council Tax Freeze,FY1 1NA,"61,277.00",Yes
Communities & Local Government,DCLG,15/07/2014,Current (non AEF) Grants to Local Authorities,Localism,BLACKPOOL BC,,,,,5000257489,,Reoccupation Relief,FY1 1NA,"2,317.00",Yes
Communities & Local Government,DCLG,15/07/2014,Current (non AEF) Grants to Local Authorities,Localism,BLACKPOOL BC,,,,,5000257492,,Retail Relief,FY1 1NA,"49,196.00",Yes
Communities & Local Government,DCLG,15/07/2014,Current (non AEF) Grants to Local Authorities,Localism,BLACKPOOL BC,,,,,5000257495,,Small Business Rates Relief,FY1 1NA,"143,577.00",Yes
Communities & Local Government,DCLG,15/07/2014,Current (non AEF) Grants to Local Authorities,Localism,BLACKPOOL BC,,,,,5000257498,,Business Rates 2% Inflation Cap,FY1 1NA,"45,349.00",Yes
Communities & Local Government,DCLG,15/07/2014,Current (non AEF) Grants to Local Authorities,Localism,BLACKPOOL BC,,,,,5000257501,,Empty New Build Relief,FY1 1NA,"2,476.00",Yes
Communities & Local Government,DCLG,15/07/2014,Current (non AEF) Grants to Local Authorities,Localism,BLACKPOOL BC,,,,,5000257504,,Small Business Rates Relief on Second Properties,FY1 1NA,"14,360.00",Yes
Communities & Local Government,DCLG,15/07/2014,Current (non AEF) Grants to Local Authorities,Localism,BOLSOVER DC,,,,235516523,5000255449,,Council Tax Freeze,S44 6NF,"3,679.00",Yes
Communities & Local Government,DCLG,15/07/2014,Current (non AEF) Grants to Local Authorities,Localism,BOLSOVER DC,,,,235516523,5000257507,,Small Business Rates Relief,S44 6NF,"23,843.00",Yes
Communities & Local Government,DCLG,15/07/2014,Current (non AEF) Grants to Local Authorities,Localism,BOLSOVER DC,,,,235516523,5000257511,,Business Rates 2% Inflation Cap,S44 6NF,"3,648.00",Yes
Communities & Local Government,DCLG,15/07/2014,Current (non AEF) Grants to Local Authorities,Localism,BOLSOVER DC,,,,235516523,5000257514,,Retail Relief,S44 6NF,"10,577.00",Yes
Communities & Local Government,DCLG,15/07/2014,Current (non AEF) Grants to Local Authorities,Localism,BOLTON MBC,,,,,5000257517,,Business Rates 2% Inflation Cap,BL1 1RU,"64,799.00",Yes
Communities & Local Government,DCLG,15/07/2014,Current (non AEF) Grants to Local Authorities,Localism,BOLTON MBC,,,,,5000257520,,Retail Relief,BL1 1RU,"62,792.00",Yes
Communities & Local Government,DCLG,15/07/2014,Current (non AEF) Grants to Local Authorities,Localism,BOLTON MBC,,,,,5000257522,,Small Business Rates Relief,BL1 1RU,"175,797.00",Yes
Communities & Local Government,DCLG,15/07/2014,Current (non AEF) Grants to Local Authorities,Localism,BOLTON MBC,,,,,5000257525,,Reoccupation Relief,BL1 1RU,"58,187.00",Yes
Communities & Local Government,DCLG,15/07/2014,Current (non AEF) Grants to Local Authorities,Localism,BOSTON BC,,,,236417713,5000255319,,Council Tax Freeze,PE21 8QR,"3,395.00",Yes
Communities & Local Government,DCLG,15/07/2014,Current (non AEF) Grants to Local Authorities,Localism,BOSTON BC,,,,236417713,5000256601,,Small Business Rates Relief,PE21 8QR,"26,740.00",Yes
Communities & Local Government,DCLG,15/07/2014,Current (non AEF) Grants to Local Authorities,Localism,BOSTON BC,,,,236417713,5000256605,,Reoccupation Relief,PE21 8QR,818.00,Yes
Communities & Local Government,DCLG,15/07/2014,Current (non AEF) Grants to Local Authorities,Localism,BOSTON BC,,,,236417713,5000256608,,Retail Relief,PE21 8QR,"12,642.00",Yes
Communities & Local Government,DCLG,15/07/2014,Current (non AEF) Grants to Local Authorities,Localism,BOSTON BC,,,,236417713,5000256612,,Business Rates 2% Inflation Cap,PE21 8QR,"2,592.00",Yes
Communities & Local Government,DCLG,15/07/2014,Current (non AEF) Grants to Local Authorities,Localism,BOURNEMOUTH DC,,,,,5000255452,,Council Tax Freeze,BH2 6EB,"84,313.00",Yes
Communities & Local Government,DCLG,15/07/2014,Current (non AEF) Grants to Local Authorities,Localism,BOURNEMOUTH DC,,,,,5000257528,,Small Business Rates Relief,BH2 6EB,"108,217.00",Yes
Communities & Local Government,DCLG,15/07/2014,Current (non AEF) Grants to Local Authorities,Localism,BOURNEMOUTH DC,,,,,5000257531,,Reoccupation Relief,BH2 6EB,"10,873.00",Yes
Communities & Local Government,DCLG,15/07/2014,Current (non AEF) Grants to Local Authorities,Localism,BOURNEMOUTH DC,,,,,5000257534,,Retail Relief,BH2 6EB,"52,679.00",Yes
Communities & Local Government,DCLG,15/07/2014,Current (non AEF) Grants to Local Authorities,Localism,BOURNEMOUTH DC,,,,,5000257537,,Business Rates 2% Inflation Cap,BH2 6EB,"29,889.00",Yes
Communities & Local Government,DCLG,15/07/2014,Current (non AEF) Grants to Local Authorities,Localism,BRACKNELL FOREST DC,,,,236184867,5000255453,,Council Tax Freeze,RG12 1AQ,"50,144.00",Yes
Communities & Local Government,DCLG,15/07/2014,Current (non AEF) Grants to Local Authorities,Localism,BRACKNELL FOREST DC,,,,236184867,5000257540,,Business Rates 2% Inflation Cap,RG12 1AQ,"25,136.00",Yes
Communities & Local Government,DCLG,15/07/2014,Current (non AEF) Grants to Local Authorities,Localism,BRACKNELL FOREST DC,,,,236184867,5000257543,,Small Business Rates Relief,RG12 1AQ,"21,535.00",Yes
Communities & Local Government,DCLG,15/07/2014,Current (non AEF) Grants to Local Authorities,Localism,BRACKNELL FOREST DC,,,,236184867,5000257546,,Retail Relief,RG12 1AQ,"27,236.00",Yes
Communities & Local Government,DCLG,15/07/2014,Current (non AEF) Grants to Local Authorities,Localism,BRACKNELL FOREST DC,,,,236184867,5000257549,,Reoccupation Relief,RG12 1AQ,"2,476.00",Yes
Communities & Local Government,DCLG,15/07/2014,Current (non AEF) Grants to Local Authorities,Localism,BRACKNELL FOREST DC,,,,236184867,5000257552,,Small Business Rates Relief on Second Properties,RG12 1AQ,"2,476.00",Yes
Communities & Local Government,DCLG,15/07/2014,Current (non AEF) Grants to Local Authorities,Localism,BRADFORD MBC,,,,,5000257555,,Empty New Build Relief,BD1 1HX,990.00,Yes
Communities & Local Government,DCLG,15/07/2014,Current (non AEF) Grants to Local Authorities,Localism,BRADFORD MBC,,,,,5000257558,,Reoccupation Relief,BD1 1HX,"12,380.00",Yes
Communities & Local Government,DCLG,15/07/2014,Current (non AEF) Grants to Local Authorities,Localism,BRADFORD MBC,,,,,5000257561,,Retail Relief,BD1 1HX,"118,848.00",Yes
Communities & Local Government,DCLG,15/07/2014,Current (non AEF) Grants to Local Authorities,Localism,BRADFORD MBC,,,,,5000257564,,Small Business Rates Relief on Second Properties,BD1 1HX,496.00,Yes
Communities & Local Government,DCLG,15/07/2014,Current (non AEF) Grants to Local Authorities,Localism,BRADFORD MBC,,,,,5000257567,,Small Business Rates Relief,BD1 1HX,"360,934.00",Yes
Communities & Local Government,DCLG,15/07/2014,Current (non AEF) Grants to Local Authorities,Localism,BRADFORD MBC,,,,,5000257571,,Business Rates 2% Inflation Cap,BD1 1HX,"130,565.00",Yes
Communities & Local Government,DCLG,15/07/2014,Current (non AEF) Grants to Local Authorities,Localism,BRAINTREE DC,,,,226941730,5000255320,,Council Tax Freeze,CM7 6HB,"8,751.00",Yes
Communities & Local Government,DCLG,15/07/2014,Current (non AEF) Grants to Local Authorities,Localism,BRAINTREE DC,,,,226941730,5000256616,,Retail Relief,CM7 6HB,"21,486.00",Yes
Communities & Local Government,DCLG,15/07/2014,Current (non AEF) Grants to Local Authorities,Localism,BRAINTREE DC,,,,226941730,5000256621,,Business Rates 2% Inflation Cap,CM7 6HB,"3,701.00",Yes
Communities & Local Government,DCLG,15/07/2014,Current (non AEF) Grants to Local Authorities,Localism,BRAINTREE DC,,,,226941730,5000256625,,Small Business Rates Relief,CM7 6HB,"57,254.00",Yes
Communities & Local Government,DCLG,15/07/2014,Current (non AEF) Grants to Local Authorities,Localism,BRAINTREE DC,,,,226941730,5000256628,,Empty New Build Relief,CM7 6HB,"2,190.00",Yes
Communities & Local Government,DCLG,15/07/2014,Current (non AEF) Grants to Local Authorities,Localism,BRAINTREE DC,,,,226941730,5000256632,,Reoccupation Relief,CM7 6HB,"13,485.00",Yes
Communities & Local Government,DCLG,15/07/2014,Current (non AEF) Grants to Local Authorities,Localism,BRECKLAND DC,,,,232611384,5000255321,,Council Tax Freeze,NR19 1EE,"3,072.00",Yes
Communities & Local Government,DCLG,15/07/2014,Current (non AEF) Grants to Local Authorities,Localism,BRECKLAND DC,,,,232611384,5000256636,,Business Rates 2% Inflation Cap,NR19 1EE,"4,318.00",Yes
Communities & Local Government,DCLG,15/07/2014,Current (non AEF) Grants to Local Authorities,Localism,BRECKLAND DC,,,,232611384,5000256640,,Retail Relief,NR19 1EE,"20,879.00",Yes
Communities & Local Government,DCLG,15/07/2014,Current (non AEF) Grants to Local Authorities,Localism,BRECKLAND DC,,,,232611384,5000256644,,Small Business Rates Relief,NR19 1EE,"55,167.00",Yes
Communities & Local Government,DCLG,15/07/2014,Current (non AEF) Grants to Local Authorities,Localism,BRECKLAND DC,,,,232611384,5000256648,,Reoccupation Relief,NR19 1EE,"1,833.00",Yes
Communities & Local Government,DCLG,15/07/2014,Current (non AEF) Grants to Local Authorities,Localism,BRENT LB (HSG),,,,,5000255322,,Council Tax Freeze,HA9 9HD,"105,604.00",Yes
Communities & Local Government,DCLG,15/07/2014,Current (non AEF) Grants to Local Authorities,Localism,BRENT LB (HSG),,,,,5000256652,,Empty New Build Relief,HA9 9HD,"3,031.00",Yes
Communities & Local Government,DCLG,15/07/2014,Current (non AEF) Grants to Local Authorities,Localism,BRENT LB (HSG),,,,,5000256656,,Retail Relief,HA9 9HD,"63,679.00",Yes
Communities & Local Government,DCLG,15/07/2014,Current (non AEF) Grants to Local Authorities,Localism,BRENT LB (HSG),,,,,5000256660,,Small Business Rates Relief,HA9 9HD,"61,117.00",Yes
Communities & Local Government,DCLG,15/07/2014,Current (non AEF) Grants to Local Authorities,Localism,BRENT LB (HSG),,,,,5000256664,,Reoccupation Relief,HA9 9HD,"7,580.00",Yes
Communities & Local Government,DCLG,15/07/2014,Current (non AEF) Grants to Local Authorities,Localism,BRENT LB (HSG),,,,,5000256669,,Business Rates 2% Inflation Cap,HA9 9HD,"86,062.00",Yes
Communities & Local Government,DCLG,15/07/2014,Current (non AEF) Grants to Local Authorities,Localism,BRENTWOOD BC,,,,227473188,5000255456,,Council Tax Freeze,CM15 8AY,"5,682.00",Yes
Communities & Local Government,DCLG,15/07/2014,Current (non AEF) Grants to Local Authorities,Localism,BRENTWOOD BC,,,,227473188,5000257574,,Retail Relief,CM15 8AY,"28,682.00",Yes
Communities & Local Government,DCLG,15/07/2014,Current (non AEF) Grants to Local Authorities,Localism,BRENTWOOD BC,,,,227473188,5000257576,,Business Rates 2% Inflation Cap,CM15 8AY,"1,199.00",Yes
Communities & Local Government,DCLG,15/07/2014,Current (non AEF) Grants to Local Authorities,Localism,BRENTWOOD BC,,,,227473188,5000257579,,Small Business Rates Relief,CM15 8AY,"21,052.00",Yes
Communities & Local Government,DCLG,15/07/2014,Current (non AEF) Grants to Local Authorities,Localism,BRIGHTON & HOVE CITY COUNCIL,,,,228455218,5000257583,,Business Rates 2% Inflation Cap,BN3 2SR,"56,912.00",Yes
Communities & Local Government,DCLG,15/07/2014,Current (non AEF) Grants to Local Authorities,Localism,BRIGHTON & HOVE CITY COUNCIL,,,,228455218,5000257586,,Empty New Build Relief,BN3 2SR,"1,486.00",Yes
Communities & Local Government,DCLG,15/07/2014,Current (non AEF) Grants to Local Authorities,Localism,BRIGHTON & HOVE CITY COUNCIL,,,,228455218,5000257588,,Reoccupation Relief,BN3 2SR,"3,813.00",Yes
Communities & Local Government,DCLG,15/07/2014,Current (non AEF) Grants to Local Authorities,Localism,BRIGHTON & HOVE CITY COUNCIL,,,,228455218,5000257592,,Retail Relief,BN3 2SR,"112,263.00",Yes
Communities & Local Government,DCLG,15/07/2014,Current (non AEF) Grants to Local Authorities,Localism,BRIGHTON & HOVE CITY COUNCIL,,,,228455218,5000257595,,Small Business Rates Relief on Second Properties,BN3 2SR,496.00,Yes
Communities & Local Government,DCLG,15/07/2014,Current (non AEF) Grants to Local Authorities,Localism,BRIGHTON & HOVE CITY COUNCIL,,,,228455218,5000257598,,Small Business Rates Relief,BN3 2SR,"145,227.00",Yes
Communities & Local Government,DCLG,15/07/2014,Current (non AEF) Grants to Local Authorities,Localism,BRISTOL CITY CNCL (HSG),,,,211103882,5000256673,,Business Rates 2% Inflation Cap,BS99 7BL,"102,131.00",Yes
Communities & Local Government,DCLG,15/07/2014,Current (non AEF) Grants to Local Authorities,Localism,BRISTOL CITY CNCL (HSG),,,,211103882,5000256678,,Retail Relief,BS99 7BL,"99,040.00",Yes
Communities & Local Government,DCLG,15/07/2014,Current (non AEF) Grants to Local Authorities,Localism,BRISTOL CITY CNCL (HSG),,,,211103882,5000256682,,Small Business Rates Relief on Second Properties,BS99 7BL,"4,952.00",Yes
Communities & Local Government,DCLG,15/07/2014,Current (non AEF) Grants to Local Authorities,Localism,BRISTOL CITY CNCL (HSG),,,,211103882,5000256687,,Small Business Rates Relief,BS99 7BL,"133,029.00",Yes
Communities & Local Government,DCLG,15/07/2014,Current (non AEF) Grants to Local Authorities,Localism,BRISTOL CITY CNCL (HSG),,,,211103882,5000256691,,Reoccupation Relief,BS99 7BL,"61,901.00",Yes
Communities & Local Government,DCLG,15/07/2014,Current (non AEF) Grants to Local Authorities,Localism,BROADLAND DC,,Large,,219737785,5000255325,,Council Tax Freeze,NR7 0DU,"5,253.00",Yes
Communities & Local Government,DCLG,15/07/2014,Current (non AEF) Grants to Local Authorities,Localism,BROADLAND DC,,Large,,219737785,5000256697,,Small Business Rates Relief,NR7 0DU,"48,471.00",Yes
Communities & Local Government,DCLG,15/07/2014,Current (non AEF) Grants to Local Authorities,Localism,BROADLAND DC,,Large,,219737785,5000256700,,Empty New Build Relief,NR7 0DU,"2,022.00",Yes
Communities & Local Government,DCLG,15/07/2014,Current (non AEF) Grants to Local Authorities,Localism,BROADLAND DC,,Large,,219737785,5000256704,,Reoccupation Relief,NR7 0DU,"1,011.00",Yes
Communities & Local Government,DCLG,15/07/2014,Current (non AEF) Grants to Local Authorities,Localism,BROADLAND DC,,Large,,219737785,5000256708,,Retail Relief,NR7 0DU,"13,138.00",Yes
Communities & Local Government,DCLG,15/07/2014,Current (non AEF) Grants to Local Authorities,Localism,BROADLAND DC,,Large,,219737785,5000256712,,Business Rates 2% Inflation Cap,NR7 0DU,"3,408.00",Yes
Communities & Local Government,DCLG,15/07/2014,Current (non AEF) Grants to Local Authorities,Localism,BROADLAND DC,,Large,,219737785,5000256715,,Small Business Rates Relief on Second Properties,NR7 0DU,485.00,Yes
Communities & Local Government,DCLG,15/07/2014,Current (non AEF) Grants to Local Authorities,Localism,BROMLEY LB,,,,211331954,5000255458,,Council Tax Freeze,BR1 3UH,"138,174.00",Yes
Communities & Local Government,DCLG,15/07/2014,Current (non AEF) Grants to Local Authorities,Localism,BROMLEY LB,,,,211331954,5000257601,,Business Rates 2% Inflation Cap,BR1 3UH,"36,704.00",Yes
Communities & Local Government,DCLG,15/07/2014,Current (non AEF) Grants to Local Authorities,Localism,BROMLEY LB,,,,211331954,5000257604,,Retail Relief,BR1 3UH,"58,733.00",Yes
Communities & Local Government,DCLG,15/07/2014,Current (non AEF) Grants to Local Authorities,Localism,BROMLEY LB,,,,211331954,5000257608,,Small Business Rates Relief,BR1 3UH,"64,691.00",Yes
Communities & Local Government,DCLG,15/07/2014,Current (non AEF) Grants to Local Authorities,Localism,BROMLEY LB,,,,211331954,5000257611,,Reoccupation Relief,BR1 3UH,"3,257.00",Yes
Communities & Local Government,DCLG,15/07/2014,Current (non AEF) Grants to Local Authorities,Localism,BROMSGROVE DC,,,,236654745,5000256719,,Business Rates 2% Inflation Cap,B60 1AA,"1,795.00",Yes
Communities & Local Government,DCLG,15/07/2014,Current (non AEF) Grants to Local Authorities,Localism,BROMSGROVE DC,,,,236654745,5000256723,,Retail Relief,B60 1AA,"17,264.00",Yes
Communities & Local Government,DCLG,15/07/2014,Current (non AEF) Grants to Local Authorities,Localism,BROMSGROVE DC,,,,236654745,5000256727,,Small Business Rates Relief,B60 1AA,"37,209.00",Yes
Communities & Local Government,DCLG,15/07/2014,Current (non AEF) Grants to Local Authorities,Localism,BROMSGROVE DC,,,,236654745,5000256731,,Reoccupation Relief,B60 1AA,261.00,Yes
Communities & Local Government,DCLG,15/07/2014,Current (non AEF) Grants to Local Authorities,Localism,BROXBOURNE BC,,Public Bodies,,239931918,5000255460,,Council Tax Freeze,EN8 9XG,"4,224.00",Yes
Communities & Local Government,DCLG,15/07/2014,Current (non AEF) Grants to Local Authorities,Localism,BROXBOURNE BC,,Public Bodies,,239931918,5000257614,,Reoccupation Relief,EN8 9XG,"10,107.00",Yes
Communities & Local Government,DCLG,15/07/2014,Current (non AEF) Grants to Local Authorities,Localism,BROXBOURNE BC,,Public Bodies,,239931918,5000257617,,Business Rates 2% Inflation Cap,EN8 9XG,"2,590.00",Yes
Communities & Local Government,DCLG,15/07/2014,Current (non AEF) Grants to Local Authorities,Localism,BROXBOURNE BC,,Public Bodies,,239931918,5000257620,,Small Business Rates Relief,EN8 9XG,"26,397.00",Yes
Communities & Local Government,DCLG,15/07/2014,Current (non AEF) Grants to Local Authorities,Localism,BROXBOURNE BC,,Public Bodies,,239931918,5000257622,,Retail Relief,EN8 9XG,"25,265.00",Yes
Communities & Local Government,DCLG,15/07/2014,Current (non AEF) Grants to Local Authorities,Localism,BROXTOWE BC,,,,239877640,5000255461,,Council Tax Freeze,NG9 1AB,"5,945.00",Yes
Communities & Local Government,DCLG,15/07/2014,Current (non AEF) Grants to Local Authorities,Localism,BROXTOWE BC,,,,239877640,5000257625,,Business Rates 2% Inflation Cap,NG9 1AB,"3,057.00",Yes
Communities & Local Government,DCLG,15/07/2014,Current (non AEF) Grants to Local Authorities,Localism,BROXTOWE BC,,,,239877640,5000257628,,Small Business Rates Relief,NG9 1AB,"30,373.00",Yes
Communities & Local Government,DCLG,15/07/2014,Current (non AEF) Grants to Local Authorities,Localism,BROXTOWE BC,,,,239877640,5000257631,,Retail Relief,NG9 1AB,"10,107.00",Yes
Communities & Local Government,DCLG,15/07/2014,Current (non AEF) Grants to Local Authorities,Localism,BUCKINGHAMSHIRE CC,,,,293750923,5000257634,,Small Business Rates Relief,HP20 1UD,"32,458.00",Yes
Communities & Local Government,DCLG,15/07/2014,Current (non AEF) Grants to Local Authorities,Localism,BUCKINGHAMSHIRE CC,,,,293750923,5000257637,,Business Rates 2% Inflation Cap,HP20 1UD,"41,625.00",Yes
Communities & Local Government,DCLG,15/07/2014,Current (non AEF) Grants to Local Authorities,Localism,BUCKINGHAMSHIRE CC,,,,293750923,5000257640,,Empty New Build Relief,HP20 1UD,454.00,Yes
Communities & Local Government,DCLG,15/07/2014,Current (non AEF) Grants to Local Authorities,Localism,BUCKINGHAMSHIRE CC,,,,293750923,5000257643,,Reoccupation Relief,HP20 1UD,"6,986.00",Yes
Communities & Local Government,DCLG,15/07/2014,Current (non AEF) Grants to Local Authorities,Localism,BUCKINGHAMSHIRE CC,,,,293750923,5000257646,,Retail Relief,HP20 1UD,"11,499.00",Yes
Communities & Local Government,DCLG,15/07/2014,Current (non AEF) Grants to Local Authorities,Localism,BUCKINGHAMSHIRE CC,,,,293750923,5000257649,,Small Business Rates Relief on Second Properties,HP20 1UD,961.00,Yes
Communities & Local Government,DCLG,15/07/2014,Current (non AEF) Grants to Local Authorities,Localism,BUCKS & MILTON KEYNES FIRE AUTH,,Public Bodies,,423679463,5000255219,,Firefighters Pensions,HP20 1BD,"2,946,400.00",Yes
Communities & Local Government,DCLG,15/07/2014,Current (non AEF) Grants to Local Authorities,Localism,BUCKS & MILTON KEYNES FIRE AUTH,,Public Bodies,,423679463,5000255220,,Firefighters Pensions,HP20 1BD,"1,565,918.00",Yes
Communities & Local Government,DCLG,15/07/2014,Current (non AEF) Grants to Local Authorities,Localism,BUCKS & MILTON KEYNES FIRE AUTH,,Public Bodies,,423679463,5000255686,,Council Tax Freeze,HP20 1BD,"18,082.00",Yes
Communities & Local Government,DCLG,15/07/2014,Current (non AEF) Grants to Local Authorities,Localism,BUCKS & MILTON KEYNES FIRE AUTH,,Public Bodies,,423679463,5000257618,,Small Business Rates Relief,HP20 1BD,"5,153.00",Yes
Communities & Local Government,DCLG,15/07/2014,Current (non AEF) Grants to Local Authorities,Localism,BUCKS & MILTON KEYNES FIRE AUTH,,Public Bodies,,423679463,5000257624,,Reoccupation Relief,HP20 1BD,"1,281.00",Yes
Communities & Local Government,DCLG,15/07/2014,Current (non AEF) Grants to Local Authorities,Localism,BUCKS & MILTON KEYNES FIRE AUTH,,Public Bodies,,423679463,5000257627,,Retail Relief,HP20 1BD,"2,981.00",Yes
Communities & Local Government,DCLG,15/07/2014,Current (non AEF) Grants to Local Authorities,Localism,BUCKS & MILTON KEYNES FIRE AUTH,,Public Bodies,,423679463,5000257630,,Business Rates 2% Inflation Cap,HP20 1BD,"4,828.00",Yes
Communities & Local Government,DCLG,15/07/2014,Current (non AEF) Grants to Local Authorities,Localism,BUCKS & MILTON KEYNES FIRE AUTH,,Public Bodies,,423679463,5000257633,,Small Business Rates Relief on Second Properties,HP20 1BD,258.00,Yes
Communities & Local Government,DCLG,15/07/2014,Current (non AEF) Grants to Local Authorities,Localism,BURNLEY BC,,,,229413281,5000257652,,Business Rates 2% Inflation Cap,BB11 1JA,"4,155.00",Yes
Communities & Local Government,DCLG,15/07/2014,Current (non AEF) Grants to Local Authorities,Localism,BURNLEY BC,,,,229413281,5000257655,,Small Business Rates Relief,BB11 1JA,"49,398.00",Yes
Communities & Local Government,DCLG,15/07/2014,Current (non AEF) Grants to Local Authorities,Localism,BURNLEY BC,,,,229413281,5000257658,,Retail Relief,BB11 1JA,"17,158.00",Yes
Communities & Local Government,DCLG,15/07/2014,Current (non AEF) Grants to Local Authorities,Localism,BURNLEY BC,,,,229413281,5000257664,,Empty New Build Relief,BB11 1JA,"2,696.00",Yes
Communities & Local Government,DCLG,15/07/2014,Current (non AEF) Grants to Local Authorities,Localism,BURY MBC,,,,,5000255464,,Council Tax Freeze,BL9 0SW,"77,374.00",Yes
Communities & Local Government,DCLG,15/07/2014,Current (non AEF) Grants to Local Authorities,Localism,BURY MBC,,,,,5000257670,,Business Rates 2% Inflation Cap,BL9 0SW,"33,571.00",Yes
Communities & Local Government,DCLG,15/07/2014,Current (non AEF) Grants to Local Authorities,Localism,BURY MBC,,,,,5000257672,,Reoccupation Relief,BL9 0SW,"10,908.00",Yes
Communities & Local Government,DCLG,15/07/2014,Current (non AEF) Grants to Local Authorities,Localism,BURY MBC,,,,,5000257675,,Retail Relief,BL9 0SW,"53,185.00",Yes
Communities & Local Government,DCLG,15/07/2014,Current (non AEF) Grants to Local Authorities,Localism,BURY MBC,,,,,5000257678,,Small Business Rates Relief,BL9 0SW,"107,577.00",Yes
Communities & Local Government,DCLG,15/07/2014,Current (non AEF) Grants to Local Authorities,Localism,CALDERDALE MBC,,,,,5000255465,,Council Tax Freeze,HX1 1YP,"84,120.00",Yes
Communities & Local Government,DCLG,15/07/2014,Current (non AEF) Grants to Local Authorities,Localism,CALDERDALE MBC,,,,,5000257681,,Small Business Rates Relief,HX1 1YP,"152,670.00",Yes
Communities & Local Government,DCLG,15/07/2014,Current (non AEF) Grants to Local Authorities,Localism,CALDERDALE MBC,,,,,5000257685,,Retail Relief,HX1 1YP,"49,521.00",Yes
Communities & Local Government,DCLG,15/07/2014,Current (non AEF) Grants to Local Authorities,Localism,CALDERDALE MBC,,,,,5000257688,,Business Rates 2% Inflation Cap,HX1 1YP,"40,765.00",Yes
Communities & Local Government,DCLG,15/07/2014,Current (non AEF) Grants to Local Authorities,Localism,CAMBRIDGE CITY COUNCIL,,,,210357534,5000257691,,Retail Relief,CB2 3NA,"31,532.00",Yes
Communities & Local Government,DCLG,15/07/2014,Current (non AEF) Grants to Local Authorities,Localism,CAMBRIDGE CITY COUNCIL,,,,210357534,5000257694,,Small Business Rates Relief,CB2 3NA,"25,919.00",Yes
Communities & Local Government,DCLG,15/07/2014,Current (non AEF) Grants to Local Authorities,Localism,CAMBRIDGE CITY COUNCIL,,,,210357534,5000257697,,Business Rates 2% Inflation Cap,CB2 3NA,"6,412.00",Yes
Communities & Local Government,DCLG,15/07/2014,Current (non AEF) Grants to Local Authorities,Localism,CAMBRIDGE CITY COUNCIL,,,,210357534,5000257700,,Empty New Build Relief,CB2 3NA,"3,597.00",Yes
Communities & Local Government,DCLG,15/07/2014,Current (non AEF) Grants to Local Authorities,Localism,CAMBRIDGESHIRE COUNTY CNCL,,,,219047347,5000257704,,Business Rates 2% Inflation Cap,CB3 0AP,"62,700.00",Yes
Communities & Local Government,DCLG,15/07/2014,Current (non AEF) Grants to Local Authorities,Localism,CAMBRIDGESHIRE COUNTY CNCL,,,,219047347,5000257707,,Small Business Rates Relief on Second Properties,CB3 0AP,454.00,Yes
Communities & Local Government,DCLG,15/07/2014,Current (non AEF) Grants to Local Authorities,Localism,CAMBRIDGESHIRE COUNTY CNCL,,,,219047347,5000257710,,Empty New Build Relief,CB3 0AP,"2,173.00",Yes
Communities & Local Government,DCLG,15/07/2014,Current (non AEF) Grants to Local Authorities,Localism,CAMBRIDGESHIRE COUNTY CNCL,,,,219047347,5000257713,,Retail Relief,CB3 0AP,"18,372.00",Yes
Communities & Local Government,DCLG,15/07/2014,Current (non AEF) Grants to Local Authorities,Localism,CAMBRIDGESHIRE COUNTY CNCL,,,,219047347,5000257716,,Small Business Rates Relief,CB3 0AP,"45,933.00",Yes
Communities & Local Government,DCLG,15/07/2014,Current (non AEF) Grants to Local Authorities,Localism,CAMBRIDGESHIRE COUNTY CNCL,,,,219047347,5000257719,,Reoccupation Relief,CB3 0AP,569.00,Yes
Communities & Local Government,DCLG,15/07/2014,Current (non AEF) Grants to Local Authorities,Localism,CAMBS & PETERBOROUGH FIRE AUTHORITY,,,,235999737,5000255235,,Firefighters Pensions,PE29 2NA,"500,529.00",Yes
Communities & Local Government,DCLG,15/07/2014,Current (non AEF) Grants to Local Authorities,Localism,CAMBS & PETERBOROUGH FIRE AUTHORITY,,,,235999737,5000255236,,Firefighters Pensions,PE29 2NA,"3,616,243.00",Yes
Communities & Local Government,DCLG,15/07/2014,Current (non AEF) Grants to Local Authorities,Localism,CAMBS & PETERBOROUGH FIRE AUTHORITY,,,,235999737,5000255690,,Council Tax Freeze,PE29 2NA,"18,456.00",Yes
Communities & Local Government,DCLG,15/07/2014,Current (non AEF) Grants to Local Authorities,Localism,CAMBS & PETERBOROUGH FIRE AUTHORITY,,,,235999737,5000257749,,Business Rates 2% Inflation Cap,PE29 2NA,"5,907.00",Yes
Communities & Local Government,DCLG,15/07/2014,Current (non AEF) Grants to Local Authorities,Localism,CAMBS & PETERBOROUGH FIRE AUTHORITY,,,,235999737,5000257752,,Small Business Rates Relief,PE29 2NA,"6,545.00",Yes
